Service Area,Service Division,Expense Type,Expense Code,Detailed Expense Type,Payment Date,Transaction Number,Amount Exc Vat,Supplier Name
Children and Adult Services,Childrens Services,Premises,145009,Cleaning and Domestic Supplies,01-Oct-2014,2799740-61617508,"3,010.80",PHS GROUP PLC.
Children and Adult Services,Childrens Services,Supplies and Services,352001,Conference Expenses,01-Oct-2014,2799491-1277,"1,000.00",AIM PROJECT.
Children and Adult Services,Childrens Services,Construction Work,908105,Construction work,01-Oct-2014,2799674-14749,640.00,LUCION ENVIRONMENTAL LLP LTD.
Children and Adult Services,Childrens Services,Supplies and Services,384871,Miscellaneous Expenses,01-Oct-2014,2799587-11544,"1,187.50",FAMILY LINKS.
Children and Adult Services,Childrens Services,Supplies and Services,384638,Miscellaneous Expenses,01-Oct-2014,2799715-0000019003,607.50,NORTH EAST AUTISM SOCIETY.
Children and Adult Services,Childrens Services,Supplies and Services,384638,Miscellaneous Expenses,01-Oct-2014,2799715-0000019004,"1,800.00",NORTH EAST AUTISM SOCIETY.
Children and Adult Services,Childrens Services,Supplies and Services,384638,Miscellaneous Expenses,01-Oct-2014,2799715-0000019006,837.00,NORTH EAST AUTISM SOCIETY.
Children and Adult Services,Childrens Services,Supplies and Services,384638,Miscellaneous Expenses,01-Oct-2014,2799715-0000019007,"1,512.00",NORTH EAST AUTISM SOCIETY.
Children and Adult Services,Childrens Services,Supplies and Services,384638,Miscellaneous Expenses,01-Oct-2014,2799715-0000019046,"1,228.50",NORTH EAST AUTISM SOCIETY.
Children and Adult Services,Childrens Services,Supplies and Services,384638,Miscellaneous Expenses,01-Oct-2014,2799715-0000019048,"3,113.08",NORTH EAST AUTISM SOCIETY.
Children and Adult Services,Childrens Services,Supplies and Services,384638,Miscellaneous Expenses,01-Oct-2014,2799715-0000019050,992.25,NORTH EAST AUTISM SOCIETY.
Children and Adult Services,Childrens Services,Supplies and Services,384638,Miscellaneous Expenses,01-Oct-2014,2799715-0000019051,"1,433.25",NORTH EAST AUTISM SOCIETY.
Children and Adult Services,Childrens Services,Supplies and Services,384638,Miscellaneous Expenses,01-Oct-2014,2799715-0000019053,"2,661.75",NORTH EAST AUTISM SOCIETY.
Children and Adult Services,Childrens Services,Supplies and Services,384638,Miscellaneous Expenses,01-Oct-2014,2799715-0000019055,551.25,NORTH EAST AUTISM SOCIETY.
Children and Adult Services,Childrens Services,Supplies and Services,384638,Miscellaneous Expenses,01-Oct-2014,2799715-0000019061,819.00,NORTH EAST AUTISM SOCIETY.
Children and Adult Services,Childrens Services,Supplies and Services,384638,Miscellaneous Expenses,01-Oct-2014,2799715-0000019062,882.00,NORTH EAST AUTISM SOCIETY.
Children and Adult Services,Childrens Services,Supplies and Services,384638,Miscellaneous Expenses,01-Oct-2014,2799715-0000019063,"1,433.25",NORTH EAST AUTISM SOCIETY.
Children and Adult Services,Childrens Services,Supplies and Services,384638,Miscellaneous Expenses,01-Oct-2014,2799715-0000019064,661.50,NORTH EAST AUTISM SOCIETY.
Children and Adult Services,Childrens Services,Supplies and Services,384638,Miscellaneous Expenses,01-Oct-2014,2799715-0000019066,614.25,NORTH EAST AUTISM SOCIETY.
Children and Adult Services,Childrens Services,Supplies and Services,384638,Miscellaneous Expenses,01-Oct-2014,2799715-0000019067,"1,212.75",NORTH EAST AUTISM SOCIETY.
Children and Adult Services,Childrens Services,Supplies and Services,384638,Miscellaneous Expenses,01-Oct-2014,2799715-0000019075,"3,159.00",NORTH EAST AUTISM SOCIETY.
Children and Adult Services,Childrens Services,Supplies and Services,384700,Miscellaneous Expenses,01-Oct-2014,2799737-ONEPOINT25/9/14,500.00,PELTON COMMUNITY CENTRE.
Children and Adult Services,Childrens Services,Supplies and Services,384199,Miscellaneous Expenses,01-Oct-2014,2799740-61333194,641.01,PHS GROUP PLC.
Children and Adult Services,Childrens Services,Third Party Payments,410037,Rendered by Other Local Authorities,01-Oct-2014,2799819-SII007242,"3,140.00",THE YOUTH JUSTICE BOARD.
Children and Adult Services,Childrens Services,Third Party Payments,425040,Rendered by Voluntary Organisations,01-Oct-2014,2799591-11090,820.00,FOSTER CARES LTD.
Children and Adult Services,Childrens Services,Third Party Payments,425040,Rendered by Voluntary Organisations,01-Oct-2014,2799591-11133,730.00,FOSTER CARES LTD.
Children and Adult Services,Childrens Services,Third Party Payments,425040,Rendered by Voluntary Organisations,01-Oct-2014,2799591-11138,"1,180.00",FOSTER CARES LTD.
Children and Adult Services,Childrens Services,Third Party Payments,425040,Rendered by Voluntary Organisations,01-Oct-2014,2799591-11143,820.00,FOSTER CARES LTD.
Children and Adult Services,Childrens Services,Third Party Payments,425040,Rendered by Voluntary Organisations,01-Oct-2014,2799591-11146,760.00,FOSTER CARES LTD.
Children and Adult Services,Childrens Services,Third Party Payments,425040,Rendered by Voluntary Organisations,01-Oct-2014,2799591-11147,730.00,FOSTER CARES LTD.
Children and Adult Services,Childrens Services,Third Party Payments,425040,Rendered by Voluntary Organisations,01-Oct-2014,2799591-11150,820.00,FOSTER CARES LTD.
Children and Adult Services,Childrens Services,Third Party Payments,425040,Rendered by Voluntary Organisations,01-Oct-2014,2799591-11158,730.00,FOSTER CARES LTD.
Children and Adult Services,Childrens Services,Third Party Payments,425040,Rendered by Voluntary Organisations,01-Oct-2014,2799591-11161,730.00,FOSTER CARES LTD.
Children and Adult Services,Childrens Services,Third Party Payments,425040,Rendered by Voluntary Organisations,01-Oct-2014,2799591-11188,"1,180.00",FOSTER CARES LTD.
Children and Adult Services,Childrens Services,Third Party Payments,425040,Rendered by Voluntary Organisations,01-Oct-2014,2799591-11201,820.00,FOSTER CARES LTD.
Children and Adult Services,Childrens Services,Third Party Payments,425040,Rendered by Voluntary Organisations,01-Oct-2014,2799591-11209,730.00,FOSTER CARES LTD.
Children and Adult Services,Childrens Services,Third Party Payments,425040,Rendered by Voluntary Organisations,01-Oct-2014,2799592-630132409,"1,503.50",FOSTERING PEOPLE LTD.
Children and Adult Services,Childrens Services,Third Party Payments,425040,Rendered by Voluntary Organisations,01-Oct-2014,2799705-NFA115268,"1,772.93",NATIONAL FOSTERING AGENCY LTD.
Children and Adult Services,Childrens Services,Third Party Payments,425040,Rendered by Voluntary Organisations,01-Oct-2014,2799705-NFA115271,"1,460.06",NATIONAL FOSTERING AGENCY LTD.
Children and Adult Services,Childrens Services,Third Party Payments,425040,Rendered by Voluntary Organisations,01-Oct-2014,2799731-03300,"3,100.00",ORCHARD CARE (NORTH EAST) LTD.
Children and Adult Services,Childrens Services,Third Party Payments,425040,Rendered by Voluntary Organisations,01-Oct-2014,2799803-152248,"1,075.00",SWIIS FOSTER CARE LTD.
Children and Adult Services,Childrens Services,Third Party Payments,425040,Rendered by Voluntary Organisations,01-Oct-2014,2799803-152250,"1,069.00",SWIIS FOSTER CARE LTD.
Children and Adult Services,Childrens Services,Third Party Payments,425040,Rendered by Voluntary Organisations,01-Oct-2014,2799803-152515,910.00,SWIIS FOSTER CARE LTD.
Children and Adult Services,Childrens Services,Third Party Payments,425040,Rendered by Voluntary Organisations,01-Oct-2014,2799803-152516,"1,069.00",SWIIS FOSTER CARE LTD.
Children and Adult Services,Childrens Services,Third Party Payments,425040,Rendered by Voluntary Organisations,01-Oct-2014,2799803-152517,"1,075.00",SWIIS FOSTER CARE LTD.
Children and Adult Services,Childrens Services,Third Party Payments,425040,Rendered by Voluntary Organisations,01-Oct-2014,2799803-152518,891.90,SWIIS FOSTER CARE LTD.
Children and Adult Services,Childrens Services,Third Party Payments,425040,Rendered by Voluntary Organisations,01-Oct-2014,2799803-152519,"1,069.00",SWIIS FOSTER CARE LTD.
Children and Adult Services,Childrens Services,Third Party Payments,425040,Rendered by Voluntary Organisations,01-Oct-2014,2799803-152783,910.00,SWIIS FOSTER CARE LTD.
Children and Adult Services,Childrens Services,Third Party Payments,425040,Rendered by Voluntary Organisations,01-Oct-2014,2799803-152784,"1,069.00",SWIIS FOSTER CARE LTD.
Children and Adult Services,Childrens Services,Third Party Payments,425040,Rendered by Voluntary Organisations,01-Oct-2014,2799803-152786,891.90,SWIIS FOSTER CARE LTD.
Children and Adult Services,Childrens Services,Third Party Payments,425040,Rendered by Voluntary Organisations,01-Oct-2014,2799803-152787,"1,069.00",SWIIS FOSTER CARE LTD.
Children and Adult Services,Childrens Services,Third Party Payments,425040,Rendered by Voluntary Organisations,01-Oct-2014,2799809-22856,"3,128.57",TEAM FOSTERING.
Children and Adult Services,Childrens Services,Third Party Payments,425040,Rendered by Voluntary Organisations,01-Oct-2014,2799817-000123,"3,920.00",THE FOSTERING COMPANY NE LTD.
Children and Adult Services,Childrens Services,Premises,125009,Rents,01-Oct-2014,2799609-GH3682,"1,010.59",GROUNDWORK NORTH EAST.
Children and Adult Services,Childrens Services,Supplies and Services,338044,Services,01-Oct-2014,234763-1968,"1,368.00",DR ALAN SPRIGG.
Children and Adult Services,Childrens Services,Transfer Payments,515207,Social Services Clients,01-Oct-2014,2799734-21550403,"3,920.00",PARK RETAIL LTD.
Children and Adult Services,Commissioning inc Supporting People,Supplies and Services,342051,Computers and Communications,01-Oct-2014,234836-10627,"10,083.81",OXFORD COMPUTER CONSULTANTS.
Children and Adult Services,Commissioning inc Supporting People,Third Party Payments,479102,Purchase of Care,01-Oct-2014,2799488-754,"16,500.00",ADL SMARTCARE LTD.
Children and Adult Services,Commissioning inc Supporting People,Supplies and Services,338099,Services,01-Oct-2014,2799542-14/15054,"10,000.00",CORNFORTH PARTNERSHIP.
Children and Adult Services,Commissioning inc Supporting People,Third Party Payments,442002,Supporting People,01-Oct-2014,2799517-1959039,"17,375.04",BID SERVICES WITH DEAF PEOPLE.
Children and Adult Services,Commissioning inc Supporting People,Third Party Payments,442002,Supporting People,01-Oct-2014,2799547-1958999,"19,868.48",CREATIVE SUPPORT LTD.
Children and Adult Services,Commissioning inc Supporting People,Third Party Payments,442002,Supporting People,01-Oct-2014,2799563-1959006,"5,668.48",DISC LTD.
Children and Adult Services,Commissioning inc Supporting People,Third Party Payments,442002,Supporting People,01-Oct-2014,2799563-1959041,"27,885.68",DISC LTD.
Children and Adult Services,Commissioning inc Supporting People,Third Party Payments,441001,Supporting People,01-Oct-2014,2799568-1959011,"20,819.76",DURHAM ACTION ON SINGLE HOUSING.
Children and Adult Services,Commissioning inc Supporting People,Third Party Payments,443001,Supporting People,01-Oct-2014,2799568-1959043,"3,689.80",DURHAM ACTION ON SINGLE HOUSING.
Children and Adult Services,Commissioning inc Supporting People,Third Party Payments,443001,Supporting People,01-Oct-2014,2799568-1959048,737.96,DURHAM ACTION ON SINGLE HOUSING.
Children and Adult Services,Commissioning inc Supporting People,Third Party Payments,441001,Supporting People,01-Oct-2014,2799574-1959050,"5,483.40",EAST DURHAM COMMUNITY INITIATIVES LTD.
Children and Adult Services,Commissioning inc Supporting People,Third Party Payments,442002,Supporting People,01-Oct-2014,2799586-1959005,"9,851.44",FABRICK HOUSING GROUP LTD.
Children and Adult Services,Commissioning inc Supporting People,Third Party Payments,441001,Supporting People,01-Oct-2014,2799586-1959051,"26,571.84",FABRICK HOUSING GROUP LTD.
Children and Adult Services,Commissioning inc Supporting People,Third Party Payments,442002,Supporting People,01-Oct-2014,2799593-1959007,"30,071.20",FOUNDATION HOUSING.
Children and Adult Services,Commissioning inc Supporting People,Third Party Payments,442002,Supporting People,01-Oct-2014,2799612-1958750,"5,995.44",HANOVER HOUSING ASSOCIATION.
Children and Adult Services,Commissioning inc Supporting People,Third Party Payments,441001,Supporting People,01-Oct-2014,2799613-1959009,"8,938.68",HARBOUR SUPPORT SERVICES.
Children and Adult Services,Commissioning inc Supporting People,Third Party Payments,443001,Supporting People,01-Oct-2014,2799623-1958753,713.68,HOME HOUSING ASSOCIATION LTD.
Children and Adult Services,Commissioning inc Supporting People,Third Party Payments,442002,Supporting People,01-Oct-2014,2799685-1958921,"5,469.72",MENTAL HEALTH MATTERS.
Children and Adult Services,Commissioning inc Supporting People,Third Party Payments,442002,Supporting People,01-Oct-2014,2799695-1959010,"5,240.36",MOVING ON.
Children and Adult Services,Commissioning inc Supporting People,Third Party Payments,441001,Supporting People,01-Oct-2014,2799713-1958839,"10,205.64",NORCARE LTD.
Children and Adult Services,Commissioning inc Supporting People,Third Party Payments,441001,Supporting People,01-Oct-2014,2799713-1959014,"7,791.04",NORCARE LTD.
Children and Adult Services,Commissioning inc Supporting People,Third Party Payments,442002,Supporting People,01-Oct-2014,2799713-1959015,"1,800.52",NORCARE LTD.
Children and Adult Services,Commissioning inc Supporting People,Third Party Payments,441001,Supporting People,01-Oct-2014,2799759-1958940,"9,423.88",RICHMOND FELLOWSHIP.
Children and Adult Services,Commissioning inc Supporting People,Third Party Payments,444002,Supporting People,01-Oct-2014,2799759-1958980,"4,068.24",RICHMOND FELLOWSHIP.
Children and Adult Services,Commissioning inc Supporting People,Third Party Payments,442002,Supporting People,01-Oct-2014,2799759-1959008,"7,356.72",RICHMOND FELLOWSHIP.
Children and Adult Services,Commissioning inc Supporting People,Third Party Payments,442002,Supporting People,01-Oct-2014,2799779-1959012,"9,044.36",SHAID.
Children and Adult Services,Commissioning inc Supporting People,Third Party Payments,442002,Supporting People,01-Oct-2014,2799799-1958751,"145,778.32",STONHAM HOUSING ASSOCIATION LTD.
Children and Adult Services,Commissioning inc Supporting People,Third Party Payments,441001,Supporting People,01-Oct-2014,2799799-1958826,"71,243.52",STONHAM HOUSING ASSOCIATION LTD.
Children and Adult Services,Commissioning inc Supporting People,Third Party Payments,442002,Supporting People,01-Oct-2014,2799799-1958979,"32,872.00",STONHAM HOUSING ASSOCIATION LTD.
Children and Adult Services,Commissioning inc Supporting People,Third Party Payments,443001,Supporting People,01-Oct-2014,2799799-1959017,"21,034.04",STONHAM HOUSING ASSOCIATION LTD.
Children and Adult Services,Commissioning inc Supporting People,Third Party Payments,443001,Supporting People,01-Oct-2014,2799799-1959031,"10,118.26",STONHAM HOUSING ASSOCIATION LTD.
Children and Adult Services,Commissioning inc Supporting People,Third Party Payments,442002,Supporting People,01-Oct-2014,2799799-1959038,"29,343.52",STONHAM HOUSING ASSOCIATION LTD.
Children and Adult Services,Commissioning inc Supporting People,Third Party Payments,441001,Supporting People,01-Oct-2014,2799815-1959001,"19,231.20",THE CYRENIANS LTD.
Children and Adult Services,Commissioning inc Supporting People,Third Party Payments,442002,Supporting People,01-Oct-2014,2799822-1959040,"36,446.00",THREE RIVERS HOUSING ASSOCIATION LTD.
Children and Adult Services,Commissioning inc Supporting People,Third Party Payments,441001,Supporting People,01-Oct-2014,2799822-1959054,"9,402.72",THREE RIVERS HOUSING ASSOCIATION LTD.
Children and Adult Services,Commissioning inc Supporting People,Third Party Payments,442002,Supporting People,01-Oct-2014,2799822-1959059,"3,449.96",THREE RIVERS HOUSING ASSOCIATION LTD.
Children and Adult Services,Commissioning inc Supporting People,Third Party Payments,441001,Supporting People,01-Oct-2014,2799835-1959055,"1,183.60",WADDINGTON STREET CENTRE LTD.
Children and Adult Services,Commissioning inc Supporting People,Third Party Payments,443001,Supporting People,01-Oct-2014,2799835-1959056,"3,022.76",WADDINGTON STREET CENTRE LTD.
Children and Adult Services,Commissioning inc Supporting People,Third Party Payments,441001,Supporting People,01-Oct-2014,2799841-1958828,"7,157.00",WEAR VALLEY WOMENS AID.
Dedicated Schools Grant,Dedicated Schools Grant,Supplies and Services,304259,Equipment and Materials,01-Oct-2014,2799667-0000035569,"3,897.03",LIBERATOR LTD.
Children and Adult Services,Education,Transport,230007,Contract Hire,01-Oct-2014,234840-20,"3,432.52",PYGALL COACH HIRE.
Children and Adult Services,Education,Supplies and Services,384199,Miscellaneous Expenses,01-Oct-2014,2799784-215032,620.00,SIMPLY SPORT LTD.
Children and Adult Services,Education,Supplies and Services,332047,Printing Stationery and Gen Off Exps,01-Oct-2014,2799801-6960973,543.68,SUPPLIES TEAM LTD.
Children and Adult Services,Education,Transfer Payments,510028,School Children,01-Oct-2014,2799527-CAS-09-2014-276,581.95,BYERLEY ROAD PRE SCHOOL.
Children and Adult Services,Head of Adults,Supplies and Services,304259,Equipment and Materials,01-Oct-2014,2799579-SI13130,668.31,ELECTROMASTER TELECOMMUNICATIONS LTD.
Children and Adult Services,Head of Adults,Third Party Payments,478101,Purchase of Care,01-Oct-2014,2799727-20262,"1,009.80",OAKLEA TRUST.
Children and Adult Services,Head of Adults,Income,725017,Rents,01-Oct-2014,2799507-AHS00401,"4,331.60",AUCKLAND HOME SOLUTIONS CIC.
Children and Adult Services,Head of Adults,Supplies and Services,338366,Services,01-Oct-2014,2799529-19178,"1,613.96",CARE ABILITY.
Children and Adult Services,Head of Adults,Supplies and Services,338366,Services,01-Oct-2014,2799529-19179,995.00,CARE ABILITY.
Children and Adult Services,Public Health,Third Party Payments,460803,Contract Payments,01-Oct-2014,234740-FW299/NRT/0614,"1,172.28",ASDA STORES LTD.
Children and Adult Services,Public Health,Third Party Payments,460803,Contract Payments,01-Oct-2014,2799638-FDH51/0814,872.00,INTRAHEALTH LTD.
Children and Adult Services,Public Health,Third Party Payments,460803,Contract Payments,01-Oct-2014,2799670-6663CA081401,847.00,LLOYDS PHARMACY.
Children and Adult Services,Public Health,Premises,130005,Rates,01-Oct-2014,2799710-48332533,686.88,NHS PROPERTY SERVICES LTD.
Children and Adult Services,Public Health,Premises,130005,Rates,01-Oct-2014,2799710-48332534,559.31,NHS PROPERTY SERVICES LTD.
Children and Adult Services,Public Health,Premises,130005,Rates,01-Oct-2014,2799710-48332535,853.54,NHS PROPERTY SERVICES LTD.
Children and Adult Services,Public Health,Premises,130005,Rates,01-Oct-2014,2799710-48332537,"1,295.37",NHS PROPERTY SERVICES LTD.
Children and Adult Services,Public Health,Premises,130005,Rates,01-Oct-2014,2799710-48336697,913.79,NHS PROPERTY SERVICES LTD.
Children and Adult Services,Public Health,Premises,130005,Rates,01-Oct-2014,2799710-48336698,686.88,NHS PROPERTY SERVICES LTD.
Children and Adult Services,Public Health,Premises,130005,Rates,01-Oct-2014,2799710-48336699,559.31,NHS PROPERTY SERVICES LTD.
Children and Adult Services,Public Health,Premises,130005,Rates,01-Oct-2014,2799710-48336701,913.79,NHS PROPERTY SERVICES LTD.
Children and Adult Services,Public Health,Premises,125009,Rents,01-Oct-2014,2799710-48332526,"3,921.60",NHS PROPERTY SERVICES LTD.
Children and Adult Services,Public Health,Premises,125009,Rents,01-Oct-2014,2799710-48336694,"3,921.60",NHS PROPERTY SERVICES LTD.
Assistant Chief Executive,Partnerships & Community Engagement Div.,Supplies and Services,324117,Provisions,01-Oct-2014,234792-4962,"1,569.00",FEELGOODFOOD LTD.
Assistant Chief Executive,Partnerships & Community Engagement Div.,Cap Exp on Grants & Other Financial Assistance (REFCUS),918004,Contributions to other bodies,01-Oct-2014,2799535-VOUCHER14NB-4TOG016,"2,050.00",CHILTON TOWN COUNCIL.
Assistant Chief Executive,Partnerships & Community Engagement Div.,Transfer Payments,525030,Other,01-Oct-2014,2799616-VOUCHER14AB,"1,544.00",HAWTHORN COMMUNITY CENTRE.
Assistant Chief Executive,Partnerships & Community Engagement Div.,Transfer Payments,525030,Other,01-Oct-2014,2799792-VOUCHER13AB,"1,980.00",STANHOPE COMMUNITY CENTRE.
Assistant Chief Executive,Partnerships & Community Engagement Div.,Transfer Payments,525030,Other,01-Oct-2014,2799842-VOUCHER13AB,"1,447.00",WEARDALE COMMUNITY PARTNERSHIP LTD.
Neighbourhood Services,Culture & Sport,Supplies and Services,384199,Miscellaneous Expenses,01-Oct-2014,234745-07/LS0023.,"2,320.00",BRITANNIA BANNERS.
Neighbourhood Services,Culture & Sport,Supplies and Services,384540,Miscellaneous Expenses,01-Oct-2014,234745-66/716.,"1,724.00",BRITANNIA BANNERS.
Neighbourhood Services,Direct Services,Third Party Payments,430100,Rendered by Private Contractors,01-Oct-2014,234750-CI-26823,"10,391.67",CASTLE CONSTRUCTION NORTH EAST LTD.
Neighbourhood Services,Technical Services,Supplies and Services,304358,Equipment and Materials,01-Oct-2014,234752-1610,"16,577.38",CG SIMPSON & SON.
Neighbourhood Services,Direct Services,Third Party Payments,430100,Rendered by Private Contractors,01-Oct-2014,234793-12540,"2,088.00",FULWELL CEILING CONTRACTS LTD.
Neighbourhood Services,Direct Services,Third Party Payments,430100,Rendered by Private Contractors,01-Oct-2014,234793-12549,"1,153.50",FULWELL CEILING CONTRACTS LTD.
Neighbourhood Services,Technical Services,Third Party Payments,460152,Contract Payments,01-Oct-2014,234819-NEI-EXP-09-2014-013.,861.60,REDACTED - PAYMENT TO INDIVIDUAL
Neighbourhood Services,Direct Services,Supplies and Services,304221,Equipment and Materials,01-Oct-2014,234857-117347,"1,404.00",W MCGOVERN & CO LTD.
Neighbourhood Services,Technical Services,Construction Work,908105,Construction work,01-Oct-2014,2799481-001361,972.72,A PARRY MOBILE WELDING & FABRICATION.
Neighbourhood Services,Technical Services,Third Party Payments,430100,Rendered by Private Contractors,01-Oct-2014,2799481-001365,"3,780.00",A PARRY MOBILE WELDING & FABRICATION.
Neighbourhood Services,Culture & Sport,Supplies and Services,304259,Equipment and Materials,01-Oct-2014,2799483-116245099,719.12,AC ENTERTAINMENT TECHNOLOGIES.
Neighbourhood Services,Technical Services,Employees,080025,Agency Staff,01-Oct-2014,2799490-28200446,"3,798.60",AECOM LTD.
Neighbourhood Services,Direct Services,Third Party Payments,430100,Rendered by Private Contractors,01-Oct-2014,2799492-46221,"1,005.62",ALAN REED LTD.
Neighbourhood Services,Direct Services,Third Party Payments,430100,Rendered by Private Contractors,01-Oct-2014,2799492-46222,619.19,ALAN REED LTD.
Neighbourhood Services,Direct Services,Third Party Payments,430100,Rendered by Private Contractors,01-Oct-2014,2799492-46223,"1,264.43",ALAN REED LTD.
Neighbourhood Services,Technical Services,Stock,926900,Stock in hand-Inventory system,01-Oct-2014,2799500-922860668,"2,332.98",ARCO LTD.
Neighbourhood Services,Technical Services,Stock,926900,Stock in hand-Inventory system,01-Oct-2014,2799505-SIN226571,"1,261.65",ATF SUPPLIES LTD.
Neighbourhood Services,Technical Services,Supplies and Services,338027,Services,01-Oct-2014,2799506-14025809,"4,081.00",ATKINS GLOBAL.
Neighbourhood Services,Direct Services,Transport,215013,Running Costs of Vehicles,01-Oct-2014,2799512-303409,705.00,BELL TRUCK SALES LTD.
Neighbourhood Services,Direct Services,Transport,215013,Running Costs of Vehicles,01-Oct-2014,2799512-303413,705.00,BELL TRUCK SALES LTD.
Neighbourhood Services,Projects and Business services,Third Party Payments,430103,Rendered by Private Contractors,01-Oct-2014,2799521-NEI-EXP-09-2014-031,725.03,BRITISH HEART FOUNDATION.
Neighbourhood Services,Direct Services,Supplies and Services,304221,Equipment and Materials,01-Oct-2014,2799522-INV153938,800.00,BROXAP LTD.
Neighbourhood Services,Direct Services,Transport,230005,Contract Hire,01-Oct-2014,2799525-NEW8112406,628.58,BURNT TREE GROUP LTD.
Neighbourhood Services,Direct Services,Stock,926004,Stock,01-Oct-2014,2799531-286164,"1,278.34",CARRS BILLINGTON AGRICULTURE.
Neighbourhood Services,Direct Services,Third Party Payments,430100,Rendered by Private Contractors,01-Oct-2014,2799532-15495,"2,096.20",CATHEDRAL LOCK & SAFE SERVICES LTD.
Neighbourhood Services,Direct Services,Third Party Payments,430100,Rendered by Private Contractors,01-Oct-2014,2799533-076,519.77,CEILINGS DIRECT LTD.
Neighbourhood Services,Direct Services,Supplies and Services,304221,Equipment and Materials,01-Oct-2014,2799548-SIP-UK-154855,696.50,CRH FENCING & SECURITY GROUP (UK) LTD T/A HERAS READYFENCE SERVICE.
Neighbourhood Services,Direct Services,Transport,230005,Contract Hire,01-Oct-2014,2799558-675081,504.00,DAWSONRENTALS VANS LTD.
Neighbourhood Services,Direct Services,Transport,230005,Contract Hire,01-Oct-2014,2799558-675082,504.00,DAWSONRENTALS VANS LTD.
Neighbourhood Services,Direct Services,Third Party Payments,430100,Rendered by Private Contractors,01-Oct-2014,2799567-9100691196,"28,862.20",DORMA UK LTD.
Neighbourhood Services,Direct Services,Third Party Payments,430100,Rendered by Private Contractors,01-Oct-2014,2799567-9100691964,"3,188.00",DORMA UK LTD.
Neighbourhood Services,Culture & Sport,Supplies and Services,384199,Miscellaneous Expenses,01-Oct-2014,2799571-K47349,"1,893.36",DURHAM UNIVERSITY CONFERENCE & TOURISM LTD.
Neighbourhood Services,Technical Services,Stock,926900,Stock in hand-Inventory system,01-Oct-2014,2799589-OP/I282368,"1,313.34",FLEMING & CO (MACHINERY) LTD.
Neighbourhood Services,Direct Services,Third Party Payments,430100,Rendered by Private Contractors,01-Oct-2014,2799597-SIN114233.,"7,309.09",FULCRUM CONNECTIONS LTD.
Neighbourhood Services,Direct Services,Supplies and Services,304259,Equipment and Materials,01-Oct-2014,2799600-14-2050-KM,"1,018.35",GB SPORT & LEISURE UK LTD.
Neighbourhood Services,Projects and Business services,Third Party Payments,430103,Rendered by Private Contractors,01-Oct-2014,2799607,824.05,GREAT NORTH AIR AMBULANCE SERVICE TRADING CO LTD.
Neighbourhood Services,Direct Services,Premises,145023,Cleaning and Domestic Supplies,01-Oct-2014,2799608-06/527469,564.75,GREENHAM TRADING LTD.
Neighbourhood Services,Direct Services,Stock,926004,Stock,01-Oct-2014,2799615-501133,"37,897.20",HARVEST ENERGY LTD.
Neighbourhood Services,Direct Services,Stock,926004,Stock,01-Oct-2014,2799615-699108,"13,507.17",HARVEST ENERGY LTD.
Neighbourhood Services,Direct Services,Stock,926004,Stock,01-Oct-2014,2799615-699109,"11,874.94",HARVEST ENERGY LTD.
Neighbourhood Services,Culture & Sport,Supplies and Services,384199,Miscellaneous Expenses,01-Oct-2014,2799618-7966,"1,141.00",HI LIGHTS THEATRE SERVICES.
Neighbourhood Services,Technical Services,Stock,926900,Stock in hand-Inventory system,01-Oct-2014,2799629-086214,"5,649.70",HYDRAM ENGINEERING LTD.
Neighbourhood Services,Culture & Sport,Premises,125009,Rents,01-Oct-2014,2799632-7499,"36,141.25",IMPALA ESTATES LTD.
Neighbourhood Services,Technical Services,Supplies and Services,304221,Equipment and Materials,01-Oct-2014,2799633-000984,"2,409.12",INDIGO PACIFIC SITE SERVICES LTD.
Neighbourhood Services,Technical Services,Stock,926900,Stock in hand-Inventory system,01-Oct-2014,2799636-462044,"2,424.80",INSTARMAC GROUP PLC.
Neighbourhood Services,Technical Services,Stock,926900,Stock in hand-Inventory system,01-Oct-2014,2799636-462378,"3,136.00",INSTARMAC GROUP PLC.
Neighbourhood Services,Technical Services,Stock,926900,Stock in hand-Inventory system,01-Oct-2014,2799636-462691,"2,822.40",INSTARMAC GROUP PLC.
Neighbourhood Services,Technical Services,Stock,926900,Stock in hand-Inventory system,01-Oct-2014,2799636-462951,915.60,INSTARMAC GROUP PLC.
Neighbourhood Services,Technical Services,Supplies and Services,304221,Equipment and Materials,01-Oct-2014,2799644-08/81473,778.63,JOHN DAVIDSON (PIPES) LTD.
Neighbourhood Services,Technical Services,Stock,926900,Stock in hand-Inventory system,01-Oct-2014,2799646-N1025957,"122,916.00",JOHN MACLEAN & SONS ELECTRICAL (DINGWALL) LTD.
Neighbourhood Services,Technical Services,Supplies and Services,304358,Equipment and Materials,01-Oct-2014,2799648-22053,"1,284.90",JOHN R BUTTERFIELD LTD.
Neighbourhood Services,Technical Services,Supplies and Services,304358,Equipment and Materials,01-Oct-2014,2799648-22089,"1,299.70",JOHN R BUTTERFIELD LTD.
Neighbourhood Services,Projects and Business services,Third Party Payments,430100,Rendered by Private Contractors,01-Oct-2014,2799649-035907,677.50,JOHN WADE (HAULAGE) LTD.
Neighbourhood Services,Technical Services,Supplies and Services,304221,Equipment and Materials,01-Oct-2014,2799653-0081,"17,209.35",JOSHUA THOMAS CONSTRUCTION LTD.
Neighbourhood Services,Technical Services,Stock,926900,Stock in hand-Inventory system,01-Oct-2014,2799654-00000437,750.00,JP MATERIALS & PLANT HIRE LTD.
Neighbourhood Services,Technical Services,Supplies and Services,304221,Equipment and Materials,01-Oct-2014,2799656-BI1145177,"1,302.50",JT DOVE LTD.
Neighbourhood Services,Technical Services,Supplies and Services,304221,Equipment and Materials,01-Oct-2014,2799656-BII145795,536.40,JT DOVE LTD.
Neighbourhood Services,Direct Services,Supplies and Services,304221,Equipment and Materials,01-Oct-2014,2799656-CNI203681,"1,726.07",JT DOVE LTD.
Neighbourhood Services,Technical Services,Supplies and Services,304221,Equipment and Materials,01-Oct-2014,2799656-CNI20443/D,"4,856.90",JT DOVE LTD.
Neighbourhood Services,Direct Services,Supplies and Services,304221,Equipment and Materials,01-Oct-2014,2799656-CNI20484/D,804.24,JT DOVE LTD.
Neighbourhood Services,Direct Services,Third Party Payments,430100,Rendered by Private Contractors,01-Oct-2014,2799657-3564,"3,500.00",KAEFER C & D - KD SCAFFOLDING DIVISION.
Neighbourhood Services,Direct Services,Supplies and Services,304259,Equipment and Materials,01-Oct-2014,2799659-SI02-0033918,"1,857.80",KILLGERM CHEMICALS LTD.
Neighbourhood Services,Technical Services,Third Party Payments,430100,Rendered by Private Contractors,01-Oct-2014,2799660-1813,"45,060.24",L & G PLANT HIRE & SALES LTD.
Neighbourhood Services,Technical Services,Supplies and Services,304221,Equipment and Materials,01-Oct-2014,2799661-9031503484,"1,154.25",LAFARGE TARMAC TRADING LTD.
Neighbourhood Services,Technical Services,Supplies and Services,304221,Equipment and Materials,01-Oct-2014,2799661-9031503491,658.00,LAFARGE TARMAC TRADING LTD.
Neighbourhood Services,Technical Services,Supplies and Services,304221,Equipment and Materials,01-Oct-2014,2799661-9031520542,"1,892.10",LAFARGE TARMAC TRADING LTD.
Neighbourhood Services,Technical Services,Supplies and Services,304221,Equipment and Materials,01-Oct-2014,2799661-9031520543,"1,335.60",LAFARGE TARMAC TRADING LTD.
Neighbourhood Services,Technical Services,Supplies and Services,304221,Equipment and Materials,01-Oct-2014,2799661-9031520550,"1,817.90",LAFARGE TARMAC TRADING LTD.
Neighbourhood Services,Technical Services,Supplies and Services,304221,Equipment and Materials,01-Oct-2014,2799661-9031520551,667.80,LAFARGE TARMAC TRADING LTD.
Neighbourhood Services,Direct Services,Third Party Payments,430100,Rendered by Private Contractors,01-Oct-2014,2799663-14312,"26,991.92",LANGUARD LTD.
Neighbourhood Services,Direct Services,Third Party Payments,430100,Rendered by Private Contractors,01-Oct-2014,2799663-14313,"32,950.50",LANGUARD LTD.
Neighbourhood Services,Technical Services,Supplies and Services,304221,Equipment and Materials,01-Oct-2014,2799680-ZBB0684878,"1,559.24",MARSHALLS MONO LTD.
Neighbourhood Services,Technical Services,Supplies and Services,304221,Equipment and Materials,01-Oct-2014,2799680-ZBB0694048,"4,083.80",MARSHALLS MONO LTD.
Neighbourhood Services,Technical Services,Supplies and Services,304221,Equipment and Materials,01-Oct-2014,2799680-ZBB0695840,"2,911.80",MARSHALLS MONO LTD.
Neighbourhood Services,Technical Services,Supplies and Services,304221,Equipment and Materials,01-Oct-2014,2799680-ZBB0697537,"3,276.77",MARSHALLS MONO LTD.
Neighbourhood Services,Technical Services,Supplies and Services,304221,Equipment and Materials,01-Oct-2014,2799680-ZBB0698377,"4,887.00",MARSHALLS MONO LTD.
Neighbourhood Services,Technical Services,Supplies and Services,304358,Equipment and Materials,01-Oct-2014,2799682-1718,741.00,MARTIN JEWITT PLANT HIRE.
Neighbourhood Services,Culture & Sport,Supplies and Services,332047,Printing Stationery and Gen Off Exps,01-Oct-2014,2799687-0000043173,539.20,MHG (SUPPLIES) LTD.
Neighbourhood Services,Direct Services,Third Party Payments,430100,Rendered by Private Contractors,01-Oct-2014,2799692-7135/90814625,580.00,MITIE PROPERTY SERVICES (UK) LTD.
Neighbourhood Services,Direct Services,Third Party Payments,430100,Rendered by Private Contractors,01-Oct-2014,2799692-7135/90814670,580.00,MITIE PROPERTY SERVICES (UK) LTD.
Neighbourhood Services,Direct Services,Third Party Payments,430100,Rendered by Private Contractors,01-Oct-2014,2799692-7135/90814673,719.00,MITIE PROPERTY SERVICES (UK) LTD.
Neighbourhood Services,Culture & Sport,Supplies and Services,338099,Services,01-Oct-2014,2799703-0012664,745.00,MTELECOM LTD.
Neighbourhood Services,Direct Services,Transport,230005,Contract Hire,01-Oct-2014,2799712-71690,"3,875.00",NOBLET MUNICIPAL SERVICES LTD.
Neighbourhood Services,Direct Services,Third Party Payments,430100,Rendered by Private Contractors,01-Oct-2014,2799719-DI20196693,"3,564.18",NORTHERN POWERGRID (NORTHEAST) LTD.
Neighbourhood Services,Direct Services,Third Party Payments,430100,Rendered by Private Contractors,01-Oct-2014,2799719-DI20196815,"3,662.61",NORTHERN POWERGRID (NORTHEAST) LTD.
Neighbourhood Services,Direct Services,Supplies and Services,304221,Equipment and Materials,01-Oct-2014,2799733-BR504809,690.00,PARK ELECTRICAL DISTRIBUTORS LTD.
Neighbourhood Services,Direct Services,Supplies and Services,304221,Equipment and Materials,01-Oct-2014,2799733-XL124702,652.26,PARK ELECTRICAL DISTRIBUTORS LTD.
Neighbourhood Services,Technical Services,Stock,926900,Stock in hand-Inventory system,01-Oct-2014,2799733-XL124877,698.90,PARK ELECTRICAL DISTRIBUTORS LTD.
Neighbourhood Services,Direct Services,Third Party Payments,430100,Rendered by Private Contractors,01-Oct-2014,2799743-900680588,"3,675.00",PORTAKABIN LTD.
Neighbourhood Services,Direct Services,Supplies and Services,384194,Miscellaneous Expenses,01-Oct-2014,2799748-461755,"17,813.08",PREMIER WASTE RECYCLING LTD.
Neighbourhood Services,Technical Services,Third Party Payments,430100,Rendered by Private Contractors,01-Oct-2014,2799750-69906,"1,100.00",PROTECTOR SECURITY GROUP LTD.
Neighbourhood Services,Culture & Sport,Supplies and Services,338078,Services,01-Oct-2014,2799750-69907,500.00,PROTECTOR SECURITY GROUP LTD.
Neighbourhood Services,Direct Services,Third Party Payments,430100,Rendered by Private Contractors,01-Oct-2014,2799750-69909,542.86,PROTECTOR SECURITY GROUP LTD.
Neighbourhood Services,Direct Services,Third Party Payments,430100,Rendered by Private Contractors,01-Oct-2014,2799750-69983,"2,383.26",PROTECTOR SECURITY GROUP LTD.
Neighbourhood Services,Direct Services,Third Party Payments,430100,Rendered by Private Contractors,01-Oct-2014,2799750-69984,"4,443.93",PROTECTOR SECURITY GROUP LTD.
Neighbourhood Services,Technical Services,Supplies and Services,304221,Equipment and Materials,01-Oct-2014,2799751-220583,"1,034.32",PUDSEY DIAMOND ENGINEERING LTD.
Neighbourhood Services,Technical Services,Third Party Payments,430100,Rendered by Private Contractors,01-Oct-2014,2799755-2580/140855,"21,714.11",RAINTON CONSTRUCTION LTD.
Neighbourhood Services,Technical Services,Third Party Payments,430100,Rendered by Private Contractors,01-Oct-2014,2799755-2580/140907,"12,731.18",RAINTON CONSTRUCTION LTD.
Neighbourhood Services,Technical Services,Stock,926900,Stock in hand-Inventory system,01-Oct-2014,2799760-42705,645.00,RIGHT OFFICE INTERIORS LTD.
Neighbourhood Services,Direct Services,Third Party Payments,430100,Rendered by Private Contractors,01-Oct-2014,2799764-27071,"2,444.00",RJ UTILITY SERVICES LTD.
Neighbourhood Services,Direct Services,Third Party Payments,430100,Rendered by Private Contractors,01-Oct-2014,2799764-27073,"1,310.00",RJ UTILITY SERVICES LTD.
Neighbourhood Services,Direct Services,Third Party Payments,430100,Rendered by Private Contractors,01-Oct-2014,2799764-27074,768.00,RJ UTILITY SERVICES LTD.
Neighbourhood Services,Culture & Sport,Supplies and Services,340001,Postages,01-Oct-2014,2799769-9047762249,"1,120.99",ROYAL MAIL GROUP PLC.
Neighbourhood Services,Culture & Sport,Supplies and Services,340001,Postages,01-Oct-2014,2799769-9047991684,655.01,ROYAL MAIL GROUP PLC.
Neighbourhood Services,Direct Services,Transport,210057,Repair and Maintenance of Vehicles,01-Oct-2014,2799773-00260897,"4,157.47",S JENNINGS LTD.
Neighbourhood Services,Technical Services,Supplies and Services,304358,Equipment and Materials,01-Oct-2014,2799781-2014063,"1,558.75",SHIREHAVEN LTD.
Neighbourhood Services,Technical Services,Supplies and Services,304358,Equipment and Materials,01-Oct-2014,2799781-2014064,"1,143.75",SHIREHAVEN LTD.
Neighbourhood Services,Culture & Sport,Supplies and Services,384199,Miscellaneous Expenses,01-Oct-2014,2799783-105260,"1,220.00",SHOWSEC INTERNATIONAL LTD.
Neighbourhood Services,Culture & Sport,Premises,145023,Cleaning and Domestic Supplies,01-Oct-2014,2799785-268455,870.70,SIS CHEMICALS.
Neighbourhood Services,Technical Services,Stock,926900,Stock in hand-Inventory system,01-Oct-2014,2799786-185001,"2,830.00",SNAPFAST.
Neighbourhood Services,Direct Services,Stock,926004,Stock,01-Oct-2014,2799788-1568499,505.12,SPALDINGS (UK) LTD.
Neighbourhood Services,Technical Services,Stock,926900,Stock in hand-Inventory system,01-Oct-2014,2799802-46/868662,748.20,SUPPLY UK.
Neighbourhood Services,Direct Services,Supplies and Services,304221,Equipment and Materials,01-Oct-2014,2799805-1313417,"9,686.74",T CROSSLING & CO LTD.
Neighbourhood Services,Culture & Sport,Supplies and Services,384199,Miscellaneous Expenses,01-Oct-2014,2799807-60438667,"34,260.00",TAMESIDE MBC.
Neighbourhood Services,Technical Services,Stock,926900,Stock in hand-Inventory system,01-Oct-2014,2799820-N/IN130125,531.08,THOMAS OWEN & SONS (NEWCASTLE) LTD.
Neighbourhood Services,Technical Services,Stock,926900,Stock in hand-Inventory system,01-Oct-2014,2799820-N/IN130148,796.00,THOMAS OWEN & SONS (NEWCASTLE) LTD.
Neighbourhood Services,Technical Services,Stock,926900,Stock in hand-Inventory system,01-Oct-2014,2799820-N/IN130456,"1,439.65",THOMAS OWEN & SONS (NEWCASTLE) LTD.
Neighbourhood Services,Technical Services,Stock,926900,Stock in hand-Inventory system,01-Oct-2014,2799820-N/IN130471,"1,075.78",THOMAS OWEN & SONS (NEWCASTLE) LTD.
Neighbourhood Services,Culture & Sport,Supplies and Services,338099,Services,01-Oct-2014,2799834-5142,"1,018.80",VORTEX LIGHTING LTD.
Neighbourhood Services,Technical Services,Supplies and Services,304221,Equipment and Materials,01-Oct-2014,2799836-17245,"1,134.00",WARD TIMBER LTD.
Neighbourhood Services,Direct Services,Transport,230005,Contract Hire,01-Oct-2014,2799838-64355,679.40,WARREN ACCESS LTD.
Neighbourhood Services,Technical Services,Stock,926900,Stock in hand-Inventory system,01-Oct-2014,2799846-36746,600.00,WILLOWCRETE MFG CO LTD.
Neighbourhood Services,Direct Services,Third Party Payments,430100,Rendered by Private Contractors,01-Oct-2014,2799846-36767,"4,781.56",WILLOWCRETE MFG CO LTD.
Neighbourhood Services,Technical Services,Supplies and Services,304221,Equipment and Materials,01-Oct-2014,2799847-311303,511.70,WM SMITH & SONS (BARNARD CASTLE) LTD.
Neighbourhood Services,Direct Services,Supplies and Services,304221,Equipment and Materials,01-Oct-2014,2799848-15424091,544.01,WOLSELEY UK LTD.
Neighbourhood Services,Technical Services,Stock,926900,Stock in hand-Inventory system,01-Oct-2014,2799848-15554318,"1,008.09",WOLSELEY UK LTD.
Neighbourhood Services,Culture & Sport,Supplies and Services,304259,Equipment and Materials,01-Oct-2014,2799849-4308,536.00,WOODCRAFT UK.
Neighbourhood Services,Direct Services,Third Party Payments,430100,Rendered by Private Contractors,01-Oct-2014,2799851-32238,"4,356.16",YWC GROUP LTD.
RED HRA,HRA Capital,Construction Work,908105,Construction work,01-Oct-2014,2799540-203391,"24,606.25",COAST & COUNTRY HOUSING LTD.
RED HRA,HRA Capital,Construction Work,908105,Construction work,01-Oct-2014,2799540-206581,"7,760.75",COAST & COUNTRY HOUSING LTD.
RED HRA,HRA Capital,Construction Work,908105,Construction work,01-Oct-2014,2799540-206582,"3,237.48",COAST & COUNTRY HOUSING LTD.
RED HRA,HRA Centrally Managed,Premises,150005,Apportioned Exps of Operational Blds,01-Oct-2014,2799553-30001390,"10,847.10",DALE & VALLEY HOMES.
RED HRA,Housing Revenue Account,Supplies and Services,358001,Housing Revenue Account,01-Oct-2014,2799553-80001892,"1,378,500.00",DALE & VALLEY HOMES.
RED HRA,Housing Revenue Account,Supplies and Services,358001,Housing Revenue Account,01-Oct-2014,2799553-80001893,"138,875.00",DALE & VALLEY HOMES.
RED HRA,Housing Revenue Account,Supplies and Services,358001,Housing Revenue Account,01-Oct-2014,2799553-80001894,"21,250.00",DALE & VALLEY HOMES.
RED HRA,HRA Capital,Construction Work,908105,Construction work,01-Oct-2014,2799559-206275,"129,743.76",DEERNESS FENCING LTD.
RED HRA,Housing Revenue Account,Premises,105013,HRA Repair & Maintenance,01-Oct-2014,2799560-205768,"1,514.27",DELTA ELECTRICAL & MECHANICAL SERVICES.
RED HRA,Housing Revenue Account,Premises,105013,HRA Repair & Maintenance,01-Oct-2014,2799560-206634,"1,777.76",DELTA ELECTRICAL & MECHANICAL SERVICES.
RED HRA,HRA Capital,Construction Work,908105,Construction work,01-Oct-2014,2799582-RED-09-2014-168,537.41,ENERGY ASSETS LTD.
RED HRA,HRA Capital,Construction Work,908105,Construction work,01-Oct-2014,2799778-77607,840.00,SGS MIS ENVIRONMENTAL LTD.
RED HRA,HRA Capital,Construction Work,908105,Construction work,01-Oct-2014,2799839-B50370-4,"256,181.95",WATES CONSTRUCTION LTD.
RED HRA,HRA Capital,Construction Work,908105,Construction work,01-Oct-2014,2799839-B50371-3,"81,237.99",WATES CONSTRUCTION LTD.
RED HRA,HRA Capital,Construction Work,908105,Construction work,01-Oct-2014,2799839-B50382-12,"1,222.23",WATES CONSTRUCTION LTD.
RED HRA,HRA Capital,Construction Work,908105,Construction work,01-Oct-2014,2799839-B50383-12,"2,318.12",WATES CONSTRUCTION LTD.
RED HRA,HRA Capital,Construction Work,908105,Construction work,01-Oct-2014,2799839-B50384-8,"81,014.70",WATES CONSTRUCTION LTD.
RED HRA,HRA Capital,Construction Work,908105,Construction work,01-Oct-2014,2799839-B50385-8,"321,851.35",WATES CONSTRUCTION LTD.
RED HRA,HRA Capital,Construction Work,908105,Construction work,01-Oct-2014,2799839-B50386-7,"11,288.37",WATES CONSTRUCTION LTD.
RED HRA,HRA Capital,Construction Work,908105,Construction work,01-Oct-2014,2799839-B50387-5,"50,371.27",WATES CONSTRUCTION LTD.
RED HRA,HRA Capital,Construction Work,908105,Construction work,01-Oct-2014,2799839-B50399-5,"25,838.73",WATES CONSTRUCTION LTD.
RED HRA,HRA Capital,Construction Work,908105,Construction work,01-Oct-2014,2799839-B50401-3,"52,522.55",WATES CONSTRUCTION LTD.
RED HRA,HRA Capital,Construction Work,908105,Construction work,01-Oct-2014,2799851-32183,936.24,YWC GROUP LTD.
RED HRA,HRA Capital,Construction Work,908105,Construction work,01-Oct-2014,2799851-32184,"5,249.80",YWC GROUP LTD.
RED HRA,HRA Capital,Construction Work,908105,Construction work,01-Oct-2014,2799851-32185,975.74,YWC GROUP LTD.
RED HRA,HRA Capital,Construction Work,908105,Construction work,01-Oct-2014,2799851-32187,643.91,YWC GROUP LTD.
RED HRA,HRA Capital,Construction Work,908105,Construction work,01-Oct-2014,2799851-32240,"2,564.61",YWC GROUP LTD.
Regeneration & Economic Development,Transport and Contracted Services,Third Party Payments,430100,Rendered by Private Contractors,01-Oct-2014,234756-CONCFARE-SEP14,722.04,CUMBRIA CLASSIC COACHES.
Regeneration & Economic Development,Economic Development and Housing,Cap Exp on Grants & Other Financial Assistance (REFCUS),918401,Capital grants,01-Oct-2014,2799485-RED-09-2014-114,"3,552.00",ACORN PLUMBING & HEATING SERVICES LTD.
Regeneration & Economic Development,Economic Development and Housing,Construction Work,908105,Construction work,01-Oct-2014,2799490-28200756,"4,120.90",AECOM LTD.
Regeneration & Economic Development,Transport and Contracted Services,Third Party Payments,430100,Rendered by Private Contractors,01-Oct-2014,2799503-CONCFARE-SEP14,"727,358.00",ARRIVA DURHAM COUNTY LTD.
Regeneration & Economic Development,Transport and Contracted Services,Supplies and Services,384899,Miscellaneous Expenses,01-Oct-2014,2799513-RED-09-2014-103,"1,047.00",BELMONT PARISH COUNCIL.
Regeneration & Economic Development,Transport and Contracted Services,Supplies and Services,384899,Miscellaneous Expenses,01-Oct-2014,2799513-RED-09-2014-104,984.00,BELMONT PARISH COUNCIL.
Regeneration & Economic Development,Transport and Contracted Services,Supplies and Services,384899,Miscellaneous Expenses,01-Oct-2014,2799520-RED-09-2014-101,720.00,BRANDON & BYSHOTTLES PARISH COUNCIL.
Regeneration & Economic Development,Economic Development and Housing,Cap Exp on Grants & Other Financial Assistance (REFCUS),918401,Capital grants,01-Oct-2014,2799549-RED-07-2014-108,"3,225.44",CUMMINGS CONTRACTORS.
Regeneration & Economic Development,Transport and Contracted Services,Supplies and Services,384899,Miscellaneous Expenses,01-Oct-2014,2799569-RED-09-2014-106,"30,000.00",DURHAM CITY SHOPMOBILITY.
Regeneration & Economic Development,Spatial Policy Planning Assets & Environment,Supplies and Services,338066,Services,01-Oct-2014,2799572-RED-09-2014-098,"7,030.00",DURHAM UNIVERSITY.
Regeneration & Economic Development,Transport and Contracted Services,Third Party Payments,430100,Rendered by Private Contractors,01-Oct-2014,2799603-CONCFARE-SEP14,"787,808.00",GO NORTH EAST LTD.
Regeneration & Economic Development,Transport and Contracted Services,Third Party Payments,430100,Rendered by Private Contractors,01-Oct-2014,2799606-CONCFARE-SEP14,776.52,GRAHAMS MOTOR SERVICES.
Regeneration & Economic Development,Transport and Contracted Services,Third Party Payments,430100,Rendered by Private Contractors,01-Oct-2014,2799622-CONCFARE-SEP14,955.36,HODGSONS COACH OPERATORS LTD.
Regeneration & Economic Development,Transport and Contracted Services,Third Party Payments,430100,Rendered by Private Contractors,01-Oct-2014,2799628-CONCFARE-SEP14,"5,236.90",HUNTER BROTHERS (TANTOBIE) LTD.
Regeneration & Economic Development,Transport and Contracted Services,Third Party Payments,430100,Rendered by Private Contractors,01-Oct-2014,2799645-CONCFARE-SEP14,"7,477.62",JOHN JAMES BRUNSKILL.
Regeneration & Economic Development,Economic Development and Housing,Cap Exp on Grants & Other Financial Assistance (REFCUS),918401,Capital grants,01-Oct-2014,2799672-RES-09-2014-107,"3,814.00",LORMOR & HALL CONSTRUCTION.
Regeneration & Economic Development,Transport and Contracted Services,Supplies and Services,336005,Advertising,01-Oct-2014,2799686-54319,"1,005.00",MERCHANDISE MANIA LTD.
Regeneration & Economic Development,Economic Development and Housing,Supplies and Services,384899,Miscellaneous Expenses,01-Oct-2014,2799708-55,750.00,NEWCASTLE SCIENCE TRADING COMPANY LTD.
Regeneration & Economic Development,Spatial Policy Planning Assets & Environment,Supplies and Services,336005,Advertising,01-Oct-2014,2799709-5739737,"1,251.88",NEWSQUEST (YORKSHIRE & NORTH EAST) LTD.
Regeneration & Economic Development,Spatial Policy Planning Assets & Environment,Supplies and Services,336005,Advertising,01-Oct-2014,2799709-5766588,500.32,NEWSQUEST (YORKSHIRE & NORTH EAST) LTD.
Regeneration & Economic Development,Transport and Contracted Services,Third Party Payments,430100,Rendered by Private Contractors,01-Oct-2014,2799720-CONCFARE-SEP14B,"4,881.47",NORTHERN RAIL LTD.
Regeneration & Economic Development,Transport and Contracted Services,Third Party Payments,430100,Rendered by Private Contractors,01-Oct-2014,2799775-CONCFARE-SEP14,"11,106.80",SB TRAVEL.
Regeneration & Economic Development,Transport and Contracted Services,Third Party Payments,430100,Rendered by Private Contractors,01-Oct-2014,2799776-CONCFARE-SEP14,"17,624.98",SCARLET BAND BUS & COACH LTD.
Regeneration & Economic Development,Transport and Contracted Services,Third Party Payments,430100,Rendered by Private Contractors,01-Oct-2014,2799794-CONCFARE-SEP14,"2,105.23",STANLEY TRAVEL (NORTH EAST) LTD.
Regeneration & Economic Development,Economic Development and Housing,Supplies and Services,384700,Miscellaneous Expenses,01-Oct-2014,2799800-RED-09-2014-090,"1,000.00",SUCCESS NORTH EAST COMMUNITY INTEREST COMPANY (CIC).
Regeneration & Economic Development,Economic Development and Housing,Supplies and Services,384700,Miscellaneous Expenses,01-Oct-2014,2799816-RED-09-2014-089,725.00,THE FAMILY COBBLER.
Regeneration & Economic Development,Economic Development and Housing,Cap Exp on Grants & Other Financial Assistance (REFCUS),918401,Capital grants,01-Oct-2014,2799824-RED-09-2014-110,"1,500.48",THYSSENKRUPP ENCASA A DIVISION OF THYSSENKRUPP ACCESS LTD.
Regeneration & Economic Development,Economic Development and Housing,Supplies and Services,364320,Grants to Voluntary Organisations,01-Oct-2014,2799832-COLE/REEDS.,805.00,TYNE MANAGEMENT LTD.
Regeneration & Economic Development,Transport and Contracted Services,Third Party Payments,430100,Rendered by Private Contractors,01-Oct-2014,2799843-CONCFARE-SEP14,"1,610.16",WEARDALE MOTOR SERVICES LTD.
Regeneration & Economic Development,Transport and Contracted Services,Third Party Payments,430100,Rendered by Private Contractors,01-Oct-2014,2799843-CONCFARE-SEP14B,"25,231.89",WEARDALE MOTOR SERVICES LTD.
Resources,I.C.T. Services,Supplies and Services,308011,Furniture,01-Oct-2014,2799494-149805,650.00,ALBANY CONTRACT FURNITURE.
Resources,Centrally Administered Costs,Third Party Payments,440999,Other Third Party Payments,01-Oct-2014,2799538,"84,000.00",CIVICA UK LTD.
Resources,I.C.T. Services,Supplies and Services,332029,Printing Stationery and Gen Off Exps,01-Oct-2014,2799581-123916,"3,498.00",ENCORE ENVELOPES LTD.
Resources,I.C.T. Services,Supplies and Services,340001,Postages,01-Oct-2014,2799769-9048089763,"15,751.74",ROYAL MAIL GROUP PLC.
Resources,Human Resources,Employees,040149,Recruitment Instruction and Training,01-Oct-2014,2799780-INV3167,900.00,SHIELDS VOCATIONAL TRAINING LTD.
Resources,I.C.T. Services,Supplies and Services,342051,Computers and Communications,01-Oct-2014,2799787-INV01013422,775.00,SOFTCAT LTD.
Resources,I.C.T. Services,Supplies and Services,384956,Miscellaneous Expenses,01-Oct-2014,2799787-INV01015808,"2,229.50",SOFTCAT LTD.
Resources,Financial Services,Supplies and Services,384199,Miscellaneous Expenses,01-Oct-2014,2799797-90428948,"4,435.00",STOCKPORT MBC.
Resources,Financial Services,Supplies and Services,384199,Miscellaneous Expenses,01-Oct-2014,2799797-90428949,"4,435.00",STOCKPORT MBC.
Resources,I.C.T. Services,Stock,926900,Stock in hand-Inventory system,01-Oct-2014,2799833-2350415,"2,160.00",VIGLEN LTD.
Resources,I.C.T. Services,Stock,926900,Stock in hand-Inventory system,01-Oct-2014,2799850-W240702,688.00,XMA LTD.
Children and Adult Services,Childrens Services,Supplies and Services,384638,Miscellaneous Expenses,02-Oct-2014,2800228-0000019056,"1,118.25",NORTH EAST AUTISM SOCIETY.
Children and Adult Services,Childrens Services,Supplies and Services,384638,Miscellaneous Expenses,02-Oct-2014,2800228-0000019057,992.25,NORTH EAST AUTISM SOCIETY.
Children and Adult Services,Childrens Services,Supplies and Services,384638,Miscellaneous Expenses,02-Oct-2014,2800228-0000019059,"1,212.75",NORTH EAST AUTISM SOCIETY.
Children and Adult Services,Childrens Services,Supplies and Services,384638,Miscellaneous Expenses,02-Oct-2014,2800228-0000019060,819.00,NORTH EAST AUTISM SOCIETY.
Children and Adult Services,Childrens Services,Supplies and Services,384638,Miscellaneous Expenses,02-Oct-2014,2800228-0000019070,"2,866.50",NORTH EAST AUTISM SOCIETY.
Children and Adult Services,Childrens Services,Supplies and Services,384638,Miscellaneous Expenses,02-Oct-2014,2800228-0000019071,551.25,NORTH EAST AUTISM SOCIETY.
Children and Adult Services,Childrens Services,Supplies and Services,384638,Miscellaneous Expenses,02-Oct-2014,2800228-0000019072,"6,095.25",NORTH EAST AUTISM SOCIETY.
Children and Adult Services,Childrens Services,Third Party Payments,425040,Rendered by Voluntary Organisations,02-Oct-2014,2799867-R31INV/00013650,"3,080.00",ACTION FOR CHILDREN.
Children and Adult Services,Childrens Services,Third Party Payments,425040,Rendered by Voluntary Organisations,02-Oct-2014,2800221-1800007107564,"2,897.26",NEWCASTLE UPON TYNE CITY COUNCIL.
Children and Adult Services,Childrens Services,Supplies and Services,338044,Services,02-Oct-2014,2800199-RES-09-2014-045,726.75,MR PG RICHARDS.
Children and Adult Services,Childrens Services,Supplies and Services,338091,Services,02-Oct-2014,2800243-19627,675.00,ONE AWARDS.
Children and Adult Services,Commissioning inc Supporting People,Transport,240045,Car Allowances,02-Oct-2014,2800335-3809,"12,484.14",SOCIAL RESOURCE CENTRE LTD.
Dedicated Schools Grant,Dedicated Schools Grant,Transport,230005,Contract Hire,02-Oct-2014,2800184-INV-57,"1,260.00",MICHAEL COBB (T/A HAIL TAXIS).
Children and Adult Services,Education,Transport,230007,Contract Hire,02-Oct-2014,2800354-5309A,"1,351.68",T MOORE & SON.
Children and Adult Services,Education,Transport,230007,Contract Hire,02-Oct-2014,2800369-205311,"2,170.00",TGM GROUP LTD T/A CLASSIC COACHES (CONTINENTAL) LTD.
Children and Adult Services,Education,Third Party Payments,440999,Other Third Party Payments,02-Oct-2014,2800146-SIN000417,"11,737.60",LEARNING CURVE (JAA) LTD.
Children and Adult Services,Head of Adults,Transport,230005,Contract Hire,02-Oct-2014,2800151-3053,672.00,LINCAB TAXIS.
Children and Adult Services,Head of Adults,Transport,230005,Contract Hire,02-Oct-2014,2800196-2014-25,"2,200.00",MR D KEMP T/A ACE EXECUTIVE.
Children and Adult Services,Head of Adults,Supplies and Services,304259,Equipment and Materials,02-Oct-2014,2799873-26DORMANDCOURT,799.00,AH & D CUTHBERTSON LTD.
Children and Adult Services,Head of Adults,Third Party Payments,478101,Purchase of Care,02-Oct-2014,2799967-421R88829,"1,129.62",COMMUNITY INTEGRATED CARE LTD.
Children and Adult Services,Head of Adults,Transfer Payments,515201,Social Services Clients,02-Oct-2014,2799865-CAS-09-2014-289,"1,734.00",REDACTED - PAYMENT TO INDIVIDUAL
Children and Adult Services,Public Health,Third Party Payments,460803,Contract Payments,02-Oct-2014,2800300-FL345/0814,574.00,ROBERTS & ROBERTS LTD T/A HIGGINBOTTOM PHARMACY.
Neighbourhood Services,Technical Services,Supplies and Services,304221,Equipment and Materials,02-Oct-2014,2799859-003185,"1,765.17",A HILL & SONS LTD.
Neighbourhood Services,Technical Services,Third Party Payments,430100,Rendered by Private Contractors,02-Oct-2014,2799860-001342,"4,158.00",A PARRY MOBILE WELDING & FABRICATION.
Neighbourhood Services,Technical Services,Third Party Payments,430100,Rendered by Private Contractors,02-Oct-2014,2799860-001343,"4,158.00",A PARRY MOBILE WELDING & FABRICATION.
Neighbourhood Services,Direct Services,Supplies and Services,304221,Equipment and Materials,02-Oct-2014,2799929-1650/0571590,"3,221.08",BSS GROUP PLC.
Neighbourhood Services,Direct Services,Supplies and Services,304221,Equipment and Materials,02-Oct-2014,2799930-1650/0576996,946.54,BSS GROUP PLC.
Neighbourhood Services,Direct Services,Supplies and Services,304221,Equipment and Materials,02-Oct-2014,2799930-1650/0576997,728.52,BSS GROUP PLC.
Neighbourhood Services,Direct Services,Supplies and Services,304221,Equipment and Materials,02-Oct-2014,2799930-1650/0599413,"1,283.70",BSS GROUP PLC.
Neighbourhood Services,Direct Services,Supplies and Services,304221,Equipment and Materials,02-Oct-2014,2799930-1650/0599416,"1,182.82",BSS GROUP PLC.
Neighbourhood Services,Direct Services,Supplies and Services,304221,Equipment and Materials,02-Oct-2014,2799930-1650/0668294,744.55,BSS GROUP PLC.
Neighbourhood Services,Technical Services,Construction Work,908105,Construction work,02-Oct-2014,2799939-INS2-SEAHAM,"170,166.79",CARILLION CONSTRUCTION LTD T/A CARILLION CIVIL ENGINEERING.
Neighbourhood Services,Direct Services,Third Party Payments,430100,Rendered by Private Contractors,02-Oct-2014,2799946-902754,"1,309.00",CDS SECURITY LTD.
Neighbourhood Services,Culture & Sport,Supplies and Services,338066,Services,02-Oct-2014,2799952-701,"1,558.00",CHRISTOPHER HENRY T/A WILDWOOD CUMBRIA.
Neighbourhood Services,Technical Services,Third Party Payments,430100,Rendered by Private Contractors,02-Oct-2014,2799980-15868,"5,870.89",COUPE LINE LTD.
Neighbourhood Services,Culture & Sport,Supplies and Services,338047,Services,02-Oct-2014,2800002-1342,"3,750.00",DEREK BLOCK ARTISTES AGENCY LTD.
Neighbourhood Services,Technical Services,Supplies and Services,304252,Equipment and Materials,02-Oct-2014,2800050-006017632,502.54,GAP GROUP LTD.
Neighbourhood Services,Technical Services,Stock,926900,Stock in hand-Inventory system,02-Oct-2014,2800062-06/522510,"1,739.15",GREENHAM TRADING LTD.
Neighbourhood Services,Technical Services,Stock,926900,Stock in hand-Inventory system,02-Oct-2014,2800062-06/526208,"1,448.63",GREENHAM TRADING LTD.
Neighbourhood Services,Technical Services,Stock,926900,Stock in hand-Inventory system,02-Oct-2014,2800062-06/526554,"1,866.56",GREENHAM TRADING LTD.
Neighbourhood Services,Technical Services,Stock,926900,Stock in hand-Inventory system,02-Oct-2014,2800062-06/526555,785.92,GREENHAM TRADING LTD.
Neighbourhood Services,Culture & Sport,Supplies and Services,338099,Services,02-Oct-2014,2800077-HBBATH34,700.00,HILARITY BITES COMEDY CLUB.
Neighbourhood Services,Technical Services,Stock,926900,Stock in hand-Inventory system,02-Oct-2014,2800092-460762,"2,356.48",INSTARMAC GROUP PLC.
Neighbourhood Services,Direct Services,Third Party Payments,430100,Rendered by Private Contractors,02-Oct-2014,2800099-2515,"1,521.45",JAMES INGLEFORD SCAFFOLDING LTD.
Neighbourhood Services,Direct Services,Third Party Payments,430100,Rendered by Private Contractors,02-Oct-2014,2800099-2516,"12,240.42",JAMES INGLEFORD SCAFFOLDING LTD.
Neighbourhood Services,Direct Services,Third Party Payments,430100,Rendered by Private Contractors,02-Oct-2014,2800099-2519,"1,927.60",JAMES INGLEFORD SCAFFOLDING LTD.
Neighbourhood Services,Direct Services,Third Party Payments,430100,Rendered by Private Contractors,02-Oct-2014,2800099-2547,826.12,JAMES INGLEFORD SCAFFOLDING LTD.
Neighbourhood Services,Direct Services,Third Party Payments,430100,Rendered by Private Contractors,02-Oct-2014,2800099-2551,"1,449.62",JAMES INGLEFORD SCAFFOLDING LTD.
Neighbourhood Services,Direct Services,Third Party Payments,430100,Rendered by Private Contractors,02-Oct-2014,2800099-2552,"1,938.44",JAMES INGLEFORD SCAFFOLDING LTD.
Neighbourhood Services,Technical Services,Supplies and Services,304221,Equipment and Materials,02-Oct-2014,2800111-00091629,"4,390.96",JOBLING PURSER LTD.
Neighbourhood Services,Technical Services,Supplies and Services,304221,Equipment and Materials,02-Oct-2014,2800111-00092493,"4,390.96",JOBLING PURSER LTD.
Neighbourhood Services,Technical Services,Supplies and Services,304221,Equipment and Materials,02-Oct-2014,2800115-NI025604,"11,340.87",JOHN MACLEAN & SONS ELECTRICAL (DINGWALL) LTD.
Neighbourhood Services,Technical Services,Third Party Payments,430100,Rendered by Private Contractors,02-Oct-2014,2800139-INV00533548,"2,659.50",LANES GROUP PLC.
Neighbourhood Services,Direct Services,Third Party Payments,430100,Rendered by Private Contractors,02-Oct-2014,2800157-2124,703.00,LMC ELECTRICAL SERVICES T/A LMC ELECTRICAL & STAIRLIFT SERVICES LTD.
Neighbourhood Services,Direct Services,Premises,115125,Repairs to Grounds,02-Oct-2014,2800171-827/035427,721.51,MAGNET LTD.
Neighbourhood Services,EnvironmentHealth & Consumer Protection,Supplies and Services,384999,Miscellaneous Expenses,02-Oct-2014,2800182-RES-09-2014-104,"4,469.00",MCGARRY & CO SOLICITORS.
Neighbourhood Services,Technical Services,Stock,926900,Stock in hand-Inventory system,02-Oct-2014,2800183-001/108047,918.00,MH SOUTHERN & CO LTD.
Neighbourhood Services,Culture & Sport,Supplies and Services,324117,Provisions,02-Oct-2014,2800250-22/2017438,511.64,PALMER & HARVEY MCLANE LTD.
Neighbourhood Services,Direct Services,Third Party Payments,430100,Rendered by Private Contractors,02-Oct-2014,2800252-322,526.24,PARAMOUNT CEILINGS & PARTITIONS.
Neighbourhood Services,Direct Services,Third Party Payments,430100,Rendered by Private Contractors,02-Oct-2014,2800252-326,"4,361.73",PARAMOUNT CEILINGS & PARTITIONS.
Neighbourhood Services,Direct Services,Third Party Payments,430100,Rendered by Private Contractors,02-Oct-2014,2800252-331,"2,944.00",PARAMOUNT CEILINGS & PARTITIONS.
Neighbourhood Services,Direct Services,Third Party Payments,430100,Rendered by Private Contractors,02-Oct-2014,2800252-333,"3,666.54",PARAMOUNT CEILINGS & PARTITIONS.
Neighbourhood Services,Direct Services,Third Party Payments,430100,Rendered by Private Contractors,02-Oct-2014,2800252-334,"1,943.55",PARAMOUNT CEILINGS & PARTITIONS.
Neighbourhood Services,Direct Services,Third Party Payments,430100,Rendered by Private Contractors,02-Oct-2014,2800252-336,953.56,PARAMOUNT CEILINGS & PARTITIONS.
Neighbourhood Services,Direct Services,Third Party Payments,430100,Rendered by Private Contractors,02-Oct-2014,2800252-352,"2,190.00",PARAMOUNT CEILINGS & PARTITIONS.
Neighbourhood Services,Direct Services,Supplies and Services,304221,Equipment and Materials,02-Oct-2014,2800269-INV208286,"1,012.88",POINTER LTD.
Neighbourhood Services,Direct Services,Third Party Payments,430100,Rendered by Private Contractors,02-Oct-2014,2800271-900678751,"8,163.99",PORTAKABIN LTD.
Neighbourhood Services,Technical Services,Stock,926900,Stock in hand-Inventory system,02-Oct-2014,2800294-RSIN0111491,636.00,RIGBY TAYLOR LTD.
Neighbourhood Services,Projects and Business services,Third Party Payments,430111,Rendered by Private Contractors,02-Oct-2014,2800332-29405666,677.80,SITA UK LTD.
Neighbourhood Services,Direct Services,Supplies and Services,304221,Equipment and Materials,02-Oct-2014,2800353-1300382,"1,202.04",T CROSSLING & CO LTD.
Neighbourhood Services,Technical Services,Supplies and Services,304221,Equipment and Materials,02-Oct-2014,2800392-616022,734.90,TRAFFIC MANAGEMENT PRODUCTS LTD (TMP).
Neighbourhood Services,Direct Services,Third Party Payments,430100,Rendered by Private Contractors,02-Oct-2014,2800410-37930,"4,972.50",W MARLEY AGRICULTURAL CONTRACTORS LTD.
Neighbourhood Services,Direct Services,Third Party Payments,430100,Rendered by Private Contractors,02-Oct-2014,2800434-31991,"11,872.90",YWC GROUP LTD.
Neighbourhood Services,Direct Services,Third Party Payments,430100,Rendered by Private Contractors,02-Oct-2014,2800434-32045,"2,374.58",YWC GROUP LTD.
Neighbourhood Services,Direct Services,Third Party Payments,430100,Rendered by Private Contractors,02-Oct-2014,2800434-32079,"2,983.68",YWC GROUP LTD.
RED HRA,Housing Revenue Account,Supplies and Services,358001,Housing Revenue Account,02-Oct-2014,2800019-SINV/00003405,"1,726.48",EAST DURHAM HOMES.
RED HRA,HRA Capital,Construction Work,908105,Construction work,02-Oct-2014,2800019-SINV/00003454,"1,746.00",EAST DURHAM HOMES.
RED HRA,HRA Capital,Fees,901001,Internal fees,02-Oct-2014,2800019-SINV/00003467,"112,500.00",EAST DURHAM HOMES.
RED HRA,HRA Capital,Construction Work,908105,Construction work,02-Oct-2014,2800053-SIGN/00000304,"1,231.20",GENTOO CONSTRUCTION LTD.
RED HRA,HRA Capital,Construction Work,908105,Construction work,02-Oct-2014,2800053-SIGN/00000305,526.60,GENTOO CONSTRUCTION LTD.
RED HRA,Housing Revenue Account,Employees,040149,Recruitment Instruction and Training,02-Oct-2014,2800298-7140002792,544.01,RIVERSIDE EVENTS LLP.
RED HRA,HRA Capital,Construction Work,908105,Construction work,02-Oct-2014,2800384-I2014/203,660.00,TODD MILBURN PARTNERSHIP LTD.
RED HRA,HRA Capital,Construction Work,908105,Construction work,02-Oct-2014,2800384-I2014/204,"1,320.00",TODD MILBURN PARTNERSHIP LTD.
Regeneration & Economic Development,Spatial Policy Planning Assets & Environment,Supplies and Services,304259,Equipment and Materials,02-Oct-2014,2799871-UK10052483,"4,750.00",ADVENTURE NORTHUMBERLAND (RETAIL LTD).
Regeneration & Economic Development,Economic Development and Housing,Cap Exp on Grants & Other Financial Assistance (REFCUS),918401,Capital grants,02-Oct-2014,2800018-RED-09-2014-115,"2,160.40",EASIBATHE LTD.
Regeneration & Economic Development,Economic Development and Housing,Cap Exp on Grants & Other Financial Assistance (REFCUS),918401,Capital grants,02-Oct-2014,2800034-RED-09-2014-109,"2,945.00",F TIFFEN BUILDING SERVICES.
Regeneration & Economic Development,Economic Development and Housing,Cap Exp on Grants & Other Financial Assistance (REFCUS),918401,Capital grants,02-Oct-2014,2800034-RED-09-2014-111,"4,025.00",F TIFFEN BUILDING SERVICES.
Regeneration & Economic Development,Economic Development and Housing,Cap Exp on Grants & Other Financial Assistance (REFCUS),918401,Capital grants,02-Oct-2014,2800034-RED-09-2014-112,"2,895.00",F TIFFEN BUILDING SERVICES.
Regeneration & Economic Development,Economic Development and Housing,Cap Exp on Grants & Other Financial Assistance (REFCUS),918401,Capital grants,02-Oct-2014,2800034-RED-09-2014-113,"3,375.00",F TIFFEN BUILDING SERVICES.
Regeneration & Economic Development,Economic Development and Housing,Other Expenses,914001,Other capital expenses,02-Oct-2014,2800110-29,"1,100.00",JOAN H WHITE T/A WHITE`S ANTIQUES.
Regeneration & Economic Development,Economic Development and Housing,Supplies and Services,384700,Miscellaneous Expenses,02-Oct-2014,2800121-RED-09-2014-167,"1,000.00",JW WOOD HOMEMOVE PROPERTY MANAGEMENT LTD.
Regeneration & Economic Development,Transport and Contracted Services,Third Party Payments,430106,Rendered by Private Contractors,02-Oct-2014,2800124-13-SEPTEMBER-2014,"5,038.82",KEITH HAMMOND T/A FERRYHILL VILLAGE TRAVEL.
Regeneration & Economic Development,Economic Development and Housing,Cap Exp on Grants & Other Financial Assistance (REFCUS),918401,Capital grants,02-Oct-2014,2800168-RED-09-2014-006,"2,325.50",M & R DEVELOPMENTS & CONTRACTORS LTD..
Regeneration & Economic Development,Transport and Contracted Services,Supplies and Services,338099,Services,02-Oct-2014,2800275-130800,"11,000.00",PREMIER TRAFFIC MANAGEMENT LTD.
Regeneration & Economic Development,Economic Development and Housing,Supplies and Services,352001,Conference Expenses,02-Oct-2014,2800286-INV26744,508.33,RAMSIDE HALL HOTEL & GOLF CLUB.
Regeneration & Economic Development,Transport and Contracted Services,Third Party Payments,430100,Rendered by Private Contractors,02-Oct-2014,2800335-3810,955.32,SOCIAL RESOURCE CENTRE LTD.
Regeneration & Economic Development,Economic Development and Housing,Construction Work,908105,Construction work,02-Oct-2014,2800346-NE140761-1,"16,442.00",SUMMERS INMAN.
Regeneration & Economic Development,Economic Development and Housing,Other Expenses,914001,Other capital expenses,02-Oct-2014,2800376-281,"1,750.00",THE WITHAM.
Regeneration & Economic Development,Transport and Contracted Services,Supplies and Services,336005,Advertising,02-Oct-2014,2800386-146022,"2,355.00",TOTAL MERCHANDISE LTD.
Resources,Financial Services,Supplies and Services,364999,Grants to Voluntary Organisations,02-Oct-2014,2799953-CACD049,"58,998.00",CITIZENS ADVICE COUNTY DURHAM.
Resources,Financial Services,Supplies and Services,364999,Grants to Voluntary Organisations,02-Oct-2014,2799953-CACD055,"115,125.00",CITIZENS ADVICE COUNTY DURHAM.
Resources,I.C.T. Services,Supplies and Services,332029,Printing Stationery and Gen Off Exps,02-Oct-2014,2800135-1114438198,"1,699.11",KONICA MINOLTA BUSINESS SOLUTIONS (UK) LTD.
Resources,Legal & Democratic Services,Supplies and Services,340001,Postages,02-Oct-2014,2800302-6200388/00,"1,240.00",ROYAL MAIL GROUP PLC.
Children and Adult Services,Childrens Services,Supplies and Services,384638,Miscellaneous Expenses,03-Oct-2014,2800568-0000019073,661.50,NORTH EAST AUTISM SOCIETY.
Children and Adult Services,Childrens Services,Supplies and Services,384199,Miscellaneous Expenses,03-Oct-2014,2800604-02/2014,"3,640.76",SHOTTON & DISTRICT COMMUNITY ASSOCIATION.
Children and Adult Services,Childrens Services,Supplies and Services,324117,Provisions,03-Oct-2014,2800570-124776,"1,059.85",NORTH EAST VENDING LTD.
Children and Adult Services,Childrens Services,Transport,235073,Public Transport,03-Oct-2014,2800613-4230,500.00,STEPHEN MAUDE LTD T/A MAUDES COACHES.
Children and Adult Services,Childrens Services,Third Party Payments,479101,Purchase of Care,03-Oct-2014,2800478-3910004831,"4,125.59",CO DURHAM & DARLINGTON NHS FOUNDATION TRUST.
Children and Adult Services,Childrens Services,Third Party Payments,425040,Rendered by Voluntary Organisations,03-Oct-2014,2800623-22903,"3,514.29",TEAM FOSTERING.
Children and Adult Services,Childrens Services,Third Party Payments,486021,Service Level Agreements,03-Oct-2014,2800588-3021,703.50,REACH OUT CARE SUPPORT SERVICES LTD.
Children and Adult Services,Childrens Services,Third Party Payments,486021,Service Level Agreements,03-Oct-2014,2800588-3028,"1,596.88",REACH OUT CARE SUPPORT SERVICES LTD.
Children and Adult Services,Commissioning inc Supporting People,Transport,230005,Contract Hire,03-Oct-2014,2800540-1883,600.00,LOCAL TRANSPORT LTD.
Dedicated Schools Grant,Dedicated Schools Grant,Transport,230005,Contract Hire,03-Oct-2014,2800490-DCT01-14,"1,050.00",DUNCAN G CUMMINGS T/A DC TAXIS.
Dedicated Schools Grant,Dedicated Schools Grant,Transport,230005,Contract Hire,03-Oct-2014,2800635-62,"4,078.00",TRIDENT TAXIS.
Children and Adult Services,Education,Construction Work,908105,Construction work,03-Oct-2014,2800524-DURH/0538,"5,750.00",INSPIREDSPACES DURHAM LTD.
Children and Adult Services,Education,Construction Work,908105,Construction work,03-Oct-2014,2800524-DURH/0539,"1,250.00",INSPIREDSPACES DURHAM LTD.
Children and Adult Services,Education,Construction Work,908105,Construction work,03-Oct-2014,2800524-DURH/0540,"7,650.00",INSPIREDSPACES DURHAM LTD.
Children and Adult Services,Education,Construction Work,908105,Construction work,03-Oct-2014,2800524-DURH/0550,"15,900.00",INSPIREDSPACES DURHAM LTD.
Children and Adult Services,Education,Construction Work,908105,Construction work,03-Oct-2014,2800524-DURH/0551,"11,733.00",INSPIREDSPACES DURHAM LTD.
Children and Adult Services,Education,Construction Work,908105,Construction work,03-Oct-2014,2800524-DURH/0552,"9,354.00",INSPIREDSPACES DURHAM LTD.
Children and Adult Services,Education,Construction Work,908105,Construction work,03-Oct-2014,2800524-DURH/0553,"27,408.00",INSPIREDSPACES DURHAM LTD.
Children and Adult Services,Education,Construction Work,908105,Construction work,03-Oct-2014,2800524-DURH/0554,"1,180.00",INSPIREDSPACES DURHAM LTD.
Children and Adult Services,Education,Construction Work,908105,Construction work,03-Oct-2014,2800524-DURH/0558,"85,749.00",INSPIREDSPACES DURHAM LTD.
Children and Adult Services,Education,Construction Work,908105,Construction work,03-Oct-2014,2800649-497041126,602.02,YORKSHIRE PURCHASING ORGANISATION.
Children and Adult Services,Education,Transport,230008,Contract Hire,03-Oct-2014,2800485-4931,825.44,CROFT BUSINESS SERVICES (UK) LTD T/A CROFT TAXIS.
Children and Adult Services,Education,Transport,230008,Contract Hire,03-Oct-2014,2800620-09/2014/064,912.00,TARNS TAXIS LTD.
Children and Adult Services,Education,Transport,230007,Contract Hire,03-Oct-2014,2800643-CONS/JUL/14/3,"4,116.00",WEARDALE MOTOR SERVICES LTD.
Children and Adult Services,Education,Transport,230007,Contract Hire,03-Oct-2014,2800643-CONS/JUL/142,"2,366.00",WEARDALE MOTOR SERVICES LTD.
Children and Adult Services,Education,Transport,230007,Contract Hire,03-Oct-2014,2800643-CONS/JULY14/1,"2,354.80",WEARDALE MOTOR SERVICES LTD.
Children and Adult Services,Education,Transport,230008,Contract Hire,03-Oct-2014,2800643-PH/JUL/14,"3,495.80",WEARDALE MOTOR SERVICES LTD.
Children and Adult Services,Education,Third Party Payments,440999,Other Third Party Payments,03-Oct-2014,2800465-4THSTAGE9/9/14,"8,046.02",CDC ENTERPRISE AGENCY.
Children and Adult Services,Education,Supplies and Services,338027,Services,03-Oct-2014,2800515-INV000078,"12,000.00",HERMITAGE ACADEMY.
Children and Adult Services,Head of Adults,Supplies and Services,304516,Equipment and Materials,03-Oct-2014,2800459-9715/08,971.50,CABLES TAXI CONTRACTS.
Children and Adult Services,Head of Adults,Premises,108301,Service Repairs and Maintenance,03-Oct-2014,2800440-27698005-61,"1,700.00",ADT FIRE & SECURITY PLC.
Children and Adult Services,Planning & Service Strategy,Supplies and Services,338089,Services,03-Oct-2014,2800518-1356,900.00,HSF TRAINING LTD.
Children and Adult Services,Public Health,Third Party Payments,460803,Contract Payments,03-Oct-2014,2800605,560.00,SHOTTON PHARMACY.
Children and Adult Services,Public Health,Third Party Payments,460803,Contract Payments,03-Oct-2014,2800450-FA4158/0714/NRT,782.18,ASDA PHARMACY.
Assistant Chief Executive,Partnerships & Community Engagement Div.,Transfer Payments,525030,Other,03-Oct-2014,2800506-VOUCHER14AB,792.00,FRIENDSHIP WITH ART.
Neighbourhood Services,Direct Services,Supplies and Services,304221,Equipment and Materials,03-Oct-2014,2800438-1046598,660.24,A & A ELECTRICAL DISTRIBUTORS LTD.
Neighbourhood Services,Culture & Sport,Supplies and Services,308011,Furniture,03-Oct-2014,2800443-149160,590.00,ALBANY CONTRACT FURNITURE.
Neighbourhood Services,Direct Services,Supplies and Services,304221,Equipment and Materials,03-Oct-2014,2800461-851402558,"12,386.00",CARLISLE CONSTRUCTION MATERIALS LTD.
Neighbourhood Services,Direct Services,Supplies and Services,304259,Equipment and Materials,03-Oct-2014,2800467-3095671,"1,121.50",CERTAS ENERGY UK LTD.
Neighbourhood Services,Direct Services,Supplies and Services,304259,Equipment and Materials,03-Oct-2014,2800470-129923,"3,592.00",CHAS LONG & SON (AGGREGATES) LTD.
Neighbourhood Services,Direct Services,Third Party Payments,430100,Rendered by Private Contractors,03-Oct-2014,2800477-27,"6,540.63",CN WHITAKER.
Neighbourhood Services,Technical Services,Construction Work,908108,Capital - Surface Dressing,03-Oct-2014,2800483-10576,"1,504.99",COUPE LINE LTD.
Neighbourhood Services,Culture & Sport,Supplies and Services,384700,Miscellaneous Expenses,03-Oct-2014,2800486-NEI-EXP-10-2014-005,698.00,CROOK TOWN CRICKET CLUB.
Neighbourhood Services,Direct Services,Supplies and Services,304259,Equipment and Materials,03-Oct-2014,2800492-0000090426,"1,453.71",EARLEY ORNAMENTALS LTD.
Neighbourhood Services,Technical Services,Stock,926900,Stock in hand-Inventory system,03-Oct-2014,2800494-059-150417,849.44,EDMUNDSON ELECTRICAL LTD.
Neighbourhood Services,Technical Services,Stock,926900,Stock in hand-Inventory system,03-Oct-2014,2800494-059-150651,"1,290.96",EDMUNDSON ELECTRICAL LTD.
Neighbourhood Services,Direct Services,Third Party Payments,430100,Rendered by Private Contractors,03-Oct-2014,2800501-14843,885.00,F WARREN (ELECTRICAL) LTD.
Neighbourhood Services,Direct Services,Third Party Payments,430100,Rendered by Private Contractors,03-Oct-2014,2800511-0346/14,720.00,H BRADLEY.
Neighbourhood Services,Direct Services,Supplies and Services,304221,Equipment and Materials,03-Oct-2014,2800513-31978,507.82,HARRISON & SON LTD (MASTER LOCKSMITHS).
Neighbourhood Services,Direct Services,Supplies and Services,304221,Equipment and Materials,03-Oct-2014,2800514-4451491,"1,391.78",HEADLAM (FLOORCOVERING DISTRIBUTORS) LTD.
Neighbourhood Services,Direct Services,Supplies and Services,304221,Equipment and Materials,03-Oct-2014,2800514-4453620,588.55,HEADLAM (FLOORCOVERING DISTRIBUTORS) LTD.
Neighbourhood Services,Culture & Sport,Premises,155001,Insurance of Premises,03-Oct-2014,2800520-7435,"7,290.34",IMPALA ESTATES LTD.
Neighbourhood Services,Direct Services,Third Party Payments,430100,Rendered by Private Contractors,03-Oct-2014,2800534-14030008,"161,860.20",KIER SERVICES LTD.
Neighbourhood Services,Technical Services,Supplies and Services,304221,Equipment and Materials,03-Oct-2014,2800535-9031520545,899.36,LAFARGE TARMAC TRADING LTD.
Neighbourhood Services,Technical Services,Supplies and Services,304221,Equipment and Materials,03-Oct-2014,2800535-9031587752,845.15,LAFARGE TARMAC TRADING LTD.
Neighbourhood Services,Direct Services,Supplies and Services,304221,Equipment and Materials,03-Oct-2014,2800537-INV-5017370,"2,050.80",LINDAB LTD.
Neighbourhood Services,Direct Services,Supplies and Services,304221,Equipment and Materials,03-Oct-2014,2800537-INV-5041793,981.91,LINDAB LTD.
Neighbourhood Services,Technical Services,Third Party Payments,430100,Rendered by Private Contractors,03-Oct-2014,2800548-191,512.00,MICHAEL KELLY.
Neighbourhood Services,Direct Services,Supplies and Services,304221,Equipment and Materials,03-Oct-2014,2800565-131465615,"1,082.00",NEWEY & EYRE LTD.
Neighbourhood Services,Direct Services,Debtors,930046,Debtor-leasing,03-Oct-2014,2800569-226952,"63,208.00",NORTH EAST TRUCK & VAN LTD.
Neighbourhood Services,Direct Services,Third Party Payments,430100,Rendered by Private Contractors,03-Oct-2014,2800574-4691-001,719.27,OPUS BUILDING SERVICES LTD.
Neighbourhood Services,Direct Services,Third Party Payments,430100,Rendered by Private Contractors,03-Oct-2014,2800574-4691-002,"1,321.00",OPUS BUILDING SERVICES LTD.
Neighbourhood Services,Direct Services,Third Party Payments,430100,Rendered by Private Contractors,03-Oct-2014,2800574-4691-01,"150,792.00",OPUS BUILDING SERVICES LTD.
Neighbourhood Services,Direct Services,Third Party Payments,430100,Rendered by Private Contractors,03-Oct-2014,2800574-4691-02,"11,335.39",OPUS BUILDING SERVICES LTD.
Neighbourhood Services,Direct Services,Third Party Payments,430100,Rendered by Private Contractors,03-Oct-2014,2800574-4700-01,"73,464.50",OPUS BUILDING SERVICES LTD.
Neighbourhood Services,Direct Services,Supplies and Services,304221,Equipment and Materials,03-Oct-2014,2800576-BR504299,"1,594.37",PARK ELECTRICAL DISTRIBUTORS LTD.
Neighbourhood Services,Projects and Business services,Supplies and Services,340001,Postages,03-Oct-2014,2800595-9047905361,"1,749.93",ROYAL MAIL GROUP PLC.
Neighbourhood Services,Direct Services,Premises,108135,Service Repairs and Maintenance,03-Oct-2014,2800597-140708,775.25,SAFE & SURE FIRE PROTECTION LTD.
Neighbourhood Services,Technical Services,Third Party Payments,430100,Rendered by Private Contractors,03-Oct-2014,2800601-712,"1,332.00",SCHMUCK WHORLTON LTD.
Neighbourhood Services,Culture & Sport,Supplies and Services,338099,Services,03-Oct-2014,2800606-104730,"1,430.50",SHOWSEC INTERNATIONAL LTD.
Neighbourhood Services,Technical Services,Supplies and Services,304221,Equipment and Materials,03-Oct-2014,2800607-714517325558,810.80,SIG TRADING LTD.
Neighbourhood Services,Direct Services,Third Party Payments,430100,Rendered by Private Contractors,03-Oct-2014,2800608-7220,"30,763.46",SIGMA CATERING EQUIPMENT LTD.
Neighbourhood Services,Projects and Business services,Third Party Payments,430112,Rendered by Private Contractors,03-Oct-2014,2800609-29402385,"1,804.98",SITA UK LTD.
Neighbourhood Services,Direct Services,Supplies and Services,304221,Equipment and Materials,03-Oct-2014,2800618-1248395,658.00,T CROSSLING & CO LTD.
Neighbourhood Services,Technical Services,Supplies and Services,304221,Equipment and Materials,03-Oct-2014,2800630-24922,525.00,TODDS HIGHWAY MAINTENANCE LTD.
Neighbourhood Services,Direct Services,Supplies and Services,304221,Equipment and Materials,03-Oct-2014,2800634-29451,788.00,TOTAL PUMP SOLUTIONS LTD.
Neighbourhood Services,Technical Services,Supplies and Services,304221,Equipment and Materials,03-Oct-2014,2800641-37841,"1,400.00",W MARLEY AGRICULTURAL CONTRACTORS LTD.
Neighbourhood Services,Direct Services,Supplies and Services,304259,Equipment and Materials,03-Oct-2014,2800644-182,"1,152.00",WILF HUSBAND PLANT HIRE.
Neighbourhood Services,Technical Services,Stock,926900,Stock in hand-Inventory system,03-Oct-2014,2800645-1919135,713.60,WILKIES.
Neighbourhood Services,Technical Services,Stock,926900,Stock in hand-Inventory system,03-Oct-2014,2800647-15492999,"1,039.11",WOLSELEY UK LTD.
Neighbourhood Services,Technical Services,Stock,926900,Stock in hand-Inventory system,03-Oct-2014,2800647-15493246,"2,218.43",WOLSELEY UK LTD.
Neighbourhood Services,Technical Services,Stock,926900,Stock in hand-Inventory system,03-Oct-2014,2800647-15632647,"1,234.84",WOLSELEY UK LTD.
Neighbourhood Services,Technical Services,Stock,926900,Stock in hand-Inventory system,03-Oct-2014,2800647-15751335,761.95,WOLSELEY UK LTD.
RED HRA,HRA Capital,Construction Work,908105,Construction work,03-Oct-2014,2800489-206619,"3,451.38",DELTA ELECTRICAL & MECHANICAL SERVICES.
RED HRA,HRA Capital,Construction Work,908105,Construction work,03-Oct-2014,2800489-206620,"2,997.90",DELTA ELECTRICAL & MECHANICAL SERVICES.
RED HRA,HRA Capital,Construction Work,908105,Construction work,03-Oct-2014,2800489-206621,"10,808.53",DELTA ELECTRICAL & MECHANICAL SERVICES.
RED HRA,HRA Capital,Construction Work,908105,Construction work,03-Oct-2014,2800489-206622,"3,562.13",DELTA ELECTRICAL & MECHANICAL SERVICES.
RED HRA,HRA Capital,Construction Work,908105,Construction work,03-Oct-2014,2800489-206623,"2,649.69",DELTA ELECTRICAL & MECHANICAL SERVICES.
RED HRA,Housing Revenue Account,Premises,105013,HRA Repair & Maintenance,03-Oct-2014,2800489-206624,"1,835.28",DELTA ELECTRICAL & MECHANICAL SERVICES.
RED HRA,Housing Revenue Account,Third Party Payments,430100,Rendered by Private Contractors,03-Oct-2014,2800493-SINV/00003466,"940,417.00",EAST DURHAM HOMES.
RED HRA,HRA Centrally Managed,Supplies and Services,384999,Miscellaneous Expenses,03-Oct-2014,2800543-REFUND,808.93,REDACTED - PAYMENT TO INDIVIDUAL
RED HRA,HRA Centrally Managed,Supplies and Services,384999,Miscellaneous Expenses,03-Oct-2014,2800551-1030567,"1,281.42",REDACTED - PAYMENT TO INDIVIDUAL
RED HRA,HRA Capital,Construction Work,908105,Construction work,03-Oct-2014,2800602-77925,"2,344.50",SGS MIS ENVIRONMENTAL LTD.
Regeneration & Economic Development,RED Departmental Support Costs,Supplies and Services,338045,Services,03-Oct-2014,2800455-4176744,"2,910.00",BOND DICKINSON LLP.
Regeneration & Economic Development,Transport and Contracted Services,Third Party Payments,430100,Rendered by Private Contractors,03-Oct-2014,2800479-0001323,900.00,COLORS TAXIS LTD.
Regeneration & Economic Development,Economic Development and Housing,Premises,120021,Energy Costs,03-Oct-2014,2800482-09576161,695.38,CORONA ENERGY RETAIL 2 LTD.
Regeneration & Economic Development,Spatial Policy Planning Assets & Environment,Supplies and Services,304337,Equipment and Materials,03-Oct-2014,2800487-C0457,"141,520.14",DAVID WILLIAMS T/A CALICO IMAGES.
Regeneration & Economic Development,Spatial Policy Planning Assets & Environment,Fees,901002,Professional fees,03-Oct-2014,2800499-14500882,700.00,ENER-G COMBINED POWER LTD.
Regeneration & Economic Development,Economic Development and Housing,Premises,145050,Cleaning and Domestic Supplies,03-Oct-2014,2800549-078,672.00,MIKE TINKLER T/A ABSOLUTELY CLEAN.
Regeneration & Economic Development,Spatial Policy Planning Assets & Environment,Supplies and Services,338066,Services,03-Oct-2014,2800589-14101,"2,450.00",RGM GROUNDCARE.
Regeneration & Economic Development,Economic Development and Housing,Premises,106099,Centrally Controlled Rep and Maint,03-Oct-2014,2800599-3100,524.77,SAFEGUARD SECURITY (NE) LTD.
Regeneration & Economic Development,Economic Development and Housing,Premises,106099,Centrally Controlled Rep and Maint,03-Oct-2014,2800599-3372,605.42,SAFEGUARD SECURITY (NE) LTD.
Regeneration & Economic Development,Transport and Contracted Services,Third Party Payments,430106,Rendered by Private Contractors,03-Oct-2014,2800600-93,645.64,SB TRAVEL.
Resources,Human Resources,Employees,040149,Recruitment Instruction and Training,03-Oct-2014,2800473-48538,"1,995.00",CIPP.
Resources,Human Resources,Employees,040149,Recruitment Instruction and Training,03-Oct-2014,2800473-48539,"1,995.00",CIPP.
Resources,I.C.T. Services,Supplies and Services,304303,Equipment and Materials,03-Oct-2014,2800550-0000083568,"2,854.00",MILLENNIUM BUSINESS SYSTEMS LTD.
Resources,I.C.T. Services,Supplies and Services,332029,Printing Stationery and Gen Off Exps,03-Oct-2014,2800583-607261,857.00,POTTS PRINTERS LTD.
Resources,I.C.T. Services,Supplies and Services,332029,Printing Stationery and Gen Off Exps,03-Oct-2014,2800583-607927,"2,686.00",POTTS PRINTERS LTD.
Resources,Human Resources,Supplies and Services,338013,Services,03-Oct-2014,2800603-WWB1068094,"2,949.55",SGS UNITED KINGDOM LTD.
Resources,I.C.T. Services,Stock,926900,Stock in hand-Inventory system,03-Oct-2014,2800611-OP/L900264,"1,280.00",SPECIALIST COMPUTER CENTRES PLC.
Resources,I.C.T. Services,Construction Work,908105,Construction work,03-Oct-2014,2800617-120414,"2,097.00",SWITCHSHOP LTD.
Children and Adult Services,Childrens Services,Employees,080025,Agency Staff,06-Oct-2014,2800702-541308,"147,053.74",COMENSURA LTD.
Children and Adult Services,Childrens Services,Supplies and Services,304259,Equipment and Materials,06-Oct-2014,2800651-13594,"12,073.18",ACEDA LTD.
Children and Adult Services,Childrens Services,Supplies and Services,364352,Grants to Voluntary Organisations,06-Oct-2014,2800869-D1IN/00015877,"3,426.62",STONHAM HOUSING ASSOCIATION LTD.
Children and Adult Services,Childrens Services,Supplies and Services,364353,Grants to Voluntary Organisations,06-Oct-2014,2800879-CAS-09-2014-306,"2,621.00",REDACTED - PAYMENT TO INDIVIDUAL
Children and Adult Services,Childrens Services,Supplies and Services,368008,Incentives to Industrialists,06-Oct-2014,2800851-TEAMAROUND,500.00,SACRISTON COMMUNITY ASSOCIATION.
Children and Adult Services,Childrens Services,Supplies and Services,384964,Miscellaneous Expenses,06-Oct-2014,2800763-9320,674.00,ITL NORTH EAST LTD.
Children and Adult Services,Childrens Services,Supplies and Services,384199,Miscellaneous Expenses,06-Oct-2014,2800787-5,720.00,REDACTED - PAYMENT TO INDIVIDUAL
Children and Adult Services,Childrens Services,Income,710261,Other Grants and Contributions,06-Oct-2014,2800867-CAS-10-2014-200,"1,157.14",STOCKTON ON TEES BOROUGH COUNCIL.
Children and Adult Services,Childrens Services,Third Party Payments,425040,Rendered by Voluntary Organisations,06-Oct-2014,2800736-10698,820.00,FOSTER CARES LTD.
Children and Adult Services,Childrens Services,Third Party Payments,425040,Rendered by Voluntary Organisations,06-Oct-2014,2800736-10702,730.00,FOSTER CARES LTD.
Children and Adult Services,Childrens Services,Third Party Payments,425040,Rendered by Voluntary Organisations,06-Oct-2014,2800736-10707,700.00,FOSTER CARES LTD.
Children and Adult Services,Childrens Services,Third Party Payments,425040,Rendered by Voluntary Organisations,06-Oct-2014,2800736-10708,"1,180.00",FOSTER CARES LTD.
Children and Adult Services,Childrens Services,Third Party Payments,425040,Rendered by Voluntary Organisations,06-Oct-2014,2800736-10722,820.00,FOSTER CARES LTD.
Children and Adult Services,Childrens Services,Third Party Payments,425040,Rendered by Voluntary Organisations,06-Oct-2014,2800736-10730,730.00,FOSTER CARES LTD.
Children and Adult Services,Childrens Services,Third Party Payments,425040,Rendered by Voluntary Organisations,06-Oct-2014,2800736-10845,700.00,FOSTER CARES LTD.
Children and Adult Services,Childrens Services,Third Party Payments,425040,Rendered by Voluntary Organisations,06-Oct-2014,2800873-153103,"1,075.00",SWIIS FOSTER CARE LTD.
Children and Adult Services,Childrens Services,Supplies and Services,338066,Services,06-Oct-2014,2800688-660,"20,000.00",CAVOS.
Children and Adult Services,Commissioning inc Supporting People,Premises,145050,Cleaning and Domestic Supplies,06-Oct-2014,2800659-54030,"33,011.55",ANLABY OFFICE CLEANING SERVICES LTD.
Children and Adult Services,Education,Construction Work,908105,Construction work,06-Oct-2014,2800771-105249,"4,141.57",JOHNSON WRIGHT FLOORING LTD.
Children and Adult Services,Education,Construction Work,908105,Construction work,06-Oct-2014,2800850-7041,625.00,ROBERTSON SIMPSON LTD.
Children and Adult Services,Education,Fees,901002,Professional fees,06-Oct-2014,2800677-4181655,954.00,BOND DICKINSON LLP.
Children and Adult Services,Education,Third Party Payments,440999,Other Third Party Payments,06-Oct-2014,2800689-3RDSTAGE9/9/14,"2,962.40",CDC ENTERPRISE AGENCY.
Children and Adult Services,Education,Employees,040001,Recruitment Instruction and Training,06-Oct-2014,2800877-TARINV/15319086,710.10,TES GLOBAL LTD.
Children and Adult Services,Education,Transfer Payments,510028,School Children,06-Oct-2014,2800712-CAS-09-2014-322,"1,000.00",DIPTON OUT OF SCHOOL HOURS CLUB.
Children and Adult Services,Head of Adults,Supplies and Services,384616,Miscellaneous Expenses,06-Oct-2014,2800848-17495,"9,816.17",RIVERSIDE GROUP LTD.
Children and Adult Services,Public Health,Third Party Payments,460803,Contract Payments,06-Oct-2014,2800664-FQ606/0714/NRT,851.58,ASDA PHARMACY.
Children and Adult Services,Public Health,Third Party Payments,460803,Contract Payments,06-Oct-2014,2800665-FDE75/0714/NRT,"1,256.75",ASDA PHARMACY.
Children and Adult Services,Public Health,Third Party Payments,460803,Contract Payments,06-Oct-2014,2800667-FE649/0714/NRT,"1,673.92",ASDA PHARMACY.
Assistant Chief Executive,Partnerships & Community Engagement Div.,Supplies and Services,338094,Services,06-Oct-2014,2800668-AYCC0640,500.00,AUCKLAND YOUTH & COMMUNITY CENTRE.
Assistant Chief Executive,Partnerships & Community Engagement Div.,Cap Exp on Grants & Other Financial Assistance (REFCUS),918004,Contributions to other bodies,06-Oct-2014,2800755-VOUCHER14NB-3TWN004,"2,895.00",HUNWICK HARRIERS.
Assistant Chief Executive,Partnerships & Community Engagement Div.,Construction Work,908105,Construction work,06-Oct-2014,2800786-15598,640.00,LUCION ENVIRONMENTAL LLP LTD.
Assistant Chief Executive,Partnerships & Community Engagement Div.,Construction Work,908105,Construction work,06-Oct-2014,2800800-INS2,"49,102.84",MGL DEMOLITION LTD.
Assistant Chief Executive,Partnerships & Community Engagement Div.,Cap Exp on Grants & Other Financial Assistance (REFCUS),918004,Contributions to other bodies,06-Oct-2014,2800863-VOUCHER13NB-TEES022,"1,887.00",ST MARY`S CHURCH GAINFORD.
Neighbourhood Services,Technical Services,Supplies and Services,304221,Equipment and Materials,06-Oct-2014,2800655-19933139,"1,180.48",AGGREGATE INDUSTRIES UK LTD.
Neighbourhood Services,Technical Services,Supplies and Services,304221,Equipment and Materials,06-Oct-2014,2800655-20257492,"1,057.72",AGGREGATE INDUSTRIES UK LTD.
Neighbourhood Services,Technical Services,Supplies and Services,304221,Equipment and Materials,06-Oct-2014,2800655-20351693,675.56,AGGREGATE INDUSTRIES UK LTD.
Neighbourhood Services,Technical Services,Supplies and Services,304221,Equipment and Materials,06-Oct-2014,2800655-20355326,914.24,AGGREGATE INDUSTRIES UK LTD.
Neighbourhood Services,Technical Services,Supplies and Services,304221,Equipment and Materials,06-Oct-2014,2800655-20361571,"1,820.32",AGGREGATE INDUSTRIES UK LTD.
Neighbourhood Services,Technical Services,Supplies and Services,304221,Equipment and Materials,06-Oct-2014,2800655-20367577,"1,571.08",AGGREGATE INDUSTRIES UK LTD.
Neighbourhood Services,Technical Services,Supplies and Services,304221,Equipment and Materials,06-Oct-2014,2800655-20373863,"1,127.16",AGGREGATE INDUSTRIES UK LTD.
Neighbourhood Services,Technical Services,Supplies and Services,304221,Equipment and Materials,06-Oct-2014,2800655-20380534,"1,579.76",AGGREGATE INDUSTRIES UK LTD.
Neighbourhood Services,Culture & Sport,Supplies and Services,304252,Equipment and Materials,06-Oct-2014,2800660-17312,"1,400.00",APPLIED TRADING LTD.
Neighbourhood Services,Direct Services,Third Party Payments,430100,Rendered by Private Contractors,06-Oct-2014,2800661-12280,"4,700.00",ARCHITEN LANDRELL ASSOCIATES LTD.
Neighbourhood Services,Direct Services,Third Party Payments,430100,Rendered by Private Contractors,06-Oct-2014,2800661-12281,"2,350.00",ARCHITEN LANDRELL ASSOCIATES LTD.
Neighbourhood Services,Direct Services,Transport,215013,Running Costs of Vehicles,06-Oct-2014,2800672-303664,705.00,BELL TRUCK SALES LTD.
Neighbourhood Services,Direct Services,Supplies and Services,304221,Equipment and Materials,06-Oct-2014,2800674-B88292,"12,544.30",BIDDLE AIR SYSTEMS LTD.
Neighbourhood Services,Technical Services,Stock,926900,Stock in hand-Inventory system,06-Oct-2014,2800676-8344772,588.00,BOLD NU TEC INSULATION PRODUCTS & SERVICES LTD.
Neighbourhood Services,Culture & Sport,Supplies and Services,384700,Miscellaneous Expenses,06-Oct-2014,2800695-NEI-EXP-10-2014-003,638.00,CHUNGDOKWAN TAEKWANDO CLUB.
Neighbourhood Services,Direct Services,Third Party Payments,430100,Rendered by Private Contractors,06-Oct-2014,2800698-8116610,"3,588.00",CLOVER CONTROLS LTD.
Neighbourhood Services,Direct Services,Vehicles Equipment Furniture and Fittings,912529,Purchase-equipment,06-Oct-2014,2800708-1632156,"12,870.00",CRAEMER UK LTD.
Neighbourhood Services,Direct Services,Vehicles Equipment Furniture and Fittings,912529,Purchase-equipment,06-Oct-2014,2800708-1632157,"12,870.00",CRAEMER UK LTD.
Neighbourhood Services,Culture & Sport,Supplies and Services,384700,Miscellaneous Expenses,06-Oct-2014,2800727-NEI-EXP-10-2014-002,800.00,EASINGTON HARES RUNNING CLUB.
Neighbourhood Services,Direct Services,Supplies and Services,304221,Equipment and Materials,06-Oct-2014,2800743-671066,760.00,GLASDON UK LTD.
Neighbourhood Services,Technical Services,Stock,926900,Stock in hand-Inventory system,06-Oct-2014,2800746-06/527377,547.23,GREENHAM TRADING LTD.
Neighbourhood Services,Projects and Business services,Third Party Payments,430119,Rendered by Private Contractors,06-Oct-2014,2800749-SIN7041534,647.45,HCS DRAIN SERVICES LTD.
Neighbourhood Services,Direct Services,Supplies and Services,304221,Equipment and Materials,06-Oct-2014,2800753-B33/0070192,726.59,HOWDENS JOINERY LTD.
Neighbourhood Services,Direct Services,Premises,115125,Repairs to Grounds,06-Oct-2014,2800753-B33/0071136,818.48,HOWDENS JOINERY LTD.
Neighbourhood Services,Technical Services,Supplies and Services,304221,Equipment and Materials,06-Oct-2014,2800770-0000078312,"50,863.00",JOHN WADE (HAULAGE) LTD.
Neighbourhood Services,Technical Services,Supplies and Services,304221,Equipment and Materials,06-Oct-2014,2800770-0000078320,"50,045.00",JOHN WADE (HAULAGE) LTD.
Neighbourhood Services,Direct Services,Supplies and Services,304221,Equipment and Materials,06-Oct-2014,2800775-BI1143902,603.55,JT DOVE LTD.
Neighbourhood Services,Direct Services,Supplies and Services,304221,Equipment and Materials,06-Oct-2014,2800775-CNI20251/D,"1,683.07",JT DOVE LTD.
Neighbourhood Services,Technical Services,Supplies and Services,304221,Equipment and Materials,06-Oct-2014,2800775-CNI20290/D,"4,928.28",JT DOVE LTD.
Neighbourhood Services,Direct Services,Supplies and Services,304221,Equipment and Materials,06-Oct-2014,2800775-NO159915,622.18,JT DOVE LTD.
Neighbourhood Services,Technical Services,Stock,926900,Stock in hand-Inventory system,06-Oct-2014,2800775-STI408457,"1,150.28",JT DOVE LTD.
Neighbourhood Services,Technical Services,Supplies and Services,304221,Equipment and Materials,06-Oct-2014,2800777-5206,678.60,KEN THOMAS (SITE CLEARANCE LTD).
Neighbourhood Services,Technical Services,Supplies and Services,304221,Equipment and Materials,06-Oct-2014,2800777-5207,"4,068.60",KEN THOMAS (SITE CLEARANCE LTD).
Neighbourhood Services,Technical Services,Supplies and Services,304221,Equipment and Materials,06-Oct-2014,2800777-5232,"2,196.20",KEN THOMAS (SITE CLEARANCE LTD).
Neighbourhood Services,Technical Services,Supplies and Services,304221,Equipment and Materials,06-Oct-2014,2800778-9031315040,"1,780.54",LAFARGE TARMAC TRADING LTD.
Neighbourhood Services,Technical Services,Supplies and Services,304221,Equipment and Materials,06-Oct-2014,2800778-9031361473,879.59,LAFARGE TARMAC TRADING LTD.
Neighbourhood Services,Technical Services,Supplies and Services,304221,Equipment and Materials,06-Oct-2014,2800778-9031451318,882.03,LAFARGE TARMAC TRADING LTD.
Neighbourhood Services,Technical Services,Supplies and Services,304221,Equipment and Materials,06-Oct-2014,2800778-9031496314,551.50,LAFARGE TARMAC TRADING LTD.
Neighbourhood Services,Technical Services,Supplies and Services,304221,Equipment and Materials,06-Oct-2014,2800778-9031572216,867.68,LAFARGE TARMAC TRADING LTD.
Neighbourhood Services,Technical Services,Supplies and Services,304221,Equipment and Materials,06-Oct-2014,2800778-9031578264,"1,229.90",LAFARGE TARMAC TRADING LTD.
Neighbourhood Services,Technical Services,Supplies and Services,304221,Equipment and Materials,06-Oct-2014,2800778-9031614670,537.03,LAFARGE TARMAC TRADING LTD.
Neighbourhood Services,Technical Services,Supplies and Services,304221,Equipment and Materials,06-Oct-2014,2800778-9031617648,656.00,LAFARGE TARMAC TRADING LTD.
Neighbourhood Services,Technical Services,Supplies and Services,304221,Equipment and Materials,06-Oct-2014,2800778-9031620527,878.98,LAFARGE TARMAC TRADING LTD.
Neighbourhood Services,Technical Services,Supplies and Services,304221,Equipment and Materials,06-Oct-2014,2800778-9031620532,535.41,LAFARGE TARMAC TRADING LTD.
Neighbourhood Services,Technical Services,Supplies and Services,304221,Equipment and Materials,06-Oct-2014,2800778-9031620535,535.14,LAFARGE TARMAC TRADING LTD.
Neighbourhood Services,Technical Services,Supplies and Services,304221,Equipment and Materials,06-Oct-2014,2800779-9030984210,883.25,LAFARGE TARMAC TRADING LTD.
Neighbourhood Services,Culture & Sport,Premises,145023,Cleaning and Domestic Supplies,06-Oct-2014,2800795-FRE280814,"1,850.00",MAGIC CARPETS CLEANING SERVICES.
Neighbourhood Services,Direct Services,Supplies and Services,304221,Equipment and Materials,06-Oct-2014,2800796-827/035693,591.98,MAGNET LTD.
Neighbourhood Services,Technical Services,Supplies and Services,304221,Equipment and Materials,06-Oct-2014,2800797-ZBB0683213,"2,896.88",MARSHALLS MONO LTD.
Neighbourhood Services,Culture & Sport,Supplies and Services,338099,Services,06-Oct-2014,2800801-25,679.88,MICHAEL LONG.
Neighbourhood Services,Culture & Sport,Employees,040149,Recruitment Instruction and Training,06-Oct-2014,2800822-602/IC11/270,"1,145.00",NORTH EAST SALES & MARKETING AGENCY T/A MMD LTD.
Neighbourhood Services,Technical Services,Supplies and Services,304221,Equipment and Materials,06-Oct-2014,2800824-DI20194248,"10,017.61",NORTHERN POWERGRID (NORTHEAST) LTD.
Neighbourhood Services,Technical Services,Employees,040149,Recruitment Instruction and Training,06-Oct-2014,2800830-38777,"1,755.40",OSTEOPATHS FOR INDUSTRY LTD.
Neighbourhood Services,Direct Services,Supplies and Services,304221,Equipment and Materials,06-Oct-2014,2800831-BR503477,"1,344.80",PARK ELECTRICAL DISTRIBUTORS LTD.
Neighbourhood Services,Direct Services,Third Party Payments,430100,Rendered by Private Contractors,06-Oct-2014,2800841-15629,"14,423.98",POLAR (NE) LTD.
Neighbourhood Services,Culture & Sport,Supplies and Services,338047,Services,06-Oct-2014,2800859-0980,"1,851.11",SOUL OVER EASY.
Neighbourhood Services,Technical Services,Supplies and Services,304221,Equipment and Materials,06-Oct-2014,2800868-064454,532.00,STONEGRAVE AGGREGATES LTD.
Neighbourhood Services,Technical Services,Supplies and Services,304221,Equipment and Materials,06-Oct-2014,2800868-064651,"1,263.52",STONEGRAVE AGGREGATES LTD.
Neighbourhood Services,Technical Services,Supplies and Services,304221,Equipment and Materials,06-Oct-2014,2800868-064688,"1,208.40",STONEGRAVE AGGREGATES LTD.
Neighbourhood Services,Technical Services,Supplies and Services,304221,Equipment and Materials,06-Oct-2014,2800868-064765,"1,192.80",STONEGRAVE AGGREGATES LTD.
Neighbourhood Services,Technical Services,Supplies and Services,304221,Equipment and Materials,06-Oct-2014,2800868-064800,860.96,STONEGRAVE AGGREGATES LTD.
Neighbourhood Services,Technical Services,Supplies and Services,304221,Equipment and Materials,06-Oct-2014,2800868-064883,"1,262.56",STONEGRAVE AGGREGATES LTD.
Neighbourhood Services,Technical Services,Supplies and Services,304221,Equipment and Materials,06-Oct-2014,2800868-064911,"1,820.84",STONEGRAVE AGGREGATES LTD.
Neighbourhood Services,Technical Services,Supplies and Services,304221,Equipment and Materials,06-Oct-2014,2800868-064946,"1,374.40",STONEGRAVE AGGREGATES LTD.
Neighbourhood Services,Technical Services,Supplies and Services,304221,Equipment and Materials,06-Oct-2014,2800868-065098,878.32,STONEGRAVE AGGREGATES LTD.
Neighbourhood Services,Technical Services,Supplies and Services,304221,Equipment and Materials,06-Oct-2014,2800868-065124,"1,297.52",STONEGRAVE AGGREGATES LTD.
Neighbourhood Services,Technical Services,Supplies and Services,304221,Equipment and Materials,06-Oct-2014,2800868-065155,"2,227.68",STONEGRAVE AGGREGATES LTD.
Neighbourhood Services,Technical Services,Supplies and Services,304221,Equipment and Materials,06-Oct-2014,2800868-065222,"2,646.48",STONEGRAVE AGGREGATES LTD.
Neighbourhood Services,Technical Services,Supplies and Services,304221,Equipment and Materials,06-Oct-2014,2800868-065291,"1,059.64",STONEGRAVE AGGREGATES LTD.
Neighbourhood Services,Technical Services,Supplies and Services,304221,Equipment and Materials,06-Oct-2014,2800868-065371,"1,214.48",STONEGRAVE AGGREGATES LTD.
Neighbourhood Services,Technical Services,Supplies and Services,304221,Equipment and Materials,06-Oct-2014,2800868-065411,"1,307.84",STONEGRAVE AGGREGATES LTD.
Neighbourhood Services,Technical Services,Supplies and Services,304221,Equipment and Materials,06-Oct-2014,2800868-065489,"2,289.28",STONEGRAVE AGGREGATES LTD.
Neighbourhood Services,Technical Services,Supplies and Services,304221,Equipment and Materials,06-Oct-2014,2800868-065669,852.96,STONEGRAVE AGGREGATES LTD.
Neighbourhood Services,Direct Services,Supplies and Services,304221,Equipment and Materials,06-Oct-2014,2800875-JE00688/TL/EP,"2,643.57",T MANNERS & SONS LTD.
Neighbourhood Services,Culture & Sport,Supplies and Services,384700,Miscellaneous Expenses,06-Oct-2014,2800878-NEI-EXP-10-2014-004,674.00,THE JOANNE BANKS DANCERS.
Neighbourhood Services,Culture & Sport,Supplies and Services,338047,Services,06-Oct-2014,2800883-IN14029089,652.33,UNIVERSAL PICTURES INTERNATIONAL UK & EIRE LTD.
Neighbourhood Services,Direct Services,Supplies and Services,304221,Equipment and Materials,06-Oct-2014,2800885-6890171272,"8,409.56",VIESSMANN LTD.
Neighbourhood Services,Technical Services,Stock,926900,Stock in hand-Inventory system,06-Oct-2014,2800891-1922560,993.90,WILKIES.
Neighbourhood Services,Technical Services,Stock,926900,Stock in hand-Inventory system,06-Oct-2014,2800892-15790624,511.04,WOLSELEY UK LTD.
Neighbourhood Services,Direct Services,Supplies and Services,304259,Equipment and Materials,06-Oct-2014,2800892-15790796,"1,495.00",WOLSELEY UK LTD.
RED HRA,HRA Capital,Construction Work,908105,Construction work,06-Oct-2014,2800728-206134,"1,869.82",EDMUNDSON ELECTRICAL LTD.
RED HRA,HRA Capital,Construction Work,908105,Construction work,06-Oct-2014,2800772-206632,"1,478.55",JOINERY & TIMBER CREATIONS (65) LTD.
RED HRA,HRA Centrally Managed,Supplies and Services,384999,Miscellaneous Expenses,06-Oct-2014,2800805-1039795,863.66,REDACTED - PAYMENT TO INDIVIDUAL
RED HRA,Housing Revenue Account,Premises,105003,HRA Repair & Maintenance,06-Oct-2014,2800806-206625,"3,321.74",MITIE PROPERTY SERVICES (UK) LTD.
RED HRA,HRA Capital,Construction Work,908105,Construction work,06-Oct-2014,2800840-206627,685.78,PLUMBING TRADE SUPPLIES LTD.
RED HRA,HRA Capital,Construction Work,908105,Construction work,06-Oct-2014,2800853-76904,880.00,SGS MIS ENVIRONMENTAL LTD.
Regeneration & Economic Development,Transport and Contracted Services,Fees,901002,Professional fees,06-Oct-2014,2800654-28200693,"6,115.32",AECOM LTD.
Regeneration & Economic Development,Economic Development and Housing,Supplies and Services,304259,Equipment and Materials,06-Oct-2014,2800675-FLGA1689979,866.39,BNP PARIBAS LEASE GROUP (RENTALS).
Regeneration & Economic Development,Transport and Contracted Services,Supplies and Services,342215,Computers and Communications,06-Oct-2014,2800734-INV28463,585.00,FERROGRAPH LTD.
Regeneration & Economic Development,Economic Development and Housing,Cap Exp on Grants & Other Financial Assistance (REFCUS),918401,Capital grants,06-Oct-2014,2800735-4191,585.00,FIVE LAMPS ORGANISATION.
Regeneration & Economic Development,Economic Development and Housing,Supplies and Services,384700,Miscellaneous Expenses,06-Oct-2014,2800757-RED-10-2014-027,"2,913.50",IBEX INNOVATIONS LTD.
Regeneration & Economic Development,Spatial Policy Planning Assets & Environment,Vehicles Equipment Furniture and Fittings,912701,Computer equipment,06-Oct-2014,2800758-7003521,"3,800.00",IDOX SOFTWARE LTD.
Regeneration & Economic Development,Strategy Programmes and Performance,Supplies and Services,384899,Miscellaneous Expenses,06-Oct-2014,2800860-NPDTA2/2,"9,439.71",SOUTH DURHAM ENTERPRISE AGENCY LTD.
Regeneration & Economic Development,Transport and Contracted Services,Premises,125009,Rents,06-Oct-2014,2800870-284045,"1,000.00",ES (GROUP) LTD.
Resources,Legal & Democratic Services,Supplies and Services,340001,Postages,06-Oct-2014,2800652-IS1240602,"1,862.53",ADARE INSPIRED COMMUNICATIONS.
Resources,Legal & Democratic Services,Supplies and Services,338057,Services,06-Oct-2014,2800719-PB42,"1,064.80",DR PAUL BARRETT.
Resources,Legal & Democratic Services,Supplies and Services,338057,Services,06-Oct-2014,2800720-PB41,677.60,DR PAUL BARRETT.
Resources,Legal & Democratic Services,Supplies and Services,338057,Services,06-Oct-2014,2800722-AUGUST-14U,"1,258.40",DR SREE MUSSUNOOR.
Resources,Legal & Democratic Services,Supplies and Services,338057,Services,06-Oct-2014,2800723-AUGUST-14D,580.80,DR SREE MUSSUNOOR.
Resources,I.C.T. Services,Supplies and Services,304303,Equipment and Materials,06-Oct-2014,2800737-3858,"4,980.00",FULL CONTROL NETWORKS.
Resources,Human Resources,Supplies and Services,384199,Miscellaneous Expenses,06-Oct-2014,2800741-2241,"3,532.00",GENESYS HUMAN RESOURCE SOLUTIONS.
Resources,I.C.T. Services,Supplies and Services,342554,Computers and Communications,06-Oct-2014,2800829-77751257,739.20,OFCOM.
Resources,I.C.T. Services,Construction Work,908105,Construction work,06-Oct-2014,2800832,"3,964.78",PBU (UK) LTD.
Resources,I.C.T. Services,Stock,926900,Stock in hand-Inventory system,06-Oct-2014,2800861-OP/L900777,"23,440.50",SPECIALIST COMPUTER CENTRES PLC.
Children and Adult Services,Childrens Services,Supplies and Services,304259,Equipment and Materials,07-Oct-2014,2801940-60719263,664.88,PHS GROUP PLC.
Children and Adult Services,Childrens Services,Supplies and Services,304259,Equipment and Materials,07-Oct-2014,2801941-61126841,"1,310.78",PHS GROUP PLC.
Children and Adult Services,Childrens Services,Supplies and Services,364999,Grants to Voluntary Organisations,07-Oct-2014,2801859-CAS-09-2014-310,"4,300.00",MID DURHAM PROJECTS CLUB.
Children and Adult Services,Childrens Services,Supplies and Services,364352,Grants to Voluntary Organisations,07-Oct-2014,2802051-D1IN/00015880,"3,426.62",STONHAM HOUSING ASSOCIATION LTD.
Children and Adult Services,Childrens Services,Supplies and Services,364352,Grants to Voluntary Organisations,07-Oct-2014,2802051-D1IN/00015881,"3,426.62",STONHAM HOUSING ASSOCIATION LTD.
Children and Adult Services,Childrens Services,Supplies and Services,384199,Miscellaneous Expenses,07-Oct-2014,2801686-2923212,"1,620.22",DEPARTMENT FOR WORK & PENSIONS.
Children and Adult Services,Childrens Services,Supplies and Services,384871,Miscellaneous Expenses,07-Oct-2014,2801732-11687,518.70,FAMILY LINKS.
Children and Adult Services,Childrens Services,Supplies and Services,384871,Miscellaneous Expenses,07-Oct-2014,2801732-11688,518.70,FAMILY LINKS.
Children and Adult Services,Childrens Services,Supplies and Services,384641,Miscellaneous Expenses,07-Oct-2014,2801914-54SEPT1,690.80,NURSERY TIME.
Children and Adult Services,Childrens Services,Third Party Payments,440001,Other Third Party Payments,07-Oct-2014,2801093-979171,575.19,REDACTED - PAYMENT TO INDIVIDUAL
Children and Adult Services,Childrens Services,Third Party Payments,440037,Other Third Party Payments,07-Oct-2014,2802008-23/9-16/12/13-CF,"1,194.70",SEAHAM HOUSE DAY NURSERY.
Children and Adult Services,Childrens Services,Supplies and Services,340001,Postages,07-Oct-2014,2801889-436151-79,500.00,NEOPOST LTD CREDIFON RCB ACCOUNT.
Children and Adult Services,Childrens Services,Transport,235057,Public Transport,07-Oct-2014,2801638-520762,530.85,CLICK TRAVEL LTD.
Children and Adult Services,Childrens Services,Transport,235057,Public Transport,07-Oct-2014,2801638-524209,"4,222.76",CLICK TRAVEL LTD.
Children and Adult Services,Childrens Services,Third Party Payments,479101,Purchase of Care,07-Oct-2014,2801642-3910004481,"7,103.99",CO DURHAM & DARLINGTON NHS FOUNDATION TRUST.
Children and Adult Services,Childrens Services,Third Party Payments,425040,Rendered by Voluntary Organisations,07-Oct-2014,2801521-14/1556,"3,000.00",ACORN HOUSE (FOSTERING SERVICES) LTD.
Children and Adult Services,Childrens Services,Third Party Payments,425040,Rendered by Voluntary Organisations,07-Oct-2014,2801743-10713,820.00,FOSTER CARES LTD.
Children and Adult Services,Childrens Services,Third Party Payments,425040,Rendered by Voluntary Organisations,07-Oct-2014,2801743-10716,760.00,FOSTER CARES LTD.
Children and Adult Services,Childrens Services,Third Party Payments,425040,Rendered by Voluntary Organisations,07-Oct-2014,2801743-10717,730.00,FOSTER CARES LTD.
Children and Adult Services,Childrens Services,Third Party Payments,425040,Rendered by Voluntary Organisations,07-Oct-2014,2801744-630130100,"4,079.43",FOSTERING PEOPLE LTD.
Children and Adult Services,Childrens Services,Third Party Payments,425040,Rendered by Voluntary Organisations,07-Oct-2014,2801744-630130661,"4,079.43",FOSTERING PEOPLE LTD.
Children and Adult Services,Commissioning inc Supporting People,Third Party Payments,479102,Purchase of Care,07-Oct-2014,2801524-DUR001,"33,000.00",ADVANCED PAYMENTS SOLUTIONS LTD.
Children and Adult Services,Commissioning inc Supporting People,Third Party Payments,479101,Purchase of Care,07-Oct-2014,2801707-228,"54,930.50",DURHAM COUNTY CARERS SUPPORT.
Children and Adult Services,Commissioning inc Supporting People,Third Party Payments,479111,Purchase of Care,07-Oct-2014,2801707-229,"198,118.55",DURHAM COUNTY CARERS SUPPORT.
Children and Adult Services,Commissioning inc Supporting People,Third Party Payments,479101,Purchase of Care,07-Oct-2014,2801707-231,"20,519.50",DURHAM COUNTY CARERS SUPPORT.
Children and Adult Services,Education,Supplies and Services,352001,Conference Expenses,07-Oct-2014,2802036-AUGUST2014,"1,600.00",SPECIALISED TRANSPORT ADVISORY NETWORK.
Children and Adult Services,Education,Construction Work,908105,Construction work,07-Oct-2014,2801829-INV00533253,625.00,LANES GROUP PLC.
Children and Adult Services,Education,Transport,230006,Contract Hire,07-Oct-2014,2801518-X32/GC,812.00,AABAT TAXIS.
Children and Adult Services,Education,Transport,230008,Contract Hire,07-Oct-2014,2801548-425,"1,330.00",AT TAXIS LTD.
Children and Adult Services,Education,Transport,230007,Contract Hire,07-Oct-2014,2801550-300914,600.00,AVALON TAXIS.
Children and Adult Services,Education,Transport,230008,Contract Hire,07-Oct-2014,2801787-IR1409003,"1,600.00",I & R EXECUTIVE TRAVEL.
Children and Adult Services,Education,Transport,230008,Contract Hire,07-Oct-2014,2801869-473,"2,520.00",MOLLYS TAXIS.
Children and Adult Services,Education,Transport,230008,Contract Hire,07-Oct-2014,2801869-477,"2,310.00",MOLLYS TAXIS.
Children and Adult Services,Education,Transport,230007,Contract Hire,07-Oct-2014,2801900-2920,"2,470.00",NIGHTINGALE COACHES.
Children and Adult Services,Education,Transport,230007,Contract Hire,07-Oct-2014,2801987-ROXSEPTE,"1,400.00",ROXBYS BUS HIRE.
Children and Adult Services,Education,Transport,230008,Contract Hire,07-Oct-2014,2802049-SL/DCC/BP,522.82,STEPHEN COXON.
Children and Adult Services,Education,Supplies and Services,312009,Newspapers Books and Periodicals,07-Oct-2014,2801935-1522105,"1,124.13",PETERS LTD.
Children and Adult Services,Education,Supplies and Services,312009,Newspapers Books and Periodicals,07-Oct-2014,2801935-1522268,724.84,PETERS LTD.
Children and Adult Services,Education,Supplies and Services,312009,Newspapers Books and Periodicals,07-Oct-2014,2801935-1522269,658.48,PETERS LTD.
Children and Adult Services,Education,Transport,235057,Public Transport,07-Oct-2014,2801638-532196,"3,884.02",CLICK TRAVEL LTD.
Children and Adult Services,Education,Transfer Payments,510026,School Children,07-Oct-2014,2801779-DCATCH-JJ,567.90,HAZEL DENE CHILDCARE LTD.
Children and Adult Services,Education,Supplies and Services,338027,Services,07-Oct-2014,2801877-14/15TR014A,850.00,MR TREVOR GLAISTER.
Children and Adult Services,Education,Supplies and Services,338099,Services,07-Oct-2014,2801928-100-22/7/14,"5,529.30",PATTINSON & MILBURN TRAINING LTD.
Children and Adult Services,Education,Supplies and Services,338099,Services,07-Oct-2014,2801971-12911,"1,000.00",RAYBURN TOURS LTD.
Children and Adult Services,Education,Supplies and Services,338027,Services,07-Oct-2014,2802043-0000000364,"1,854.00",ST JOHN`S SCHOOL & SIXTH FORM COLLEGE A CATHOLIC ACADEMY.
Children and Adult Services,Education,Supplies and Services,348037,Subsistence,07-Oct-2014,2802077-2656,970.00,THE DURHAM CENTRE LTD.
Children and Adult Services,Head of Adults,Transport,230005,Contract Hire,07-Oct-2014,2801513-EA220757,"1,760.00",A MURRAY TRAVEL.
Children and Adult Services,Head of Adults,Transport,230005,Contract Hire,07-Oct-2014,2801518-X26/SS,595.00,AABAT TAXIS.
Children and Adult Services,Head of Adults,Transport,230005,Contract Hire,07-Oct-2014,2801787-IR1409006,540.00,I & R EXECUTIVE TRAVEL.
Children and Adult Services,Head of Adults,Transport,230005,Contract Hire,07-Oct-2014,2801787-IR1409007,"1,100.00",I & R EXECUTIVE TRAVEL.
Children and Adult Services,Head of Adults,Supplies and Services,304252,Equipment and Materials,07-Oct-2014,2801758-MGH01,762.00,GK DECORATING.
Children and Adult Services,Head of Adults,Supplies and Services,304516,Equipment and Materials,07-Oct-2014,2801939-00869,798.60,PHILLIPS TAXI GROUP LTD.
Children and Adult Services,Head of Adults,Supplies and Services,304516,Equipment and Materials,07-Oct-2014,2801939-00909,667.30,PHILLIPS TAXI GROUP LTD.
Children and Adult Services,Head of Adults,Supplies and Services,304516,Equipment and Materials,07-Oct-2014,2801939-00976,879.60,PHILLIPS TAXI GROUP LTD.
Children and Adult Services,Head of Adults,Supplies and Services,304516,Equipment and Materials,07-Oct-2014,2801939-01034,527.20,PHILLIPS TAXI GROUP LTD.
Children and Adult Services,Head of Adults,Supplies and Services,324117,Provisions,07-Oct-2014,2801545-11-AUG2014,"1,225.80",ASHBARTON CATERING.
Children and Adult Services,Head of Adults,Supplies and Services,338366,Services,07-Oct-2014,2801614-19173,"1,239.48",CARE ABILITY.
Children and Adult Services,Head of Adults,Supplies and Services,338366,Services,07-Oct-2014,2801614-19177,"4,960.00",CARE ABILITY.
Children and Adult Services,Head of Adults,Supplies and Services,338366,Services,07-Oct-2014,2801614-19257,507.32,CARE ABILITY.
Children and Adult Services,Public Health,Third Party Payments,460803,Contract Payments,07-Oct-2014,2801543-FDE75/08/14/NRT,618.03,ASDA PHARMACY.
Children and Adult Services,Public Health,Third Party Payments,460803,Contract Payments,07-Oct-2014,2801546-FTW78/08/14/NRT,719.44,ASHCHEM LTD.
Children and Adult Services,Public Health,Third Party Payments,460803,Contract Payments,07-Oct-2014,2801561-FFK86/0814/NRT,"1,067.86",BEWICK PHARMACY.
Children and Adult Services,Public Health,Third Party Payments,460803,Contract Payments,07-Oct-2014,2801579-FLO73/0814/NRT,751.43,BOOTS THE CHEMISTS LTD.
Children and Adult Services,Public Health,Third Party Payments,460803,Contract Payments,07-Oct-2014,2801582-FA773/0814/NRT,"1,202.82",BOOTS THE CHEMISTS LTD.
Children and Adult Services,Public Health,Third Party Payments,460803,Contract Payments,07-Oct-2014,2801583-FHD21/0814/NRT,774.65,BOOTS THE CHEMISTS LTD.
Children and Adult Services,Public Health,Third Party Payments,460803,Contract Payments,07-Oct-2014,2801586-FW704/0814/NRT,782.84,BOOTS THE CHEMISTS LTD.
Children and Adult Services,Public Health,Third Party Payments,460803,Contract Payments,07-Oct-2014,2801588-FA268/0814/NRT,676.81,BOWBURN PHARMACY.
Children and Adult Services,Public Health,Third Party Payments,460802,Contract Payments,07-Oct-2014,2801696-A83004/DEC13,725.00,DR KAPOOR.
Children and Adult Services,Public Health,Premises,125009,Rents,07-Oct-2014,2801898-48331260,774.62,NHS PROPERTY SERVICES LTD.
Assistant Chief Executive,Partnerships & Community Engagement Div.,Cap Exp on Grants & Other Financial Assistance (REFCUS),918004,Contributions to other bodies,07-Oct-2014,2801992-VOUCHER14NB-CHES009,"4,300.00",SACRISTON COMMUNITY & SPORTS TRUST.
Assistant Chief Executive,Partnerships & Community Engagement Div.,Transfer Payments,525030,Other,07-Oct-2014,2802085-VOUCHER14AB,"2,000.00",THORNLEY VILLAGE CENTRE.
Neighbourhood Services,Technical Services,Supplies and Services,342051,Computers and Communications,07-Oct-2014,2801523-109913,"15,020.00",ADRIS LTD.
Neighbourhood Services,Culture & Sport,Supplies and Services,384199,Miscellaneous Expenses,07-Oct-2014,2801529-1289,"3,750.00",ALAN FENTIMAN.
Neighbourhood Services,Direct Services,Third Party Payments,430100,Rendered by Private Contractors,07-Oct-2014,2801531-46283,"1,789.76",ALAN REED LTD.
Neighbourhood Services,Culture & Sport,Supplies and Services,312013,Newspapers Books and Periodicals,07-Oct-2014,2801547-4415449,532.86,ASKEWS & HOLTS LIBRARY SERVICES LTD.
Neighbourhood Services,Technical Services,Stock,926900,Stock in hand-Inventory system,07-Oct-2014,2801551-INV090327,"1,400.00",AZTEC CHEMICALS LTD.
Neighbourhood Services,Technical Services,Stock,926900,Stock in hand-Inventory system,07-Oct-2014,2801551-INV091080,"2,100.00",AZTEC CHEMICALS LTD.
Neighbourhood Services,Culture & Sport,Supplies and Services,338047,Services,07-Oct-2014,2801562-BTBDUR-210914,"2,725.37",BEYOND THE BARRICADE LTD.
Neighbourhood Services,Direct Services,Supplies and Services,304221,Equipment and Materials,07-Oct-2014,2801601-4070422,802.48,BROAG LTD.
Neighbourhood Services,Direct Services,Supplies and Services,304221,Equipment and Materials,07-Oct-2014,2801604-1650/0658511,"10,080.00",BSS GROUP PLC.
Neighbourhood Services,Culture & Sport,Supplies and Services,324001,Provisions,07-Oct-2014,2801615-840651586,"1,517.31",CARLSBERG UK LTD.
Neighbourhood Services,Technical Services,Stock,926900,Stock in hand-Inventory system,07-Oct-2014,2801624-9950/01610581,858.16,CERAMIC TILE DISTRIBUTORS (CTD).
Neighbourhood Services,Technical Services,Stock,926900,Stock in hand-Inventory system,07-Oct-2014,2801626-0357275,840.00,CHAMBERLAIN DOORS LTD.
Neighbourhood Services,Direct Services,Supplies and Services,304221,Equipment and Materials,07-Oct-2014,2801633-DRM/128794,830.65,CITY ELECTRICAL FACTORS LTD.
Neighbourhood Services,Technical Services,Third Party Payments,430100,Rendered by Private Contractors,07-Oct-2014,2801661-15927,"1,802.48",COUPE LINE LTD.
Neighbourhood Services,Technical Services,Third Party Payments,430100,Rendered by Private Contractors,07-Oct-2014,2801661-15929,"1,157.31",COUPE LINE LTD.
Neighbourhood Services,Technical Services,Third Party Payments,430100,Rendered by Private Contractors,07-Oct-2014,2801661-15943,572.85,COUPE LINE LTD.
Neighbourhood Services,Technical Services,Third Party Payments,430100,Rendered by Private Contractors,07-Oct-2014,2801661-15958,581.84,COUPE LINE LTD.
Neighbourhood Services,Technical Services,Third Party Payments,430100,Rendered by Private Contractors,07-Oct-2014,2801661-15971,"2,643.50",COUPE LINE LTD.
Neighbourhood Services,Technical Services,Third Party Payments,430100,Rendered by Private Contractors,07-Oct-2014,2801661-15981,"1,698.36",COUPE LINE LTD.
Neighbourhood Services,Technical Services,Third Party Payments,430100,Rendered by Private Contractors,07-Oct-2014,2801661-15995,"1,773.47",COUPE LINE LTD.
Neighbourhood Services,Direct Services,Supplies and Services,372009,Subscriptions,07-Oct-2014,2801746-300071129,"1,134.00",FREIGHT TRANSPORT ASSOCIATION.
Neighbourhood Services,Direct Services,Stock,926004,Stock,07-Oct-2014,2801778-501674,"14,779.64",HARVEST ENERGY LTD.
Neighbourhood Services,Direct Services,Stock,926004,Stock,07-Oct-2014,2801778-501677,"2,047.44",HARVEST ENERGY LTD.
Neighbourhood Services,Direct Services,Stock,926004,Stock,07-Oct-2014,2801778-501678,"17,477.56",HARVEST ENERGY LTD.
Neighbourhood Services,Direct Services,Stock,926004,Stock,07-Oct-2014,2801778-502036,"11,136.05",HARVEST ENERGY LTD.
Neighbourhood Services,Direct Services,Stock,926004,Stock,07-Oct-2014,2801778-502038,"24,237.40",HARVEST ENERGY LTD.
Neighbourhood Services,Direct Services,Third Party Payments,430100,Rendered by Private Contractors,07-Oct-2014,2801782-55818,611.47,HOGARTH COACHWORKS LTD.
Neighbourhood Services,Direct Services,Premises,115125,Repairs to Grounds,07-Oct-2014,2801785-B33/0069980,730.98,HOWDENS JOINERY LTD.
Neighbourhood Services,Culture & Sport,Premises,120021,Energy Costs,07-Oct-2014,2801791-7308,"5,450.40",IMPALA ESTATES LTD.
Neighbourhood Services,Culture & Sport,Premises,120021,Energy Costs,07-Oct-2014,2801791-7381,"4,813.02",IMPALA ESTATES LTD.
Neighbourhood Services,Technical Services,Premises,150015,Apportioned Exps of Operational Blds,07-Oct-2014,2801813-1372812,773.30,JOHN NIXON LTD.
Neighbourhood Services,Technical Services,Supplies and Services,304221,Equipment and Materials,07-Oct-2014,2801819-BI1145054,778.29,JT DOVE LTD.
Neighbourhood Services,Direct Services,Third Party Payments,430100,Rendered by Private Contractors,07-Oct-2014,2801867-7135/90809893,"1,210.00",MITIE PROPERTY SERVICES (UK) LTD.
Neighbourhood Services,Direct Services,Third Party Payments,430100,Rendered by Private Contractors,07-Oct-2014,2801867-7135/90809894,"1,210.00",MITIE PROPERTY SERVICES (UK) LTD.
Neighbourhood Services,Direct Services,Third Party Payments,430100,Rendered by Private Contractors,07-Oct-2014,2801867-7135/90809896,684.00,MITIE PROPERTY SERVICES (UK) LTD.
Neighbourhood Services,Technical Services,Third Party Payments,430100,Rendered by Private Contractors,07-Oct-2014,2801909-NEI-EXP-10-2014-028,732.00,NORTHERN POWERGRID (NORTHEAST) LTD.
Neighbourhood Services,Direct Services,Transport,230005,Contract Hire,07-Oct-2014,2801912-SL02616545INV,580.42,NORTHGATE VEHICLE HIRE LTD.
Neighbourhood Services,Culture & Sport,Supplies and Services,338047,Services,07-Oct-2014,2801942-PHENT108789,805.54,PICTUREHOUSE ENTERTAINMENT LTD.
Neighbourhood Services,Culture & Sport,Supplies and Services,384956,Miscellaneous Expenses,07-Oct-2014,2801963-3609,"1,450.00",QUEST & NBS.
Neighbourhood Services,Culture & Sport,Supplies and Services,324500,Provisions,07-Oct-2014,2801982-7140003122,646.67,RIVERSIDE EVENTS LLP.
Neighbourhood Services,Culture & Sport,Premises,145015,Cleaning and Domestic Supplies,07-Oct-2014,2802025-267598,"1,479.10",SIS CHEMICALS.
Neighbourhood Services,Culture & Sport,Premises,145023,Cleaning and Domestic Supplies,07-Oct-2014,2802025-268030,839.50,SIS CHEMICALS.
Neighbourhood Services,Direct Services,Transport,210057,Repair and Maintenance of Vehicles,07-Oct-2014,2802074-96302135,"1,537.64",TERBERG MATEC (UK) LTD.
Neighbourhood Services,Technical Services,Stock,926900,Stock in hand-Inventory system,07-Oct-2014,2802083-N/IN129959,"1,714.62",THOMAS OWEN & SONS (NEWCASTLE) LTD.
Neighbourhood Services,Technical Services,Stock,926900,Stock in hand-Inventory system,07-Oct-2014,2802083-N/IN129964,"1,043.50",THOMAS OWEN & SONS (NEWCASTLE) LTD.
Neighbourhood Services,Technical Services,Supplies and Services,304221,Equipment and Materials,07-Oct-2014,2802088-24920,"4,812.00",TODDS HIGHWAY MAINTENANCE LTD.
Neighbourhood Services,Technical Services,Supplies and Services,304221,Equipment and Materials,07-Oct-2014,2802088-24921,"1,673.00",TODDS HIGHWAY MAINTENANCE LTD.
Neighbourhood Services,Direct Services,Supplies and Services,304221,Equipment and Materials,07-Oct-2014,2802090-100578,696.94,TOMMY WARDLE.
Neighbourhood Services,Culture & Sport,Supplies and Services,338047,Services,07-Oct-2014,2802108-IN14027597,726.94,UNIVERSAL PICTURES INTERNATIONAL UK & EIRE LTD.
Neighbourhood Services,Direct Services,Stock,926004,Stock,07-Oct-2014,2802135-313020,611.09,WM SMITH & SONS (BARNARD CASTLE) LTD.
RED HRA,HRA Capital,Construction Work,908105,Construction work,07-Oct-2014,2801948-206626,772.01,PLUMBING TRADE SUPPLIES LTD.
RED HRA,HRA Capital,Construction Work,908105,Construction work,07-Oct-2014,2802040-206630,"81,411.83",SPRINGS ROOFING LTD.
RED HRA,HRA Capital,Construction Work,908105,Construction work,07-Oct-2014,2802053-206633,"11,976.00",SUNTER LTD.
Regeneration & Economic Development,Spatial Policy Planning Assets & Environment,Supplies and Services,384199,Miscellaneous Expenses,07-Oct-2014,2801563-BH379,"1,000.00",BIG HERITAGE.
Regeneration & Economic Development,Economic Development and Housing,Supplies and Services,384437,Miscellaneous Expenses,07-Oct-2014,2801638-519083,"5,188.08",CLICK TRAVEL LTD.
Regeneration & Economic Development,Economic Development and Housing,Transport,235057,Public Transport,07-Oct-2014,2801638-522549,716.71,CLICK TRAVEL LTD.
Regeneration & Economic Development,Spatial Policy Planning Assets & Environment,Transport,235057,Public Transport,07-Oct-2014,2801638-527970,"4,744.63",CLICK TRAVEL LTD.
Regeneration & Economic Development,Economic Development and Housing,Supplies and Services,384437,Miscellaneous Expenses,07-Oct-2014,2801638-530102,"18,193.28",CLICK TRAVEL LTD.
Regeneration & Economic Development,Spatial Policy Planning Assets & Environment,Construction Work,908105,Construction work,07-Oct-2014,2801815-DEMOLSTANLEYSCHOOL,"70,308.25",JOHN WADE (HAULAGE) LTD.
Regeneration & Economic Development,Economic Development and Housing,Construction Work,908105,Construction work,07-Oct-2014,2801815-NORTHEASTINDEST,"24,125.00",JOHN WADE (HAULAGE) LTD.
Regeneration & Economic Development,Economic Development and Housing,Construction Work,908105,Construction work,07-Oct-2014,2801847-12654,"2,480.00",LUCION ENVIRONMENTAL LLP LTD.
Regeneration & Economic Development,Spatial Policy Planning Assets & Environment,Premises,125009,Rents,07-Oct-2014,2801864-4436,"17,793.75",MINTON OLDBURY LTD.
Regeneration & Economic Development,Transport and Contracted Services,Construction Work,908105,Construction work,07-Oct-2014,2801893-1800007085430,"4,440.44",NEWCASTLE UPON TYNE CITY COUNCIL.
Regeneration & Economic Development,Transport and Contracted Services,Third Party Payments,430106,Rendered by Private Contractors,07-Oct-2014,2802091-CONTRACT3308,"2,171.16",TONYS TAXIS (A BIRCH).
Regeneration & Economic Development,Transport and Contracted Services,Supplies and Services,304245,Equipment and Materials,07-Oct-2014,2802102-3IN/10249418,"4,175.00",TUNSTALL HEALTHCARE (UK) LTD.
Regeneration & Economic Development,Economic Development and Housing,Payments In Advance,932001,Payments in advance,07-Oct-2014,2802129-ORDERNO1392254,"2,420.07",WESTERN UNION BUSINESS SOLUTIONS.
Resources,I.C.T. Services,Construction Work,908105,Construction work,07-Oct-2014,2801634-2821005854,"1,000.00",CITY OF SUNDERLAND.
Resources,I.C.T. Services,Stock,926900,Stock in hand-Inventory system,07-Oct-2014,2801692-146921697,789.88,DIVERSEY LTD.
Resources,I.C.T. Services,Employees,040149,Recruitment Instruction and Training,07-Oct-2014,2801763-14856,"4,750.00",GOSS INTERACTIVE LTD.
Resources,Corporate Finance,Supplies and Services,342051,Computers and Communications,07-Oct-2014,2801795,"7,670.71",INFOR (UNITED KINGDOM) LTD.
Resources,I.C.T. Services,Stock,926900,Stock in hand-Inventory system,07-Oct-2014,2801798-2020316,630.00,INSIGHT DIRECT (UK) LTD.
Resources,I.C.T. Services,Supplies and Services,304259,Equipment and Materials,07-Oct-2014,2801798-2022327,698.37,INSIGHT DIRECT (UK) LTD.
Resources,Financial Services,Employees,040149,Recruitment Instruction and Training,07-Oct-2014,2801891-50059788,"1,446.00",NEW COLLEGE DURHAM.
Resources,Corporate Finance,Supplies and Services,384199,Miscellaneous Expenses,07-Oct-2014,2801927-814416,"25,788.75",PATECH SOLUTIONS LTD.
Children and Adult Services,Childrens Services,Premises,120009,Energy Costs,08-Oct-2014,2802502-79305943270-28/07/14,562.31,NPOWER.
Children and Adult Services,Childrens Services,Income,720129,Fees and Charges,08-Oct-2014,235049-CAS-10-2014-199,"8,283.84",HULL CITY COUNCIL.
Children and Adult Services,Childrens Services,Supplies and Services,364999,Grants to Voluntary Organisations,08-Oct-2014,2802514-CAS-09-2014-313,"2,580.00",PARKSIDE & DISTRICT COMMUNITY ASSOCIATION.
Children and Adult Services,Childrens Services,Supplies and Services,364999,Grants to Voluntary Organisations,08-Oct-2014,2802574-CAS-09-2014-308,"2,150.00",SHILDON PEOPLE`S CENTRE.
Children and Adult Services,Childrens Services,Supplies and Services,364999,Grants to Voluntary Organisations,08-Oct-2014,2802634-CAS-09-2014-317,860.00,UPPER TEESDALE AGRICULTURAL SUPPORT SERVICES LTD (UTASS).
Children and Adult Services,Childrens Services,Third Party Payments,425040,Rendered by Voluntary Organisations,08-Oct-2014,2802318-03172,"3,128.40",FOSTER CARE SOLUTIONS LTD.
Children and Adult Services,Childrens Services,Third Party Payments,425040,Rendered by Voluntary Organisations,08-Oct-2014,2802318-3354,"3,100.00",FOSTER CARE SOLUTIONS LTD.
Children and Adult Services,Childrens Services,Third Party Payments,425040,Rendered by Voluntary Organisations,08-Oct-2014,2802318-3355,"3,232.68",FOSTER CARE SOLUTIONS LTD.
Children and Adult Services,Childrens Services,Third Party Payments,425040,Rendered by Voluntary Organisations,08-Oct-2014,2802318-3356B,"3,232.68",FOSTER CARE SOLUTIONS LTD.
Children and Adult Services,Childrens Services,Third Party Payments,425040,Rendered by Voluntary Organisations,08-Oct-2014,2802318-3357B,"3,232.68",FOSTER CARE SOLUTIONS LTD.
Children and Adult Services,Childrens Services,Third Party Payments,425040,Rendered by Voluntary Organisations,08-Oct-2014,2802318-3358B,"3,631.34",FOSTER CARE SOLUTIONS LTD.
Children and Adult Services,Childrens Services,Third Party Payments,425040,Rendered by Voluntary Organisations,08-Oct-2014,2802318-3359B,"3,232.68",FOSTER CARE SOLUTIONS LTD.
Children and Adult Services,Childrens Services,Third Party Payments,425040,Rendered by Voluntary Organisations,08-Oct-2014,2802318-3360B,"3,232.68",FOSTER CARE SOLUTIONS LTD.
Children and Adult Services,Childrens Services,Third Party Payments,425040,Rendered by Voluntary Organisations,08-Oct-2014,2802318-3361B,"3,232.68",FOSTER CARE SOLUTIONS LTD.
Children and Adult Services,Childrens Services,Third Party Payments,425040,Rendered by Voluntary Organisations,08-Oct-2014,2802318-3362B,"3,365.67",FOSTER CARE SOLUTIONS LTD.
Children and Adult Services,Childrens Services,Third Party Payments,425040,Rendered by Voluntary Organisations,08-Oct-2014,2802318-3363B,"3,232.68",FOSTER CARE SOLUTIONS LTD.
Children and Adult Services,Childrens Services,Third Party Payments,425040,Rendered by Voluntary Organisations,08-Oct-2014,2802318-3364B,"3,232.68",FOSTER CARE SOLUTIONS LTD.
Children and Adult Services,Childrens Services,Third Party Payments,425040,Rendered by Voluntary Organisations,08-Oct-2014,2802318-3365B,"3,232.68",FOSTER CARE SOLUTIONS LTD.
Children and Adult Services,Childrens Services,Third Party Payments,425040,Rendered by Voluntary Organisations,08-Oct-2014,2802319-10822B,"1,000.00",FOSTER CARES LTD.
Children and Adult Services,Childrens Services,Third Party Payments,425040,Rendered by Voluntary Organisations,08-Oct-2014,2802319-11183,730.00,FOSTER CARES LTD.
Children and Adult Services,Childrens Services,Third Party Payments,425040,Rendered by Voluntary Organisations,08-Oct-2014,2802319-11193,820.00,FOSTER CARES LTD.
Children and Adult Services,Childrens Services,Third Party Payments,425040,Rendered by Voluntary Organisations,08-Oct-2014,2802319-11196,760.00,FOSTER CARES LTD.
Children and Adult Services,Childrens Services,Third Party Payments,425040,Rendered by Voluntary Organisations,08-Oct-2014,2802319-11197,730.00,FOSTER CARES LTD.
Children and Adult Services,Childrens Services,Third Party Payments,425040,Rendered by Voluntary Organisations,08-Oct-2014,2802319-11212,730.00,FOSTER CARES LTD.
Children and Adult Services,Childrens Services,Third Party Payments,425040,Rendered by Voluntary Organisations,08-Oct-2014,2802601-152785,"1,075.00",SWIIS FOSTER CARE LTD.
Children and Adult Services,Childrens Services,Third Party Payments,425040,Rendered by Voluntary Organisations,08-Oct-2014,2802601-153101,910.00,SWIIS FOSTER CARE LTD.
Children and Adult Services,Childrens Services,Third Party Payments,425040,Rendered by Voluntary Organisations,08-Oct-2014,2802601-153102,"1,069.00",SWIIS FOSTER CARE LTD.
Children and Adult Services,Childrens Services,Third Party Payments,425040,Rendered by Voluntary Organisations,08-Oct-2014,2802601-153104,891.90,SWIIS FOSTER CARE LTD.
Children and Adult Services,Childrens Services,Third Party Payments,425040,Rendered by Voluntary Organisations,08-Oct-2014,2802601-153105,"1,208.00",SWIIS FOSTER CARE LTD.
Children and Adult Services,Childrens Services,Third Party Payments,425040,Rendered by Voluntary Organisations,08-Oct-2014,2802609-23076,"1,068.57",TEAM FOSTERING.
Children and Adult Services,Childrens Services,Third Party Payments,425040,Rendered by Voluntary Organisations,08-Oct-2014,2802609-23133,"3,631.43",TEAM FOSTERING.
Children and Adult Services,Childrens Services,Third Party Payments,425040,Rendered by Voluntary Organisations,08-Oct-2014,2802609-23142,"3,100.00",TEAM FOSTERING.
Children and Adult Services,Childrens Services,Third Party Payments,425040,Rendered by Voluntary Organisations,08-Oct-2014,2802609-23160,"3,232.86",TEAM FOSTERING.
Children and Adult Services,Childrens Services,Third Party Payments,425040,Rendered by Voluntary Organisations,08-Oct-2014,2802609-23161,"3,100.00",TEAM FOSTERING.
Children and Adult Services,Childrens Services,Third Party Payments,425040,Rendered by Voluntary Organisations,08-Oct-2014,2802609-23162,"6,332.86",TEAM FOSTERING.
Children and Adult Services,Childrens Services,Third Party Payments,425040,Rendered by Voluntary Organisations,08-Oct-2014,2802609-23209,"3,232.86",TEAM FOSTERING.
Children and Adult Services,Childrens Services,Third Party Payments,425040,Rendered by Voluntary Organisations,08-Oct-2014,2802609-23229,"3,100.00",TEAM FOSTERING.
Children and Adult Services,Childrens Services,Third Party Payments,486021,Service Level Agreements,08-Oct-2014,2802546-3041,"40,200.00",REACH OUT CARE SUPPORT SERVICES LTD.
Children and Adult Services,Childrens Services,Third Party Payments,486023,Service Level Agreements,08-Oct-2014,2802561,500.00,SACRISTON COMMUNITY ASSOCIATION.
Children and Adult Services,Childrens Services,Premises,108135,Service Repairs and Maintenance,08-Oct-2014,2802197-332645,576.92,BAY PLASTICS LTD.
Children and Adult Services,Childrens Services,Premises,108099,Service Repairs and Maintenance,08-Oct-2014,2802604-JE00553/DJ/EP,905.00,T MANNERS & SONS LTD.
Children and Adult Services,Childrens Services,Supplies and Services,338044,Services,08-Oct-2014,235018-10/8/14,"1,408.20",DR TRACEY TYLER.
Children and Adult Services,Childrens Services,Supplies and Services,338045,Services,08-Oct-2014,2802354-CAS-09-2014-304,"1,660.50",HEWITTS SOLICITORS.
Children and Adult Services,Childrens Services,Supplies and Services,338026,Services,08-Oct-2014,2802429-SCS39414,866.30,LYNDA GARBUTT T/A SOCIAL CARE SERVICES.
Children and Adult Services,Commissioning inc Supporting People,Supplies and Services,338099,Services,08-Oct-2014,2802633-RP045569,"2,100.00",UNIVERSITY OF ST ANDREWS.
Dedicated Schools Grant,Dedicated Schools Grant,Third Party Payments,440080,Other Third Party Payments,08-Oct-2014,2802606-141,"15,384.62",TALBOT HOUSE SCHOOL.
Dedicated Schools Grant,Dedicated Schools Grant,Transfer Payments,510034,School Children,08-Oct-2014,2802362-RES-09-2014-116,"1,870.00",HURWORTH HOUSE ACADEMY SCHOOL.
Dedicated Schools Grant,Dedicated Schools Grant,Transfer Payments,510034,School Children,08-Oct-2014,2802489-RES-09-2014-115,"6,545.00",NORTH EAST AUTISM SOCIETY.
Dedicated Schools Grant,Dedicated Schools Grant,Transfer Payments,510034,School Children,08-Oct-2014,2802543-RES-10-2014-015,935.00,QUALITY TIME CARE LTD.
Dedicated Schools Grant,Dedicated Schools Grant,Transfer Payments,510034,School Children,08-Oct-2014,2802659-RES-09-2014-117,"3,535.00",WITHERSLACK CARE & EDUCATION INITIATIVES.
Children and Adult Services,Education,Construction Work,908105,Construction work,08-Oct-2014,235153-4322,750.00,PAUL EVANS SURVEYING LTD.
Children and Adult Services,Education,Construction Work,908105,Construction work,08-Oct-2014,2802312-14981,739.00,F WARREN (ELECTRICAL) LTD.
Children and Adult Services,Education,Construction Work,908105,Construction work,08-Oct-2014,2802428-15850,"1,300.00",LUCION ENVIRONMENTAL LLP LTD.
Children and Adult Services,Education,Transport,230008,Contract Hire,08-Oct-2014,2802162-AA962,"1,500.00",AA MINIBUS HIRE.
Children and Adult Services,Education,Transport,230007,Contract Hire,08-Oct-2014,2802163-X20/SK,"2,120.00",AABAT TAXIS.
Children and Adult Services,Education,Transport,230007,Contract Hire,08-Oct-2014,2802163-X22/SM,735.00,AABAT TAXIS.
Children and Adult Services,Education,Transport,230007,Contract Hire,08-Oct-2014,2802163-X24/SR,665.00,AABAT TAXIS.
Children and Adult Services,Education,Transport,230007,Contract Hire,08-Oct-2014,2802163-X37/SP,880.00,AABAT TAXIS.
Children and Adult Services,Education,Transport,230006,Contract Hire,08-Oct-2014,2802163-X38/SV,544.00,AABAT TAXIS.
Children and Adult Services,Education,Transport,230008,Contract Hire,08-Oct-2014,2802163-XI6/SD,"1,176.00",AABAT TAXIS.
Children and Adult Services,Education,Transport,230007,Contract Hire,08-Oct-2014,2802250-44549,"4,960.00",CJ GRIERSON.
Children and Adult Services,Education,Transport,230007,Contract Hire,08-Oct-2014,2802250-44550,"2,100.00",CJ GRIERSON.
Children and Adult Services,Education,Transport,230007,Contract Hire,08-Oct-2014,2802250-44551,"2,079.00",CJ GRIERSON.
Children and Adult Services,Education,Transport,230007,Contract Hire,08-Oct-2014,2802250-44552,"1,869.00",CJ GRIERSON.
Children and Adult Services,Education,Transport,230007,Contract Hire,08-Oct-2014,2802250-44553,"2,079.00",CJ GRIERSON.
Children and Adult Services,Education,Transport,230007,Contract Hire,08-Oct-2014,2802250-44555,"5,040.00",CJ GRIERSON.
Children and Adult Services,Education,Transport,230005,Contract Hire,08-Oct-2014,2802274-1352,"1,200.00",DA TAXIS.
Children and Adult Services,Education,Transport,230007,Contract Hire,08-Oct-2014,2802326-16674,"2,780.00",GARNETTS LTD (COACHES).
Children and Adult Services,Education,Transport,230007,Contract Hire,08-Oct-2014,2802326-16676,"12,495.00",GARNETTS LTD (COACHES).
Children and Adult Services,Education,Transport,230008,Contract Hire,08-Oct-2014,2802377-586,"1,520.00",JDS PRIVATE HIRE DURHAM.
Children and Adult Services,Education,Transport,230008,Contract Hire,08-Oct-2014,2802377-587,"1,280.00",JDS PRIVATE HIRE DURHAM.
Children and Adult Services,Education,Transport,230008,Contract Hire,08-Oct-2014,2802440-091401,"2,280.00",MARK & JOHN CHISHOLM T/A (CHEVRON).
Children and Adult Services,Education,Transport,230008,Contract Hire,08-Oct-2014,2802440-091403,"1,260.00",MARK & JOHN CHISHOLM T/A (CHEVRON).
Children and Adult Services,Education,Transport,230008,Contract Hire,08-Oct-2014,2802440-091405,936.00,MARK & JOHN CHISHOLM T/A (CHEVRON).
Children and Adult Services,Education,Transport,230008,Contract Hire,08-Oct-2014,2802465-640,500.00,MR AD HOWARD.
Children and Adult Services,Education,Transport,230008,Contract Hire,08-Oct-2014,2802485-3371,"1,400.00",NIGHTINGALE COACHES.
Children and Adult Services,Education,Transport,230008,Contract Hire,08-Oct-2014,2802485-3372,"1,440.00",NIGHTINGALE COACHES.
Children and Adult Services,Education,Transport,230008,Contract Hire,08-Oct-2014,2802485-3373,840.00,NIGHTINGALE COACHES.
Children and Adult Services,Education,Transport,230008,Contract Hire,08-Oct-2014,2802485-3374,"1,180.00",NIGHTINGALE COACHES.
Children and Adult Services,Education,Transport,230008,Contract Hire,08-Oct-2014,2802485-3376,900.00,NIGHTINGALE COACHES.
Children and Adult Services,Education,Transport,230008,Contract Hire,08-Oct-2014,2802485-3377,"1,180.00",NIGHTINGALE COACHES.
Children and Adult Services,Education,Transport,230008,Contract Hire,08-Oct-2014,2802485-3381,741.00,NIGHTINGALE COACHES.
Children and Adult Services,Education,Transport,230008,Contract Hire,08-Oct-2014,2802485-3382,532.00,NIGHTINGALE COACHES.
Children and Adult Services,Education,Transport,230007,Contract Hire,08-Oct-2014,2802515-1349,"1,134.00",PAUL WATSON TRAVEL.
Children and Adult Services,Education,Transport,230007,Contract Hire,08-Oct-2014,2802515-1350,"2,730.00",PAUL WATSON TRAVEL.
Children and Adult Services,Education,Transport,230008,Contract Hire,08-Oct-2014,2802559-W075/23,"1,680.00",S & S TRAVEL LTD.
Children and Adult Services,Education,Transport,230008,Contract Hire,08-Oct-2014,2802576-71510,"2,310.00",SHOTTON PRIVATE HIRE.
Children and Adult Services,Education,Transport,230007,Contract Hire,08-Oct-2014,2802594-253,"1,996.00",STEPHEN MAUDE LTD T/A MAUDES COACHES.
Children and Adult Services,Education,Transport,230006,Contract Hire,08-Oct-2014,2802607-DCC/2014/37,832.00,TAYLOR`S TAXIS.
Children and Adult Services,Education,Third Party Payments,440999,Other Third Party Payments,08-Oct-2014,2802475-262,"2,249.39",NECA (SERVICES) LTD.
Children and Adult Services,Education,Third Party Payments,440999,Other Third Party Payments,08-Oct-2014,2802494-DCC53,"8,374.24",NORTHERN RIGHTS COMMUNITY INTEREST COMPANY (CIC)..
Children and Adult Services,Education,Premises,125009,Rents,08-Oct-2014,2802621-3230,"1,233.30",THE WORK PLACE (AYCLIFFE) LTD.
Children and Adult Services,Education,Transfer Payments,510026,School Children,08-Oct-2014,2802282-CAS-09-2014-299,"19,998.00",DAYPARK LTD T/A YELLOW WELLIES.
Children and Adult Services,Education,Supplies and Services,338094,Services,08-Oct-2014,2802410-18002457,992.00,LEISURE IN THE COMMUNITY LTD.
Children and Adult Services,Head of Adults,Transport,230005,Contract Hire,08-Oct-2014,2802163-X27/ST,980.00,AABAT TAXIS.
Children and Adult Services,Head of Adults,Transport,230005,Contract Hire,08-Oct-2014,2802163-X29/CC,566.40,AABAT TAXIS.
Children and Adult Services,Head of Adults,Transport,230005,Contract Hire,08-Oct-2014,2802163-X30/DC,"1,068.00",AABAT TAXIS.
Children and Adult Services,Head of Adults,Transport,230005,Contract Hire,08-Oct-2014,2802485-3379,858.00,NIGHTINGALE COACHES.
Children and Adult Services,Head of Adults,Transport,230005,Contract Hire,08-Oct-2014,2802527-01029,650.00,PHILLIPS TAXI GROUP LTD.
Children and Adult Services,Head of Adults,Transport,230005,Contract Hire,08-Oct-2014,2802535-140906,632.00,PRATTS TAXIS.
Children and Adult Services,Head of Adults,Transport,230005,Contract Hire,08-Oct-2014,2802535-140907,950.00,PRATTS TAXIS.
Children and Adult Services,Head of Adults,Transport,230005,Contract Hire,08-Oct-2014,2802645-916,"1,320.00",WAYNE`S TAXIS.
Children and Adult Services,Head of Adults,Transport,230005,Contract Hire,08-Oct-2014,2802645-918,990.00,WAYNE`S TAXIS.
Children and Adult Services,Head of Adults,Supplies and Services,304598,Equipment and Materials,08-Oct-2014,2802165-27668872-61,"3,998.49",ADT FIRE & SECURITY PLC.
Children and Adult Services,Head of Adults,Third Party Payments,474101,Purchase of Care,08-Oct-2014,234890-2191548,"2,694.00",CARELINE LIFESTYLES LTD.
Children and Adult Services,Head of Adults,Third Party Payments,470101,Purchase of Care,08-Oct-2014,234890-2191550,"2,500.00",CARELINE LIFESTYLES LTD.
Children and Adult Services,Head of Adults,Third Party Payments,470101,Purchase of Care,08-Oct-2014,234890-2191551,"2,016.00",CARELINE LIFESTYLES LTD.
Children and Adult Services,Head of Adults,Third Party Payments,478101,Purchase of Care,08-Oct-2014,235128-2190121,"1,301.00",REDACTED - PAYMENT TO INDIVIDUAL
Children and Adult Services,Head of Adults,Third Party Payments,473101,Purchase of Care,08-Oct-2014,235161-4054,960.00,REAL CARE LTD.
Children and Adult Services,Head of Adults,Third Party Payments,479102,Purchase of Care,08-Oct-2014,2802304-59,734.00,REDACTED - PAYMENT TO INDIVIDUAL
Children and Adult Services,Head of Adults,Supplies and Services,338365,Services,08-Oct-2014,235068-33999,"2,310.00",LOCKWISE LTD.
Children and Adult Services,Head of Adults,Supplies and Services,338365,Services,08-Oct-2014,2802189-6253,764.60,ASTOR BANNERMAN (MEDICAL) LTD.
Children and Adult Services,Planning & Service Strategy,Supplies and Services,384540,Miscellaneous Expenses,08-Oct-2014,2802235-115818,550.00,CALCO PUBLICATIONS LLP.
Children and Adult Services,Public Health,Transport,230710,Contract Hire,08-Oct-2014,2802414-MRI2772940,"2,825.76",LEX AUTOLEASE LTD.
Children and Adult Services,Public Health,Third Party Payments,460803,Contract Payments,08-Oct-2014,2802179-FPL65/0714/NRT,"1,706.38",AR MCCONNELL LTD T/A THE VILLAGE PHARMACY.
Children and Adult Services,Public Health,Third Party Payments,460803,Contract Payments,08-Oct-2014,2802179-FPL65/0814/NRT,598.12,AR MCCONNELL LTD T/A THE VILLAGE PHARMACY.
Children and Adult Services,Public Health,Third Party Payments,460803,Contract Payments,08-Oct-2014,2802187-FTW78/0714/NRT,"1,530.30",ASHCHEM LTD.
Children and Adult Services,Public Health,Third Party Payments,460803,Contract Payments,08-Oct-2014,2802203-FFK86/0714/NRT,"1,031.00",BEWICK PHARMACY.
Children and Adult Services,Public Health,Third Party Payments,460803,Contract Payments,08-Oct-2014,2802210-FPC89/AUG2014,954.00,BOOTS THE CHEMISTS LTD.
Children and Adult Services,Public Health,Third Party Payments,460803,Contract Payments,08-Oct-2014,2802211-FLO73/0714/NRT,522.34,BOOTS THE CHEMISTS LTD.
Children and Adult Services,Public Health,Third Party Payments,460803,Contract Payments,08-Oct-2014,2802212-FGR42/0714/NRT,995.92,BOOTS THE CHEMISTS LTD.
Children and Adult Services,Public Health,Third Party Payments,460803,Contract Payments,08-Oct-2014,2802218-FH756/0714/NRT,563.10,BOOTS THE CHEMISTS LTD.
Children and Adult Services,Public Health,Third Party Payments,460803,Contract Payments,08-Oct-2014,2802223-FHD21/0714/NRT,"1,450.36",BOOTS THE CHEMISTS LTD.
Children and Adult Services,Public Health,Third Party Payments,460803,Contract Payments,08-Oct-2014,2802224-FMD09/0714/NRT,813.28,BOOTS THE CHEMISTS LTD.
Children and Adult Services,Public Health,Third Party Payments,460803,Contract Payments,08-Oct-2014,2802227-FFV56/0714/NRT,863.04,BRITTON & ROBSON LTD.
Children and Adult Services,Public Health,Third Party Payments,460803,Contract Payments,08-Oct-2014,2802227-FJV36/0714/NRT,797.30,BRITTON & ROBSON LTD.
Children and Adult Services,Public Health,Third Party Payments,460803,Contract Payments,08-Oct-2014,2802246-FGH21/0514/NRT,588.00,CHILTON CHEMISTS LTD.
Children and Adult Services,Public Health,Third Party Payments,460803,Contract Payments,08-Oct-2014,2802246-FGH21/0714/NRT,785.00,CHILTON CHEMISTS LTD.
Children and Adult Services,Public Health,Third Party Payments,460803,Contract Payments,08-Oct-2014,2802289-FWL23/0714/NRT,"1,839.75",DIXON & HALL LTD.
Children and Adult Services,Public Health,Third Party Payments,460803,Contract Payments,08-Oct-2014,2802289-FWL32/0814/NRT,"1,657.61",DIXON & HALL LTD.
Children and Adult Services,Public Health,Third Party Payments,460803,Contract Payments,08-Oct-2014,2802290-FCJ/0714/NRT,687.72,DIXON & HALL LTD.
Children and Adult Services,Public Health,Third Party Payments,460803,Contract Payments,08-Oct-2014,2802325-FV165/0814/NRT,544.91,G WHITFIELD LTD.
Children and Adult Services,Public Health,Third Party Payments,460803,Contract Payments,08-Oct-2014,2802369-FDH51/0814/NRT,619.72,INTRAHEALTH LTD.
Children and Adult Services,Public Health,Third Party Payments,460803,Contract Payments,08-Oct-2014,2802376-FEG57/0714/NRT,613.20,J DINNING (LUMLEY) LTD T/A LUMLEY PHARMACY.
Children and Adult Services,Public Health,Third Party Payments,460803,Contract Payments,08-Oct-2014,2802380-FEM40/0714/NRT,"3,148.74",JF EILBECK CHEMIST LTD.
Children and Adult Services,Public Health,Third Party Payments,460803,Contract Payments,08-Oct-2014,2802381-FKG29/0714/NRT,559.69,JF EILBECK CHEMIST LTD.
Children and Adult Services,Public Health,Third Party Payments,460803,Contract Payments,08-Oct-2014,2802381-FKG29/0814/NRT,627.15,JF EILBECK CHEMIST LTD.
Children and Adult Services,Public Health,Third Party Payments,460803,Contract Payments,08-Oct-2014,2802406-FFF81/0714/NRT,588.73,LANCHESTER PHARMACY.
Children and Adult Services,Public Health,Third Party Payments,460803,Contract Payments,08-Oct-2014,2802418-FRR32/0814/NRT,629.41,LLOYDS PHARMACY.
Children and Adult Services,Public Health,Third Party Payments,460803,Contract Payments,08-Oct-2014,2802419-FWF93/0814/NRT,"1,818.51",LLOYDS PHARMACY.
Children and Adult Services,Public Health,Third Party Payments,460803,Contract Payments,08-Oct-2014,2802421-FFC99/0714/NRT,979.84,LLOYDS PHARMACY.
Children and Adult Services,Public Health,Third Party Payments,460803,Contract Payments,08-Oct-2014,2802422-FD810/0814/NRT,866.80,LLOYDS PHARMACY.
Children and Adult Services,Public Health,Third Party Payments,460803,Contract Payments,08-Oct-2014,2802430-FH490/0714/NRT,927.39,M & M PHARMACIES LTD.
Children and Adult Services,Public Health,Third Party Payments,460803,Contract Payments,08-Oct-2014,2802430-FH490/0814/NRT,774.38,M & M PHARMACIES LTD.
Children and Adult Services,Public Health,Third Party Payments,460803,Contract Payments,08-Oct-2014,2802432-FRQ38/0714/NRT,972.54,M & M PHARMACIES LTD.
Children and Adult Services,Public Health,Third Party Payments,460803,Contract Payments,08-Oct-2014,2802432-FRQ38/0814/NRT,533.88,M & M PHARMACIES LTD.
Children and Adult Services,Public Health,Third Party Payments,460803,Contract Payments,08-Oct-2014,2802437-FTT54/0814/NRT,520.07,M WHITFIELD LTD.
Children and Adult Services,Public Health,Third Party Payments,460803,Contract Payments,08-Oct-2014,2802454-FED01/0814/NRT,604.77,MILLERS PHARMACY.
Children and Adult Services,Public Health,Third Party Payments,460802,Contract Payments,08-Oct-2014,2802497-7510033988,"4,574.23",NORTHUMBRIA HEALTHCARE NHS FOUNDATION TRUST.
Children and Adult Services,Public Health,Third Party Payments,460802,Contract Payments,08-Oct-2014,2802497-7510046545,641.00,NORTHUMBRIA HEALTHCARE NHS FOUNDATION TRUST.
Children and Adult Services,Public Health,Third Party Payments,460803,Contract Payments,08-Oct-2014,2802519-FCQ82/0714/NRT,882.08,PELTON FELL PHARMACY.
Children and Adult Services,Public Health,Third Party Payments,460803,Contract Payments,08-Oct-2014,2802524-FC276/0914/NRT,749.97,PHILLIPS CHEMISTS LTD.
Children and Adult Services,Public Health,Third Party Payments,460803,Contract Payments,08-Oct-2014,2802555-FL345/0714/NRT,"1,001.61",ROBERTS & ROBERTS LTD T/A HIGGINBOTTOM PHARMACY.
Children and Adult Services,Public Health,Third Party Payments,460803,Contract Payments,08-Oct-2014,2802575-FJW29/0714/NRT,878.31,SHOTTON PHARMACY.
Children and Adult Services,Public Health,Third Party Payments,460803,Contract Payments,08-Oct-2014,2802575-FJW29/0814/NRT,902.98,SHOTTON PHARMACY.
Children and Adult Services,Public Health,Third Party Payments,460803,Contract Payments,08-Oct-2014,2802605-FUH83/0714/NRT,593.98,T MEIKLE PHARMACY.
Children and Adult Services,Public Health,Third Party Payments,460803,Contract Payments,08-Oct-2014,2802614-FLL39/0714/NRT,566.97,TESCO PHARMACY.
Children and Adult Services,Public Health,Third Party Payments,460803,Contract Payments,08-Oct-2014,2802652-FEQ59/0714/NRT,902.35,WHITWORTH CHEMISTS LTD.
Children and Adult Services,Public Health,Third Party Payments,460803,Contract Payments,08-Oct-2014,2802652-FEQ59/0814/NRT,"1,148.13",WHITWORTH CHEMISTS LTD.
Children and Adult Services,Public Health,Supplies and Services,384155,Miscellaneous Expenses,08-Oct-2014,2802484-1000041477,"60,326.18",NHS BUSINESS SERVICES AUTHORITY.
Assistant Chief Executive,Partnerships & Community Engagement Div.,Supplies and Services,384085,Miscellaneous Expenses,08-Oct-2014,235174-BLEG04-14MORS01-14,500.00,SEAHAM PARK CRICKET CLUB.
Assistant Chief Executive,Partnerships & Community Engagement Div.,Cap Exp on Grants & Other Financial Assistance (REFCUS),918004,Contributions to other bodies,08-Oct-2014,2802321-VOUCHER14AB,"1,000.00",FRIENDS OF THE MINERS WELFARE.
Assistant Chief Executive,Partnerships & Community Engagement Div.,Premises,125009,Rents,08-Oct-2014,2802416-RSHPIN/00000891,"1,005.12",LIVIN HOUSING LTD.
Assistant Chief Executive,Partnerships & Community Engagement Div.,Construction Work,908105,Construction work,08-Oct-2014,2802428-12658,"1,870.00",LUCION ENVIRONMENTAL LLP LTD.
Assistant Chief Executive,Partnerships & Community Engagement Div.,Transfer Payments,525030,Other,08-Oct-2014,2802439-RES-09-2014-132,"1,617.50",MAINSFORTH & DIST COMM ASSOC.
Assistant Chief Executive,Partnerships & Community Engagement Div.,Transfer Payments,525030,Other,08-Oct-2014,2802453-RES-09-2014-141,"1,617.50",MIDDLESTONE MOOR COMMUNITY ASSOCIATION.
Assistant Chief Executive,Partnerships & Community Engagement Div.,Premises,120009,Energy Costs,08-Oct-2014,2802502-NNO7DQ5H,632.10,NPOWER.
Assistant Chief Executive,Partnerships & Community Engagement Div.,Transfer Payments,525030,Other,08-Oct-2014,2802529-VOUCHER14AB-GAMP002,"20,000.00",PIONEERING CARE PARTNERSHIP.
Neighbourhood Services,Technical Services,Supplies and Services,304221,Equipment and Materials,08-Oct-2014,234883-4388,"1,695.00",ALTHON LTD.
Neighbourhood Services,Technical Services,Employees,040149,Recruitment Instruction and Training,08-Oct-2014,234907-HLS/GT/SL/PPT0256,800.00,DAVID WHYTE T/A HORTICULTURAL LANDSCAPE SOLUTIONS.
Neighbourhood Services,Technical Services,Supplies and Services,338027,Services,08-Oct-2014,235041-14/05/0093,564.70,GREENCROFT ESTATE CO LTD.
Neighbourhood Services,Culture & Sport,Supplies and Services,338047,Services,08-Oct-2014,235146-21930/ACL/4677,"3,789.00",MUSIC SCOPE.
Neighbourhood Services,Culture & Sport,Supplies and Services,384302,Miscellaneous Expenses,08-Oct-2014,235146-WIZARDOFOZ,500.00,MUSIC SCOPE.
Neighbourhood Services,Direct Services,Stock,926004,Stock,08-Oct-2014,235163-18787,791.42,REFLEX DESIGN INTERNATIONAL LTD.
Neighbourhood Services,Direct Services,Supplies and Services,304259,Equipment and Materials,08-Oct-2014,235188-INV305064,"1,330.00",SWIFT BRAKE & CLUTCH LTD.
Neighbourhood Services,Culture & Sport,Supplies and Services,338099,Services,08-Oct-2014,235196-22082014,"1,300.00",THE NORTH EAST MILITARY VEHICLE CLUB.
Neighbourhood Services,Direct Services,Transport,210057,Repair and Maintenance of Vehicles,08-Oct-2014,235203-INV460293,"2,318.29",VERSALIFT DISTRIBUTORS (UK) LTD.
Neighbourhood Services,Culture & Sport,Supplies and Services,384540,Miscellaneous Expenses,08-Oct-2014,2802160-ADI-BRASS14,"1,500.00",A DIFFERENT ILK LTD.
Neighbourhood Services,Culture & Sport,Premises,108099,Service Repairs and Maintenance,08-Oct-2014,2802164-90104531,"1,065.72",ABACUS LIGHTING LTD.
Neighbourhood Services,Technical Services,Supplies and Services,304221,Equipment and Materials,08-Oct-2014,2802168-20263578,"4,202.40",AGGREGATE INDUSTRIES UK LTD.
Neighbourhood Services,Technical Services,Supplies and Services,304221,Equipment and Materials,08-Oct-2014,2802169-19945365,"1,251.16",AGGREGATE INDUSTRIES UK LTD.
Neighbourhood Services,Technical Services,Supplies and Services,304221,Equipment and Materials,08-Oct-2014,2802169-19954704,"1,215.20",AGGREGATE INDUSTRIES UK LTD.
Neighbourhood Services,Technical Services,Supplies and Services,304221,Equipment and Materials,08-Oct-2014,2802169-19975287,778.84,AGGREGATE INDUSTRIES UK LTD.
Neighbourhood Services,Technical Services,Supplies and Services,304221,Equipment and Materials,08-Oct-2014,2802169-20408474,"1,008.12",AGGREGATE INDUSTRIES UK LTD.
Neighbourhood Services,Technical Services,Supplies and Services,304221,Equipment and Materials,08-Oct-2014,2802169-20415185,"1,212.72",AGGREGATE INDUSTRIES UK LTD.
Neighbourhood Services,Technical Services,Supplies and Services,304221,Equipment and Materials,08-Oct-2014,2802169-20421649,967.04,AGGREGATE INDUSTRIES UK LTD.
Neighbourhood Services,Projects and Business services,Supplies and Services,338027,Services,08-Oct-2014,2802172-HL168950,641.62,ALCONTROL LABORATORIES.
Neighbourhood Services,Projects and Business services,Supplies and Services,338027,Services,08-Oct-2014,2802172-HL169461,740.87,ALCONTROL LABORATORIES.
Neighbourhood Services,Direct Services,Third Party Payments,430100,Rendered by Private Contractors,08-Oct-2014,2802178-96891,695.00,AQUEOUS 1ST KWIK FLOW.
Neighbourhood Services,Direct Services,Third Party Payments,430100,Rendered by Private Contractors,08-Oct-2014,2802178-96892,585.00,AQUEOUS 1ST KWIK FLOW.
Neighbourhood Services,Technical Services,Stock,926900,Stock in hand-Inventory system,08-Oct-2014,2802180-922700099,624.55,ARCO LTD.
Neighbourhood Services,Technical Services,Supplies and Services,389001,Inventory Related,08-Oct-2014,2802180-922913685,"1,009.31",ARCO LTD.
Neighbourhood Services,Technical Services,Stock,926900,Stock in hand-Inventory system,08-Oct-2014,2802180-922941282,734.12,ARCO LTD.
Neighbourhood Services,Technical Services,Stock,926900,Stock in hand-Inventory system,08-Oct-2014,2802190-SIN227515,"1,050.00",ATF SUPPLIES LTD.
Neighbourhood Services,Technical Services,Supplies and Services,338027,Services,08-Oct-2014,2802191-14029060,"2,385.00",ATKINS GLOBAL.
Neighbourhood Services,Direct Services,Third Party Payments,430100,Rendered by Private Contractors,08-Oct-2014,2802196-28751,"4,103.00",AYCLIFFE FABRICATIONS LTD.
Neighbourhood Services,Technical Services,Supplies and Services,304221,Equipment and Materials,08-Oct-2014,2802198-1403/010,"3,347.42",BCE NORTHERN LTD.
Neighbourhood Services,Technical Services,Stock,926900,Stock in hand-Inventory system,08-Oct-2014,2802207-8344476,872.62,BOLD NU TEC INSULATION PRODUCTS & SERVICES LTD.
Neighbourhood Services,Direct Services,Supplies and Services,304221,Equipment and Materials,08-Oct-2014,2802229-1650/0631014,904.12,BSS GROUP PLC.
Neighbourhood Services,Technical Services,Stock,926900,Stock in hand-Inventory system,08-Oct-2014,2802234-162,710.00,CAEDMON NETS.
Neighbourhood Services,Direct Services,Construction Work,908105,Construction work,08-Oct-2014,2802238-93903188,"2,872.08",CAPITA PROPERTY & INFRASTRUCTURE LTD.
Neighbourhood Services,Projects and Business services,Transport,215005,Running Costs of Vehicles,08-Oct-2014,2802243-2893691,"3,249.00",CERTAS ENERGY UK LTD.
Neighbourhood Services,Direct Services,Supplies and Services,304259,Equipment and Materials,08-Oct-2014,2802248-DRM/128825,615.90,CITY ELECTRICAL FACTORS LTD.
Neighbourhood Services,Technical Services,Premises,150015,Apportioned Exps of Operational Blds,08-Oct-2014,2802253-3764,903.54,CLEE HILL PLANT LTD.
Neighbourhood Services,Projects and Business services,Third Party Payments,430103,Rendered by Private Contractors,08-Oct-2014,2802255-NEI-EXP-10-2014-033,723.38,CLOTHES AID (SERVICES) LTD.
Neighbourhood Services,Direct Services,Vehicles Equipment Furniture and Fittings,912529,Purchase-equipment,08-Oct-2014,2802272-1632175,"12,870.00",CRAEMER UK LTD.
Neighbourhood Services,Direct Services,Vehicles Equipment Furniture and Fittings,912529,Purchase-equipment,08-Oct-2014,2802272-1632176,"14,586.00",CRAEMER UK LTD.
Neighbourhood Services,Direct Services,Vehicles Equipment Furniture and Fittings,912529,Purchase-equipment,08-Oct-2014,2802272-1632192,"12,870.00",CRAEMER UK LTD.
Neighbourhood Services,Direct Services,Vehicles Equipment Furniture and Fittings,912529,Purchase-equipment,08-Oct-2014,2802272-1632193,"14,586.00",CRAEMER UK LTD.
Neighbourhood Services,Direct Services,Vehicles Equipment Furniture and Fittings,912529,Purchase-equipment,08-Oct-2014,2802272-1632239,"12,870.00",CRAEMER UK LTD.
Neighbourhood Services,Direct Services,Vehicles Equipment Furniture and Fittings,912529,Purchase-equipment,08-Oct-2014,2802272-1632240,"14,586.00",CRAEMER UK LTD.
Neighbourhood Services,Direct Services,Vehicles Equipment Furniture and Fittings,912529,Purchase-equipment,08-Oct-2014,2802272-1632260,"14,586.00",CRAEMER UK LTD.
Neighbourhood Services,Direct Services,Vehicles Equipment Furniture and Fittings,912529,Purchase-equipment,08-Oct-2014,2802272-1632261,"12,870.00",CRAEMER UK LTD.
Neighbourhood Services,Direct Services,Vehicles Equipment Furniture and Fittings,912529,Purchase-equipment,08-Oct-2014,2802272-1632278,"14,586.00",CRAEMER UK LTD.
Neighbourhood Services,Direct Services,Vehicles Equipment Furniture and Fittings,912529,Purchase-equipment,08-Oct-2014,2802272-1632279,"12,870.00",CRAEMER UK LTD.
Neighbourhood Services,Direct Services,Vehicles Equipment Furniture and Fittings,912529,Purchase-equipment,08-Oct-2014,2802272-1632287,"12,870.00",CRAEMER UK LTD.
Neighbourhood Services,Direct Services,Vehicles Equipment Furniture and Fittings,912529,Purchase-equipment,08-Oct-2014,2802272-1632288,"14,586.00",CRAEMER UK LTD.
Neighbourhood Services,Direct Services,Vehicles Equipment Furniture and Fittings,912529,Purchase-equipment,08-Oct-2014,2802272-1632327,"14,586.00",CRAEMER UK LTD.
Neighbourhood Services,Direct Services,Vehicles Equipment Furniture and Fittings,912529,Purchase-equipment,08-Oct-2014,2802272-1632328,"12,870.00",CRAEMER UK LTD.
Neighbourhood Services,Direct Services,Vehicles Equipment Furniture and Fittings,912529,Purchase-equipment,08-Oct-2014,2802272-1632347,"12,870.00",CRAEMER UK LTD.
Neighbourhood Services,Direct Services,Vehicles Equipment Furniture and Fittings,912529,Purchase-equipment,08-Oct-2014,2802272-1632348,"12,870.00",CRAEMER UK LTD.
Neighbourhood Services,Direct Services,Vehicles Equipment Furniture and Fittings,912529,Purchase-equipment,08-Oct-2014,2802272-1632355,"12,870.00",CRAEMER UK LTD.
Neighbourhood Services,Direct Services,Vehicles Equipment Furniture and Fittings,912529,Purchase-equipment,08-Oct-2014,2802272-1632373,"14,586.00",CRAEMER UK LTD.
Neighbourhood Services,Direct Services,Vehicles Equipment Furniture and Fittings,912529,Purchase-equipment,08-Oct-2014,2802272-1632374,"12,870.00",CRAEMER UK LTD.
Neighbourhood Services,Direct Services,Transport,230005,Contract Hire,08-Oct-2014,2802281-675821,528.00,DAWSONRENTALS VANS LTD.
Neighbourhood Services,Direct Services,Transport,230005,Contract Hire,08-Oct-2014,2802281-675822,528.00,DAWSONRENTALS VANS LTD.
Neighbourhood Services,Culture & Sport,Employees,080030,Agency Staff,08-Oct-2014,2802297-SEPT14,500.00,REDACTED - PAYMENT TO INDIVIDUAL
Neighbourhood Services,Direct Services,Employees,040149,Recruitment Instruction and Training,08-Oct-2014,2802298-GK/0011,600.00,DURHAM AGENCY AGAINST CRIME LTD (DAAC).
Neighbourhood Services,Direct Services,Supplies and Services,304221,Equipment and Materials,08-Oct-2014,2802316-1410-211059,573.95,FLAME HEATING SPARES LTD.
Neighbourhood Services,Technical Services,Stock,926900,Stock in hand-Inventory system,08-Oct-2014,2802317-OP/I282538,"1,142.18",FLEMING & CO (MACHINERY) LTD.
Neighbourhood Services,Technical Services,Stock,926900,Stock in hand-Inventory system,08-Oct-2014,2802317-OP/I282704,702.00,FLEMING & CO (MACHINERY) LTD.
Neighbourhood Services,Direct Services,Stock,926004,Stock,08-Oct-2014,2802330-B97116,619.59,GEESINK NORBA LTD.
Neighbourhood Services,Culture & Sport,Supplies and Services,304221,Equipment and Materials,08-Oct-2014,2802335-074376,"1,819.15",GODFREY SYRETT LTD.
Neighbourhood Services,Direct Services,Supplies and Services,304259,Equipment and Materials,08-Oct-2014,2802337-INV051698,876.91,GOTT TECHNICAL SERVICES LTD.
Neighbourhood Services,Direct Services,Transport,210057,Repair and Maintenance of Vehicles,08-Oct-2014,2802341-117420,"1,054.80",GREENLAY (GRASS MACHINERY) LTD.
Neighbourhood Services,Direct Services,Supplies and Services,304221,Equipment and Materials,08-Oct-2014,2802344-J4566,"3,436.00",GROVE REED.
Neighbourhood Services,Direct Services,Supplies and Services,338066,Services,08-Oct-2014,2802349-FUNERALFORJB,"1,587.00",HARDYS FUNERAL SERVICE.
Neighbourhood Services,Technical Services,Employees,040149,Recruitment Instruction and Training,08-Oct-2014,2802360-1251,600.00,HSF TRAINING LTD.
Neighbourhood Services,Culture & Sport,Supplies and Services,304221,Equipment and Materials,08-Oct-2014,2802389-729086,977.88,JP LENNARD LTD.
Neighbourhood Services,Direct Services,Supplies and Services,304221,Equipment and Materials,08-Oct-2014,2802391-BA1228865,824.50,JT DOVE LTD.
Neighbourhood Services,Technical Services,Supplies and Services,304221,Equipment and Materials,08-Oct-2014,2802391-BI1146044,658.00,JT DOVE LTD.
Neighbourhood Services,Technical Services,Supplies and Services,304221,Equipment and Materials,08-Oct-2014,2802391-CNI20524/D,729.20,JT DOVE LTD.
Neighbourhood Services,Technical Services,Supplies and Services,304221,Equipment and Materials,08-Oct-2014,2802391-CNI20568/D,"1,341.00",JT DOVE LTD.
Neighbourhood Services,Direct Services,Supplies and Services,304221,Equipment and Materials,08-Oct-2014,2802391-NOI60129,635.85,JT DOVE LTD.
Neighbourhood Services,Technical Services,Stock,926900,Stock in hand-Inventory system,08-Oct-2014,2802391-STI408774,839.80,JT DOVE LTD.
Neighbourhood Services,Technical Services,Stock,926900,Stock in hand-Inventory system,08-Oct-2014,2802391-STI408948,"1,158.70",JT DOVE LTD.
Neighbourhood Services,Technical Services,Stock,926900,Stock in hand-Inventory system,08-Oct-2014,2802391-STI409135,572.00,JT DOVE LTD.
Neighbourhood Services,Technical Services,Stock,926900,Stock in hand-Inventory system,08-Oct-2014,2802391-STI409136,581.00,JT DOVE LTD.
Neighbourhood Services,Technical Services,Stock,926900,Stock in hand-Inventory system,08-Oct-2014,2802391-STI409251,509.70,JT DOVE LTD.
Neighbourhood Services,Technical Services,Stock,926900,Stock in hand-Inventory system,08-Oct-2014,2802391-STI409275,"1,115.36",JT DOVE LTD.
Neighbourhood Services,Direct Services,Third Party Payments,430100,Rendered by Private Contractors,08-Oct-2014,2802395-488,"60,033.44",KARLIN TIMBER FRAME (NE) LTD.
Neighbourhood Services,Technical Services,Stock,926900,Stock in hand-Inventory system,08-Oct-2014,2802405-9031456854,899.93,LAFARGE TARMAC TRADING LTD.
Neighbourhood Services,Technical Services,Supplies and Services,304221,Equipment and Materials,08-Oct-2014,2802405-9031624709,656.00,LAFARGE TARMAC TRADING LTD.
Neighbourhood Services,Technical Services,Supplies and Services,304221,Equipment and Materials,08-Oct-2014,2802405-9031626871,538.65,LAFARGE TARMAC TRADING LTD.
Neighbourhood Services,Technical Services,Supplies and Services,304221,Equipment and Materials,08-Oct-2014,2802405-9031634293,842.40,LAFARGE TARMAC TRADING LTD.
Neighbourhood Services,Technical Services,Supplies and Services,304221,Equipment and Materials,08-Oct-2014,2802405-9031638120,674.80,LAFARGE TARMAC TRADING LTD.
Neighbourhood Services,Technical Services,Supplies and Services,304221,Equipment and Materials,08-Oct-2014,2802405-9031638124,658.00,LAFARGE TARMAC TRADING LTD.
Neighbourhood Services,Technical Services,Supplies and Services,304221,Equipment and Materials,08-Oct-2014,2802405-9031647221,842.40,LAFARGE TARMAC TRADING LTD.
Neighbourhood Services,Technical Services,Supplies and Services,304221,Equipment and Materials,08-Oct-2014,2802405-9031647227,553.23,LAFARGE TARMAC TRADING LTD.
Neighbourhood Services,Technical Services,Supplies and Services,304221,Equipment and Materials,08-Oct-2014,2802405-9031668116,"1,142.05",LAFARGE TARMAC TRADING LTD.
Neighbourhood Services,Direct Services,Supplies and Services,304221,Equipment and Materials,08-Oct-2014,2802424-3379671,"1,112.40",LONDON GENERAL SALES LTD.
Neighbourhood Services,Direct Services,Supplies and Services,304221,Equipment and Materials,08-Oct-2014,2802424-3379672,"1,531.02",LONDON GENERAL SALES LTD.
Neighbourhood Services,Culture & Sport,Supplies and Services,384199,Miscellaneous Expenses,08-Oct-2014,2802449-MGNMC31082014,"1,200.00",MENISHA GELA.
Neighbourhood Services,Direct Services,Third Party Payments,430100,Rendered by Private Contractors,08-Oct-2014,2802456-7135/90814629,580.00,MITIE PROPERTY SERVICES (UK) LTD.
Neighbourhood Services,Projects and Business services,Supplies and Services,304357,Equipment and Materials,08-Oct-2014,2802458-13267,"3,000.00",MJ HICKEY PLANT HIRE & CONTRACTS LTD.
Neighbourhood Services,Direct Services,Premises,125009,Rents,08-Oct-2014,2802460-RENT-OCTOBER14,"4,550.00",MM KNITWEAR (1982) LTD.
Neighbourhood Services,Direct Services,Transport,230005,Contract Hire,08-Oct-2014,2802473-96577,780.00,ND BROWN LTD.
Neighbourhood Services,Direct Services,Transport,230005,Contract Hire,08-Oct-2014,2802487-72063,"3,100.00",NOBLET MUNICIPAL SERVICES LTD.
Neighbourhood Services,Culture & Sport,Supplies and Services,384700,Miscellaneous Expenses,08-Oct-2014,2802500-271,"5,417.00",NOUVEAU FITNESS CIC.
Neighbourhood Services,Technical Services,Premises,120009,Energy Costs,08-Oct-2014,2802502-NNO7LZF7,"1,690.54",NPOWER.
Neighbourhood Services,Technical Services,Premises,120009,Energy Costs,08-Oct-2014,2802502-NNO7LZGY,"248,864.78",NPOWER.
Neighbourhood Services,Technical Services,Employees,040149,Recruitment Instruction and Training,08-Oct-2014,2802509-38778,"1,755.40",OSTEOPATHS FOR INDUSTRY LTD.
Neighbourhood Services,Technical Services,Stock,926900,Stock in hand-Inventory system,08-Oct-2014,2802512-XL124789,"3,033.35",PARK ELECTRICAL DISTRIBUTORS LTD.
Neighbourhood Services,Technical Services,Stock,926900,Stock in hand-Inventory system,08-Oct-2014,2802512-XL124917,"1,613.80",PARK ELECTRICAL DISTRIBUTORS LTD.
Neighbourhood Services,Technical Services,Stock,926900,Stock in hand-Inventory system,08-Oct-2014,2802512-XL124974,"2,689.12",PARK ELECTRICAL DISTRIBUTORS LTD.
Neighbourhood Services,Technical Services,Stock,926900,Stock in hand-Inventory system,08-Oct-2014,2802512-XL124995,791.28,PARK ELECTRICAL DISTRIBUTORS LTD.
Neighbourhood Services,Technical Services,Stock,926900,Stock in hand-Inventory system,08-Oct-2014,2802512-XL125056,"1,023.00",PARK ELECTRICAL DISTRIBUTORS LTD.
Neighbourhood Services,Technical Services,Stock,926900,Stock in hand-Inventory system,08-Oct-2014,2802512-XL125057,792.00,PARK ELECTRICAL DISTRIBUTORS LTD.
Neighbourhood Services,Direct Services,Supplies and Services,304221,Equipment and Materials,08-Oct-2014,2802512-XL125086,"1,377.50",PARK ELECTRICAL DISTRIBUTORS LTD.
Neighbourhood Services,Technical Services,Stock,926900,Stock in hand-Inventory system,08-Oct-2014,2802512-XL125127,"1,400.00",PARK ELECTRICAL DISTRIBUTORS LTD.
Neighbourhood Services,Technical Services,Stock,926900,Stock in hand-Inventory system,08-Oct-2014,2802512-XL125282,"4,018.70",PARK ELECTRICAL DISTRIBUTORS LTD.
Neighbourhood Services,Culture & Sport,Supplies and Services,384199,Miscellaneous Expenses,08-Oct-2014,2802530-INV-0100,955.00,PIXELSAFE LTD.
Neighbourhood Services,Direct Services,Transport,230005,Contract Hire,08-Oct-2014,2802538-INV/24706,"3,040.00",PREMIER TRUCK HIRE LTD.
Neighbourhood Services,Direct Services,Transport,230005,Contract Hire,08-Oct-2014,2802538-INV/24710,"3,740.00",PREMIER TRUCK HIRE LTD.
Neighbourhood Services,EnvironmentHealth & Consumer Protection,Supplies and Services,384199,Miscellaneous Expenses,08-Oct-2014,2802541-IN-14-WP-000664,638.00,PUBLIC ANALYST SCIENTIFIC SERVICES LTD.
Neighbourhood Services,Technical Services,Stock,926900,Stock in hand-Inventory system,08-Oct-2014,2802549-231044,"4,636.00",RITHERDON & CO LTD.
Neighbourhood Services,Direct Services,Third Party Payments,430100,Rendered by Private Contractors,08-Oct-2014,2802552-27072,"2,445.00",RJ UTILITY SERVICES LTD.
Neighbourhood Services,Direct Services,Third Party Payments,430100,Rendered by Private Contractors,08-Oct-2014,2802552-27075,"2,744.00",RJ UTILITY SERVICES LTD.
Neighbourhood Services,Direct Services,Supplies and Services,304221,Equipment and Materials,08-Oct-2014,2802572-WWB1069704,"1,398.00",SGS UNITED KINGDOM LTD.
Neighbourhood Services,Culture & Sport,Supplies and Services,338047,Services,08-Oct-2014,2802577-2008,940.00,SHOW SOUVENIRS LTD.
Neighbourhood Services,Technical Services,Stock,926900,Stock in hand-Inventory system,08-Oct-2014,2802579-65869,"3,206.25",SIMMONSIGNS LTD.
Neighbourhood Services,Culture & Sport,Supplies and Services,384700,Miscellaneous Expenses,08-Oct-2014,2802580-NEI-EXP-09-2014-047,"1,836.00",SLAM COMMUNITY DEVELOPMENT TRUST.
Neighbourhood Services,Technical Services,Stock,926900,Stock in hand-Inventory system,08-Oct-2014,2802584-270056386,540.25,SOVEREIGN CHEMICALS LTD.
Neighbourhood Services,Direct Services,Supplies and Services,304221,Equipment and Materials,08-Oct-2014,2802588-4425,"5,611.00",ST ASTIER LTD.
Neighbourhood Services,Direct Services,Supplies and Services,304221,Equipment and Materials,08-Oct-2014,2802604-JE00744/TL/EP,"1,076.38",T MANNERS & SONS LTD.
Neighbourhood Services,Direct Services,Third Party Payments,430100,Rendered by Private Contractors,08-Oct-2014,2802610-6686,"24,731.00",TEAMS ROOFING LTD.
Neighbourhood Services,Direct Services,Third Party Payments,430100,Rendered by Private Contractors,08-Oct-2014,2802610-6687,"4,212.00",TEAMS ROOFING LTD.
Neighbourhood Services,Technical Services,Supplies and Services,304221,Equipment and Materials,08-Oct-2014,2802623-24923,500.00,TODDS HIGHWAY MAINTENANCE LTD.
Neighbourhood Services,Direct Services,Supplies and Services,304221,Equipment and Materials,08-Oct-2014,2802624-100632,"1,257.30",TOMMY WARDLE.
Neighbourhood Services,Direct Services,Transport,230005,Contract Hire,08-Oct-2014,2802627-11155,"1,166.14",TRASH UK LTD.
Neighbourhood Services,Direct Services,Transport,230005,Contract Hire,08-Oct-2014,2802628-CI141236,"2,444.40",TURNER HIRE DRIVE.
Neighbourhood Services,Technical Services,Premises,150015,Apportioned Exps of Operational Blds,08-Oct-2014,2802648-336254,626.78,WERNICK HIRE LTD.
Neighbourhood Services,Technical Services,Premises,150015,Apportioned Exps of Operational Blds,08-Oct-2014,2802648-336255,669.10,WERNICK HIRE LTD.
Neighbourhood Services,Technical Services,Supplies and Services,304221,Equipment and Materials,08-Oct-2014,2802655-229,600.00,WILF HUSBAND PLANT HIRE.
Neighbourhood Services,Technical Services,Supplies and Services,304221,Equipment and Materials,08-Oct-2014,2802655-467,"2,300.00",WILF HUSBAND PLANT HIRE.
Neighbourhood Services,Technical Services,Supplies and Services,304221,Equipment and Materials,08-Oct-2014,2802655-556,912.00,WILF HUSBAND PLANT HIRE.
Neighbourhood Services,Direct Services,Transport,210057,Repair and Maintenance of Vehicles,08-Oct-2014,2802668-SVI29340,"2,082.92",ZOELLER WASTE SYSTEMS LTD.
RED HRA,HRA Centrally Managed,Supplies and Services,384999,Miscellaneous Expenses,08-Oct-2014,235115-1051941005,982.07,REDACTED - PAYMENT TO INDIVIDUAL
RED HRA,HRA Centrally Managed,Supplies and Services,384999,Miscellaneous Expenses,08-Oct-2014,235116-1020641,822.36,REDACTED - PAYMENT TO INDIVIDUAL
RED HRA,HRA Centrally Managed,Supplies and Services,384999,Miscellaneous Expenses,08-Oct-2014,235132-1030364,922.18,REDACTED - PAYMENT TO INDIVIDUAL
RED HRA,HRA Centrally Managed,Supplies and Services,384999,Miscellaneous Expenses,08-Oct-2014,235145-1021570,800.00,REDACTED - PAYMENT TO INDIVIDUAL
RED HRA,Housing Revenue Account,Employees,040149,Recruitment Instruction and Training,08-Oct-2014,2802244-L2GCDCC,599.00,CHAPTERS COUNSELLING & TRAINING.
RED HRA,HRA Capital,Construction Work,908105,Construction work,08-Oct-2014,2802284-206933,"3,842.83",DELTA ELECTRICAL & MECHANICAL SERVICES.
RED HRA,HRA Capital,Construction Work,908105,Construction work,08-Oct-2014,2802400-14030005,"36,710.50",KIER NORTH TYNESIDE LTD.
RED HRA,Housing Revenue Account,Supplies and Services,338066,Services,08-Oct-2014,2802477-DCC-1662,"29,155.07",NEPRO LTD.
RED HRA,Housing Revenue Account,Supplies and Services,338066,Services,08-Oct-2014,2802477-DCC-1680,"73,295.59",NEPRO LTD.
RED HRA,Housing Revenue Account,Employees,040149,Recruitment Instruction and Training,08-Oct-2014,2802551-6392,675.00,RIVERGREEN DEVELOPMENTS PLC.
RED HRA,HRA Capital,Construction Work,908105,Construction work,08-Oct-2014,2802571-77924,630.00,SGS MIS ENVIRONMENTAL LTD.
RED HRA,Housing Revenue Account,Supplies and Services,338027,Services,08-Oct-2014,2802595-2254,696.00,STEVE BROCK PHOTOGRAPHY.
RED HRA,HRA Capital,Construction Work,908105,Construction work,08-Oct-2014,2802666-32241,"1,611.29",YWC GROUP LTD.
RED HRA,HRA Capital,Construction Work,908105,Construction work,08-Oct-2014,2802666-32242,"9,841.50",YWC GROUP LTD.
Regeneration & Economic Development,Transport and Contracted Services,Supplies and Services,384540,Miscellaneous Expenses,08-Oct-2014,234914-103028,"2,200.00",DODWELL BROS LTD.
Regeneration & Economic Development,Economic Development and Housing,Supplies and Services,324117,Provisions,08-Oct-2014,235070-077564,511.75,REDACTED - PAYMENT TO INDIVIDUAL
Regeneration & Economic Development,Spatial Policy Planning Assets & Environment,Supplies and Services,338027,Services,08-Oct-2014,235088-337829,"2,562.50",MISS SARAH REID.
Regeneration & Economic Development,Economic Development and Housing,Premises,120009,Energy Costs,08-Oct-2014,235148-NN07LK46,707.51,NPOWER.
Regeneration & Economic Development,Economic Development and Housing,Supplies and Services,368008,Incentives to Industrialists,08-Oct-2014,235173-10075,"1,600.00",SEAHAM HARBOUR CIC.
Regeneration & Economic Development,Transport and Contracted Services,Supplies and Services,336005,Advertising,08-Oct-2014,2802158-1208334,"2,785.00",4IMPRINT DIRECT LTD.
Regeneration & Economic Development,Transport and Contracted Services,Other Expenses,914001,Other capital expenses,08-Oct-2014,2802167-28200615,"18,194.10",AECOM LTD.
Regeneration & Economic Development,Economic Development and Housing,Supplies and Services,384199,Miscellaneous Expenses,08-Oct-2014,2802174-1400801,500.00,ALNWICK FOOD FESTIVAL.
Regeneration & Economic Development,Spatial Policy Planning Assets & Environment,Supplies and Services,338066,Services,08-Oct-2014,2802231-005-0414,600.00,BUMBLEBEE CONSERVATION TRUST.
Regeneration & Economic Development,Spatial Policy Planning Assets & Environment,Supplies and Services,384199,Miscellaneous Expenses,08-Oct-2014,2802252-BURSARYSEPT14,537.50,REDACTED - PAYMENT TO INDIVIDUAL
Regeneration & Economic Development,Transport and Contracted Services,Construction Work,908105,Construction work,08-Oct-2014,2802269-10748,"2,646.00",COUPE LINE LTD.
Regeneration & Economic Development,Transport and Contracted Services,Supplies and Services,338099,Services,08-Oct-2014,2802278-2598229,"15,000.00",DARLINGTON BOROUGH COUNCIL.
Regeneration & Economic Development,Transport and Contracted Services,Supplies and Services,384199,Miscellaneous Expenses,08-Oct-2014,2802278-2598253,"8,118.00",DARLINGTON BOROUGH COUNCIL.
Regeneration & Economic Development,Transport and Contracted Services,Acquisition Of Land And Buildings,905009,Acquisition of land and buildings,08-Oct-2014,2802307-RED-09-2014-151,896.88,EDWIN THOMPSON LLP.
Regeneration & Economic Development,Transport and Contracted Services,Acquisition Of Land And Buildings,905009,Acquisition of land and buildings,08-Oct-2014,2802331-RED-09-2014-150,876.50,GEORGE F WHITE.
Regeneration & Economic Development,Transport and Contracted Services,Acquisition Of Land And Buildings,905009,Acquisition of land and buildings,08-Oct-2014,2802331-RED-09-2014-152,984.45,GEORGE F WHITE.
Regeneration & Economic Development,Economic Development and Housing,Supplies and Services,308011,Furniture,08-Oct-2014,2802335-075233,537.30,GODFREY SYRETT LTD.
Regeneration & Economic Development,Economic Development and Housing,Supplies and Services,384700,Miscellaneous Expenses,08-Oct-2014,2802374-RED-10-2014-037,"1,000.00",ITC PLUMBING & HEATING SERVICES LTD.
Regeneration & Economic Development,Economic Development and Housing,Supplies and Services,384700,Miscellaneous Expenses,08-Oct-2014,2802394-RED-10-2014-029,"1,000.00",JW BAINBRIDGE CONTRACTORS LTD.
Regeneration & Economic Development,Economic Development and Housing,Supplies and Services,384700,Miscellaneous Expenses,08-Oct-2014,2802402-RES-09-2014-132,"1,500.00",KING JAMES I ACADEMY.
Regeneration & Economic Development,Economic Development and Housing,Supplies and Services,336005,Advertising,08-Oct-2014,2802412-EGRI-345,"2,200.00",LEWIS JOLLY (ELGRAPHICA).
Regeneration & Economic Development,Transport and Contracted Services,Supplies and Services,336005,Advertising,08-Oct-2014,2802450-54576,975.00,MERCHANDISE MANIA LTD.
Regeneration & Economic Development,Spatial Policy Planning Assets & Environment,Supplies and Services,384199,Miscellaneous Expenses,08-Oct-2014,2802451-BURSARYSEPT14,504.00,REDACTED - PAYMENT TO INDIVIDUAL
Regeneration & Economic Development,Economic Development and Housing,Supplies and Services,384199,Miscellaneous Expenses,08-Oct-2014,2802471-52161,634.00,NB GROUP LTD.
Regeneration & Economic Development,Economic Development and Housing,Supplies and Services,384199,Miscellaneous Expenses,08-Oct-2014,2802471-52162,"4,859.00",NB GROUP LTD.
Regeneration & Economic Development,Economic Development and Housing,Supplies and Services,384700,Miscellaneous Expenses,08-Oct-2014,2802479-RED-10-2014-028,"1,000.00",NEW GENERATION BRASS.
Regeneration & Economic Development,Economic Development and Housing,Premises,120009,Energy Costs,08-Oct-2014,2802501-NNO7LY46,765.05,NPOWER.
Regeneration & Economic Development,Economic Development and Housing,Premises,120009,Energy Costs,08-Oct-2014,2802502-NNO7LN7L,818.89,NPOWER.
Regeneration & Economic Development,Economic Development and Housing,Premises,120009,Energy Costs,08-Oct-2014,2802502-NNO7LSX4,964.86,NPOWER.
Regeneration & Economic Development,Economic Development and Housing,Premises,120009,Energy Costs,08-Oct-2014,2802502-NNO7LSX5,"1,370.61",NPOWER.
Regeneration & Economic Development,Economic Development and Housing,Premises,120009,Energy Costs,08-Oct-2014,2802502-NNO7LSX7,"10,966.37",NPOWER.
Regeneration & Economic Development,Economic Development and Housing,Premises,120009,Energy Costs,08-Oct-2014,2802502-NNO7LSYC,"1,497.67",NPOWER.
Regeneration & Economic Development,Economic Development and Housing,Supplies and Services,384700,Miscellaneous Expenses,08-Oct-2014,2802513-RED-09-2014-130,"1,000.00",PARK LEISURE 2000 LTD.
Regeneration & Economic Development,Spatial Policy Planning Assets & Environment,Supplies and Services,384199,Miscellaneous Expenses,08-Oct-2014,2802554-BURSARYSEPT14,695.00,REDACTED - PAYMENT TO INDIVIDUAL
Regeneration & Economic Development,Economic Development and Housing,Supplies and Services,384700,Miscellaneous Expenses,08-Oct-2014,2802567-RED-09-2014-135,"3,000.00",SEAHAM TOWN COUNCIL.
Regeneration & Economic Development,Economic Development and Housing,Supplies and Services,384700,Miscellaneous Expenses,08-Oct-2014,2802568-RED-09-2014-154,725.00,SEAWARD GROUP LTD.
Regeneration & Economic Development,Spatial Policy Planning Assets & Environment,Employees,040149,Recruitment Instruction and Training,08-Oct-2014,2802596-SCYTHETRAINING,646.00,STEVE TOMLIN.
Regeneration & Economic Development,Economic Development and Housing,Supplies and Services,384700,Miscellaneous Expenses,08-Oct-2014,2802600-RED-09-2014-131,"1,000.00",SWEETHARTS COFFEE & CAKES
Regeneration & Economic Development,Economic Development and Housing,Supplies and Services,384540,Miscellaneous Expenses,08-Oct-2014,2802620-286,"1,683.04",THE WITHAM.
Regeneration & Economic Development,Transport and Contracted Services,Supplies and Services,384199,Miscellaneous Expenses,08-Oct-2014,2802626-1620,"2,450.00",TRANSPORT INITIATIVES LLP.
Resources,Legal & Democratic Services,Supplies and Services,338042,Services,08-Oct-2014,235118-219410,800.00,MR SIMON PALLO.
Resources,Internal Audit and Insurance,Supplies and Services,304040,Equipment and Materials,08-Oct-2014,2802193-4045813,"3,650.00",AUDIT COMMISSION.
Resources,Financial Services,Supplies and Services,384199,Miscellaneous Expenses,08-Oct-2014,2802237-89543RI,"20,209.27",CAPACITYGRID.
Resources,I.C.T. Services,Construction Work,908105,Construction work,08-Oct-2014,2802249-2821005735,"4,717.01",CITY OF SUNDERLAND.
Resources,I.C.T. Services,Supplies and Services,304639,Equipment and Materials,08-Oct-2014,2802271-3691293,614.95,CPC.
Resources,I.C.T. Services,Supplies and Services,338027,Services,08-Oct-2014,2802336-14857,"4,750.00",GOSS INTERACTIVE LTD.
Resources,I.C.T. Services,Supplies and Services,304303,Equipment and Materials,08-Oct-2014,2802345-INV0155643,"4,646.00",GV MULTI MEDIA LTD.
Resources,I.C.T. Services,Supplies and Services,304303,Equipment and Materials,08-Oct-2014,2802345-INV0155654,"5,270.32",GV MULTI MEDIA LTD.
Resources,I.C.T. Services,Supplies and Services,304303,Equipment and Materials,08-Oct-2014,2802345-INV0155656,"1,695.00",GV MULTI MEDIA LTD.
Resources,I.C.T. Services,Stock,926900,Stock in hand-Inventory system,08-Oct-2014,2802363-SIN340940,"5,980.00",IDN SUPPLIES LTD.
Resources,I.C.T. Services,Supplies and Services,304639,Equipment and Materials,08-Oct-2014,2802366-2039517,"1,084.56",INSIGHT DIRECT (UK) LTD.
Resources,I.C.T. Services,Supplies and Services,304303,Equipment and Materials,08-Oct-2014,2802397-36754,"3,386.60",KBR IT & NETWORKING SOLUTIONS.
Resources,Human Resources,Supplies and Services,384199,Miscellaneous Expenses,08-Oct-2014,2802490-8824,"1,358.70",NORTH EAST REGIONAL EMPLOYERS ORGANISATION.
Resources,I.C.T. Services,Employees,040149,Recruitment Instruction and Training,08-Oct-2014,2802504-A11236,960.00,ONE CALL TRAINING.
Resources,I.C.T. Services,Construction Work,908105,Construction work,08-Oct-2014,2802517-VAT/001,"4,830.00",PBU (UK) LTD.
Resources,I.C.T. Services,Construction Work,908105,Construction work,08-Oct-2014,2802517-VAT/002,"3,950.85",PBU (UK) LTD.
Resources,I.C.T. Services,Construction Work,908105,Construction work,08-Oct-2014,2802517-VAT/003,"4,520.00",PBU (UK) LTD.
Resources,I.C.T. Services,Supplies and Services,332029,Printing Stationery and Gen Off Exps,08-Oct-2014,2802534-607741,"4,179.00",POTTS PRINTERS LTD.
Resources,I.C.T. Services,Supplies and Services,332029,Printing Stationery and Gen Off Exps,08-Oct-2014,2802534-608563,"5,092.00",POTTS PRINTERS LTD.
Resources,I.C.T. Services,Supplies and Services,332029,Printing Stationery and Gen Off Exps,08-Oct-2014,2802545-11591,"3,150.00",RADECAL SIGNS GRAPHICS & ADVERTISING.
Resources,I.C.T. Services,Supplies and Services,332029,Printing Stationery and Gen Off Exps,08-Oct-2014,2802570-91965102,520.00,SERVICE POINT (UK) LTD.
Resources,I.C.T. Services,Vehicles Equipment Furniture and Fittings,912701,Computer equipment,08-Oct-2014,2802582-INV01020262,"4,903.36",SOFTCAT LTD.
Resources,I.C.T. Services,Stock,926900,Stock in hand-Inventory system,08-Oct-2014,2802586-OP/L902471,"1,920.00",SPECIALIST COMPUTER CENTRES PLC.
Resources,I.C.T. Services,Construction Work,908105,Construction work,08-Oct-2014,2802602-120439,801.00,SWITCHSHOP LTD.
Resources,Human Resources,Employees,040149,Recruitment Instruction and Training,08-Oct-2014,2802632-91296502,"2,225.00",UNIVERSITY OF NORTHUMBRIA.
Resources,Human Resources,Employees,040149,Recruitment Instruction and Training,08-Oct-2014,2802632-91296622,"2,225.00",UNIVERSITY OF NORTHUMBRIA.
Resources,I.C.T. Services,Stock,926900,Stock in hand-Inventory system,08-Oct-2014,2802636-2350540,"17,050.00",VIGLEN LTD.
Resources,I.C.T. Services,Stock,926900,Stock in hand-Inventory system,08-Oct-2014,2802636-2350614,"17,050.00",VIGLEN LTD.
Resources,I.C.T. Services,Stock,926900,Stock in hand-Inventory system,08-Oct-2014,2802636-2350643,"17,050.00",VIGLEN LTD.
Resources,I.C.T. Services,Stock,926900,Stock in hand-Inventory system,08-Oct-2014,2802665-W294285,"1,116.00",XMA LTD.
Resources,I.C.T. Services,Stock,926900,Stock in hand-Inventory system,08-Oct-2014,2802665-W294412,"4,464.00",XMA LTD.
Resources,I.C.T. Services,Stock,926900,Stock in hand-Inventory system,08-Oct-2014,2802665-W296460,"1,395.00",XMA LTD.
Children and Adult Services,Central Charges,Debtors,930024,Debtor-free nursing care,09-Oct-2014,2803980-2192750,712.86,ASCOT CARE NORTHEAST LTD.
Children and Adult Services,Central Charges,Debtors,930024,Debtor-free nursing care,09-Oct-2014,2803991-2189932,839.60,BARCHESTER HEALTHCARE HOMES LTD.
Children and Adult Services,Central Charges,Debtors,930024,Debtor-free nursing care,09-Oct-2014,2803991-2189934,538.61,BARCHESTER HEALTHCARE HOMES LTD.
Children and Adult Services,Central Charges,Debtors,930024,Debtor-free nursing care,09-Oct-2014,2803991-2193516,839.60,BARCHESTER HEALTHCARE HOMES LTD.
Children and Adult Services,Central Charges,Debtors,930024,Debtor-free nursing care,09-Oct-2014,2803994-2190134,506.93,BEACONSFIELD COURT.
Children and Adult Services,Central Charges,Debtors,930024,Debtor-free nursing care,09-Oct-2014,2804018-2190278,"2,867.29",CRAIGARRAN CARE HOME WITH NURSING.
Children and Adult Services,Central Charges,Debtors,930024,Debtor-free nursing care,09-Oct-2014,2804022-2190774,522.77,DEFOE COURT.
Children and Adult Services,Central Charges,Debtors,930024,Debtor-free nursing care,09-Oct-2014,2804026-2193506,506.93,DIPTON CARE HOME LTD.
Children and Adult Services,Central Charges,Debtors,930024,Debtor-free nursing care,09-Oct-2014,2804043-2192964,"1,203.94",EMBRACE ALL LTD.
Children and Adult Services,Central Charges,Debtors,930024,Debtor-free nursing care,09-Oct-2014,2804044-2193565,"1,061.38",EMBRACE ALL LTD.
Children and Adult Services,Central Charges,Debtors,930024,Debtor-free nursing care,09-Oct-2014,2804054-2192454,522.77,GAINFORD CARE HOMES LTD.
Children and Adult Services,Central Charges,Debtors,930024,Debtor-free nursing care,09-Oct-2014,2804056-2190242,"1,441.57",GAINFORD CARE HOMES LTD.
Children and Adult Services,Central Charges,Debtors,930024,Debtor-free nursing care,09-Oct-2014,2804056-2192958,"2,114.37",GAINFORD CARE HOMES LTD.
Children and Adult Services,Central Charges,Debtors,930024,Debtor-free nursing care,09-Oct-2014,2804056-2193562,"1,045.53",GAINFORD CARE HOMES LTD.
Children and Adult Services,Central Charges,Debtors,930024,Debtor-free nursing care,09-Oct-2014,2804073-2188545,"1,409.89",HOWLISH HALL NURSING HOME.
Children and Adult Services,Central Charges,Debtors,930024,Debtor-free nursing care,09-Oct-2014,2804073-2192839,617.81,HOWLISH HALL NURSING HOME.
Children and Adult Services,Central Charges,Debtors,930024,Debtor-free nursing care,09-Oct-2014,2804079-2190009,610.44,KIMBLESWORTH NURSING HOME.
Children and Adult Services,Central Charges,Debtors,930024,Debtor-free nursing care,09-Oct-2014,2804087-2192807,697.02,LEAZES HALL RESIDENTIAL & NURSING HOME.
Children and Adult Services,Central Charges,Debtors,930024,Debtor-free nursing care,09-Oct-2014,2804099-2191481,"2,867.30",LINDISFARNE.
Children and Adult Services,Central Charges,Debtors,930024,Debtor-free nursing care,09-Oct-2014,2804149-2188767,"1,536.62",OBJECT QUEST LTD.
Children and Adult Services,Central Charges,Debtors,930024,Debtor-free nursing care,09-Oct-2014,2804153-2189519,"1,013.85",PARKLANDS NURSING HOME.
Children and Adult Services,Central Charges,Debtors,930024,Debtor-free nursing care,09-Oct-2014,2804153-2192992,744.55,PARKLANDS NURSING HOME.
Children and Adult Services,Central Charges,Debtors,930024,Debtor-free nursing care,09-Oct-2014,2804155-2189291,839.59,PELTON GRANGE CARE HOME.
Children and Adult Services,Central Charges,Debtors,930024,Debtor-free nursing care,09-Oct-2014,2804168-2193536,996.12,PREMIER CARE HOMES LTD.
Children and Adult Services,Central Charges,Debtors,930024,Debtor-free nursing care,09-Oct-2014,2804171-2188474,610.44,RAYSON HOMES LTD.
Children and Adult Services,Central Charges,Debtors,930024,Debtor-free nursing care,09-Oct-2014,2804221-2191989,"1,251.47",TAMARIS HEALTHCARE LTD.
Children and Adult Services,Central Charges,Debtors,930024,Debtor-free nursing care,09-Oct-2014,2804224-2190432,712.86,TAMARIS HEALTHCARE LTD.
Children and Adult Services,Central Charges,Debtors,930024,Debtor-free nursing care,09-Oct-2014,2804225-2189887,728.70,TAMARIS HEALTHCARE LTD.
Children and Adult Services,Central Charges,Debtors,930024,Debtor-free nursing care,09-Oct-2014,2804228-2192151,610.44,TAMARIS HEALTHCARE LTD.
Children and Adult Services,Central Charges,Debtors,930024,Debtor-free nursing care,09-Oct-2014,2804229-2188636,506.93,TENLANDS NURSING HOME.
Children and Adult Services,Central Charges,Debtors,930024,Debtor-free nursing care,09-Oct-2014,2804229-2193414,776.23,TENLANDS NURSING HOME.
Children and Adult Services,Central Charges,Debtors,930024,Debtor-free nursing care,09-Oct-2014,2804267-2189648,610.44,YODEN HALL NURSING HOME.
Children and Adult Services,Childrens Services,Third Party Payments,440062,Other Third Party Payments,09-Oct-2014,2803232-1460312H,"1,385.47",COMFORT CALL LTD.
Children and Adult Services,Childrens Services,Third Party Payments,440062,Other Third Party Payments,09-Oct-2014,2803232-1460669H,814.32,COMFORT CALL LTD.
Children and Adult Services,Childrens Services,Third Party Payments,440062,Other Third Party Payments,09-Oct-2014,2803232-1460791H,"1,965.11",COMFORT CALL LTD.
Children and Adult Services,Childrens Services,Third Party Payments,440062,Other Third Party Payments,09-Oct-2014,2803232-1463642H,525.92,COMFORT CALL LTD.
Children and Adult Services,Childrens Services,Third Party Payments,440062,Other Third Party Payments,09-Oct-2014,2803239-1461233H,995.28,DALE CARE LTD.
Children and Adult Services,Childrens Services,Third Party Payments,440062,Other Third Party Payments,09-Oct-2014,2803239-1461772H,701.22,DALE CARE LTD.
Children and Adult Services,Childrens Services,Third Party Payments,440062,Other Third Party Payments,09-Oct-2014,2803239-1462101H,"1,006.59",DALE CARE LTD.
Children and Adult Services,Childrens Services,Third Party Payments,440062,Other Third Party Payments,09-Oct-2014,2803239-1463360H,"1,266.72",DALE CARE LTD.
Children and Adult Services,Childrens Services,Third Party Payments,440062,Other Third Party Payments,09-Oct-2014,2803239-1463832H,542.88,DALE CARE LTD.
Children and Adult Services,Childrens Services,Third Party Payments,440062,Other Third Party Payments,09-Oct-2014,2803353-1463428H,751.00,REDACTED - PAYMENT TO INDIVIDUAL
Children and Adult Services,Childrens Services,Third Party Payments,440062,Other Third Party Payments,09-Oct-2014,2803353-1463429H,735.00,REDACTED - PAYMENT TO INDIVIDUAL
Children and Adult Services,Childrens Services,Third Party Payments,440062,Other Third Party Payments,09-Oct-2014,2803868-1460957H,803.01,SOCIAL RESOURCE CENTRE LTD.
Children and Adult Services,Childrens Services,Transfer Payments,515201,Social Services Clients,09-Oct-2014,2802672-1461660H,"1,232.00",REDACTED - PAYMENT TO INDIVIDUAL
Children and Adult Services,Childrens Services,Transfer Payments,515201,Social Services Clients,09-Oct-2014,2802697-1460927H,"1,485.00",REDACTED - PAYMENT TO INDIVIDUAL
Children and Adult Services,Childrens Services,Transfer Payments,515201,Social Services Clients,09-Oct-2014,2802702-1462362H,"2,048.00",REDACTED - PAYMENT TO INDIVIDUAL
Children and Adult Services,Childrens Services,Transfer Payments,515201,Social Services Clients,09-Oct-2014,2802706-1461080H,978.00,REDACTED - PAYMENT TO INDIVIDUAL
Children and Adult Services,Childrens Services,Transfer Payments,515201,Social Services Clients,09-Oct-2014,2802723-1462668H,630.00,REDACTED - PAYMENT TO INDIVIDUAL
Children and Adult Services,Childrens Services,Transfer Payments,515201,Social Services Clients,09-Oct-2014,2802729-1464186H,720.00,REDACTED - PAYMENT TO INDIVIDUAL
Children and Adult Services,Childrens Services,Transfer Payments,515201,Social Services Clients,09-Oct-2014,2802730-1463348H,900.00,REDACTED - PAYMENT TO INDIVIDUAL
Children and Adult Services,Childrens Services,Transfer Payments,515201,Social Services Clients,09-Oct-2014,2802772-1462189H,572.00,REDACTED - PAYMENT TO INDIVIDUAL
Children and Adult Services,Childrens Services,Transfer Payments,515201,Social Services Clients,09-Oct-2014,2802774-1461678H,572.00,REDACTED - PAYMENT TO INDIVIDUAL
Children and Adult Services,Childrens Services,Transfer Payments,515201,Social Services Clients,09-Oct-2014,2802832-1463647H,630.00,REDACTED - PAYMENT TO INDIVIDUAL
Children and Adult Services,Childrens Services,Transfer Payments,515201,Social Services Clients,09-Oct-2014,2802852-1461124H,720.00,REDACTED - PAYMENT TO INDIVIDUAL
Children and Adult Services,Childrens Services,Transfer Payments,515201,Social Services Clients,09-Oct-2014,2802905-1461174H,"1,260.00",REDACTED - PAYMENT TO INDIVIDUAL
Children and Adult Services,Childrens Services,Transfer Payments,515201,Social Services Clients,09-Oct-2014,2802921-1462260H,664.00,REDACTED - PAYMENT TO INDIVIDUAL
Children and Adult Services,Childrens Services,Transfer Payments,515201,Social Services Clients,09-Oct-2014,2802949-1461016H,960.00,REDACTED - PAYMENT TO INDIVIDUAL
Children and Adult Services,Childrens Services,Transfer Payments,515201,Social Services Clients,09-Oct-2014,2802955-1464074H,525.00,REDACTED - PAYMENT TO INDIVIDUAL
Children and Adult Services,Childrens Services,Transfer Payments,515201,Social Services Clients,09-Oct-2014,2802973-1463700H,"4,200.00",REDACTED - PAYMENT TO INDIVIDUAL
Children and Adult Services,Childrens Services,Transfer Payments,515201,Social Services Clients,09-Oct-2014,2803014-1461113H,540.00,REDACTED - PAYMENT TO INDIVIDUAL
Children and Adult Services,Childrens Services,Transfer Payments,515201,Social Services Clients,09-Oct-2014,2803039-1461178H,960.00,REDACTED - PAYMENT TO INDIVIDUAL
Children and Adult Services,Childrens Services,Transfer Payments,515201,Social Services Clients,09-Oct-2014,2803111-1460310H,510.00,REDACTED - PAYMENT TO INDIVIDUAL
Children and Adult Services,Childrens Services,Transfer Payments,515201,Social Services Clients,09-Oct-2014,2803111-1460311H,996.00,REDACTED - PAYMENT TO INDIVIDUAL
Children and Adult Services,Childrens Services,Transfer Payments,515201,Social Services Clients,09-Oct-2014,2803149-1460126H,510.00,REDACTED - PAYMENT TO INDIVIDUAL
Children and Adult Services,Childrens Services,Transfer Payments,515201,Social Services Clients,09-Oct-2014,2803149-1460278H,510.00,REDACTED - PAYMENT TO INDIVIDUAL
Children and Adult Services,Childrens Services,Transfer Payments,515201,Social Services Clients,09-Oct-2014,2803153-1461745H,646.00,REDACTED - PAYMENT TO INDIVIDUAL
Children and Adult Services,Childrens Services,Transfer Payments,515201,Social Services Clients,09-Oct-2014,2803178-1462315H,"1,200.00",REDACTED - PAYMENT TO INDIVIDUAL
